{"text_format":"3","workbook":"xlsx","n_sheets":5,"sheets":["НАЧАЛО","ЗАПЛАНИРОВАННЫЕ РАСХОДЫ","ФАКТИЧЕСКИЕ РАСХОДЫ","ОТКЛОНЕНИЯ ПО РАСХОДАМ","АНАЛИЗ РАСХОДОВ"],"not_rendered":{"charts":2,"images":3,"defined_names":1},"read":"whole","date_system":"1900"}

{"sheet":"НАЧАЛО","index":0,"n_rows":8,"n_cols":2,"rows_kept":8}
[null,"ОБ ЭТОМ ШАБЛОНЕ"]
[null,"Используйте эту книгу бюджета расходов компании для сравнения запланированных и фактических расходов и отслеживания отклонений."]
[null,"Введите название компании и добавьте логотип."]
[null,"Введите сведения в таблицы на листах «Запланированные расходы» и «Фактические расходы»."]
[null,"На листе «Отклонения по расходам» автоматически обновятся таблицы, а на листе «Анализ расходов» — диаграммы."]
[null,"Примечание. "]
[null,"В столбце A каждого листа содержатся дополнительные инструкции. Их текст намерено скрыт. Чтобы удалить этот текст, выделите столбец A и нажмите клавишу DELETE. Чтобы отобразить текст, выделите столбец A и измените цвет шрифта."]
[null,"Чтобы получить дополнительные сведения о таблице, щелкните в ней ячейку, затем нажмите клавиши SHIFT+F10, выберите \"Таблица\", а затем — \"Замещающий текст\"."]

{"sheet":"ЗАПЛАНИРОВАННЫЕ РАСХОДЫ","index":1,"n_rows":37,"n_cols":16,"rows_kept":37,"merged":[[1,10,1,12],[2,10,2,12],[3,17,12,19]]}
[{"$nulls":15}," "]
[null,"Название компании",{"$nulls":8},"Подробные оценочные показатели расходов"]
[{"$nulls":10},"Затененные ячейки содержат вычисления."]
[null,"ЗАПЛАНИРОВАННЫЕ РАСХОДЫ","ЯНВ","ФЕВ","МАР","АПР","МАЙ","ИЮН","ИЮЛ","АВГ","СЕН","ОКТ","НОЯ","ДЕК","ГОД"]
[null,"Расходы на сотрудников","Янв","Фев","Мар","Апр","Май","Июн","Июл","Авг","Сен","Окт","Ноя","Дек","ГОД"]
[null,"Зарплата",{"v":85000,"d":"85,000.00 ₽"},{"v":85000,"d":"85,000.00 ₽"},{"v":85000,"d":"85,000.00 ₽"},{"v":87500,"d":"87,500.00 ₽"},{"v":87500,"d":"87,500.00 ₽"},{"v":87500,"d":"87,500.00 ₽"},{"v":87500,"d":"87,500.00 ₽"},{"v":92400,"d":"92,400.00 ₽"},{"v":92400,"d":"92,400.00 ₽"},{"v":92400,"d":"92,400.00 ₽"},{"v":92400,"d":"92,400.00 ₽"},{"v":92400,"d":"92,400.00 ₽"},{"$f":"SUM(C6:N6)","v":{"v":1067000,"d":"1,067,000.00 ₽"}}]
[null,"Премия",{"$f":"C6*0.27","v":{"v":22950,"d":"22,950.00 ₽"}},{"v":22950,"d":"22,950.00 ₽"},{"v":22950,"d":"22,950.00 ₽"},{"v":23625,"d":"23,625.00 ₽"},{"v":23625,"d":"23,625.00 ₽"},{"v":23625,"d":"23,625.00 ₽"},{"v":23625,"d":"23,625.00 ₽"},{"v":24948,"d":"24,948.00 ₽"},{"v":24948,"d":"24,948.00 ₽"},{"v":24948,"d":"24,948.00 ₽"},{"v":24948,"d":"24,948.00 ₽"},{"v":24948,"d":"24,948.00 ₽"},{"$f":"SUM(C7:N7)","v":{"v":288090,"d":"288,090.00 ₽"}}]
[null,"Промежуточный итог",{"$f":"SUBTOTAL(109,СотрудникиПлан[Янв])","v":{"v":107950,"d":"107,950.00 ₽"}},{"$f":"SUBTOTAL(109,СотрудникиПлан[Фев])","v":{"v":107950,"d":"107,950.00 ₽"}},{"$f":"SUBTOTAL(109,СотрудникиПлан[Мар])","v":{"v":107950,"d":"107,950.00 ₽"}},{"$f":"SUBTOTAL(109,СотрудникиПлан[Апр])","v":{"v":111125,"d":"111,125.00 ₽"}},{"$f":"SUBTOTAL(109,СотрудникиПлан[Май])","v":{"v":111125,"d":"111,125.00 ₽"}},{"$f":"SUBTOTAL(109,СотрудникиПлан[Июн])","v":{"v":111125,"d":"111,125.00 ₽"}},{"$f":"SUBTOTAL(109,СотрудникиПлан[Июл])","v":{"v":111125,"d":"111,125.00 ₽"}},{"$f":"SUBTOTAL(109,СотрудникиПлан[Авг])","v":{"v":117348,"d":"117,348.00 ₽"}},{"$f":"SUBTOTAL(109,СотрудникиПлан[Сен])","v":{"v":117348,"d":"117,348.00 ₽"}},{"$f":"SUBTOTAL(109,СотрудникиПлан[Окт])","v":{"v":117348,"d":"117,348.00 ₽"}},{"$f":"SUBTOTAL(109,СотрудникиПлан[Ноя])","v":{"v":117348,"d":"117,348.00 ₽"}},{"$f":"SUBTOTAL(109,СотрудникиПлан[Дек])","v":{"v":117348,"d":"117,348.00 ₽"}},{"$f":"SUBTOTAL(109,СотрудникиПлан[ГОД])","v":{"v":1355090,"d":"1,355,090.00 ₽"}}]
[]
[null,"Расходы на содержание офиса","Янв","Фев","Мар","Апр","Май","Июн","Июл","Авг","Сен","Окт","Ноя","Дек","ГОД"]
[null,"Аренда офисных помещений",{"v":9800,"d":"9,800.00 ₽"},{"v":9800,"d":"9,800.00 ₽"},{"v":9800,"d":"9,800.00 ₽"},{"v":9800,"d":"9,800.00 ₽"},{"v":9800,"d":"9,800.00 ₽"},{"v":9800,"d":"9,800.00 ₽"},{"v":9800,"d":"9,800.00 ₽"},{"v":9800,"d":"9,800.00 ₽"},{"v":9800,"d":"9,800.00 ₽"},{"v":9800,"d":"9,800.00 ₽"},{"v":9800,"d":"9,800.00 ₽"},{"v":9800,"d":"9,800.00 ₽"},{"$f":"SUM(C11:N11)","v":{"v":117600,"d":"117,600.00 ₽"}}]
[null,"Газ",null,{"v":400,"d":"400.00 ₽"},{"v":400,"d":"400.00 ₽"},{"v":100,"d":"100.00 ₽"},{"v":100,"d":"100.00 ₽"},{"v":100,"d":"100.00 ₽"},{"v":100,"d":"100.00 ₽"},{"v":100,"d":"100.00 ₽"},{"v":100,"d":"100.00 ₽"},{"v":100,"d":"100.00 ₽"},{"v":400,"d":"400.00 ₽"},{"v":400,"d":"400.00 ₽"},{"v":2300,"d":"2,300.00 ₽"}]
[null,"Электричество",{"v":300,"d":"300.00 ₽"},{"v":300,"d":"300.00 ₽"},{"v":300,"d":"300.00 ₽"},{"v":300,"d":"300.00 ₽"},{"v":300,"d":"300.00 ₽"},{"v":300,"d":"300.00 ₽"},{"v":300,"d":"300.00 ₽"},{"v":300,"d":"300.00 ₽"},{"v":300,"d":"300.00 ₽"},{"v":300,"d":"300.00 ₽"},{"v":300,"d":"300.00 ₽"},{"v":300,"d":"300.00 ₽"},{"v":3600,"d":"3,600.00 ₽"}]
[null,"Вода",{"v":40,"d":"40.00 ₽"},{"v":40,"d":"40.00 ₽"},{"v":40,"d":"40.00 ₽"},{"v":40,"d":"40.00 ₽"},{"v":40,"d":"40.00 ₽"},{"v":40,"d":"40.00 ₽"},{"v":40,"d":"40.00 ₽"},{"v":40,"d":"40.00 ₽"},{"v":40,"d":"40.00 ₽"},{"v":40,"d":"40.00 ₽"},{"v":40,"d":"40.00 ₽"},{"v":40,"d":"40.00 ₽"},{"v":480,"d":"480.00 ₽"}]
[null,"Телефон",{"v":250,"d":"250.00 ₽"},{"v":250,"d":"250.00 ₽"},{"v":250,"d":"250.00 ₽"},{"v":250,"d":"250.00 ₽"},{"v":250,"d":"250.00 ₽"},{"v":250,"d":"250.00 ₽"},{"v":250,"d":"250.00 ₽"},{"v":250,"d":"250.00 ₽"},{"v":250,"d":"250.00 ₽"},{"v":250,"d":"250.00 ₽"},{"v":250,"d":"250.00 ₽"},{"v":250,"d":"250.00 ₽"},{"v":3000,"d":"3,000.00 ₽"}]
[null,"Доступ в Интернет",{"v":180,"d":"180.00 ₽"},{"v":180,"d":"180.00 ₽"},{"v":180,"d":"180.00 ₽"},{"v":180,"d":"180.00 ₽"},{"v":180,"d":"180.00 ₽"},{"v":180,"d":"180.00 ₽"},{"v":180,"d":"180.00 ₽"},{"v":180,"d":"180.00 ₽"},{"v":180,"d":"180.00 ₽"},{"v":180,"d":"180.00 ₽"},{"v":180,"d":"180.00 ₽"},{"v":180,"d":"180.00 ₽"},{"v":2160,"d":"2,160.00 ₽"}]
[null,"Канцтовары",{"v":200,"d":"200.00 ₽"},{"v":200,"d":"200.00 ₽"},{"v":200,"d":"200.00 ₽"},{"v":200,"d":"200.00 ₽"},{"v":200,"d":"200.00 ₽"},{"v":200,"d":"200.00 ₽"},{"v":200,"d":"200.00 ₽"},{"v":200,"d":"200.00 ₽"},{"v":200,"d":"200.00 ₽"},{"v":200,"d":"200.00 ₽"},{"v":200,"d":"200.00 ₽"},{"v":200,"d":"200.00 ₽"},{"v":2400,"d":"2,400.00 ₽"}]
[null,"Безопасность",{"v":600,"d":"600.00 ₽"},{"v":600,"d":"600.00 ₽"},{"v":600,"d":"600.00 ₽"},{"v":600,"d":"600.00 ₽"},{"v":600,"d":"600.00 ₽"},{"v":600,"d":"600.00 ₽"},{"v":600,"d":"600.00 ₽"},{"v":600,"d":"600.00 ₽"},{"v":600,"d":"600.00 ₽"},{"v":600,"d":"600.00 ₽"},{"v":600,"d":"600.00 ₽"},{"v":600,"d":"600.00 ₽"},{"v":7200,"d":"7,200.00 ₽"}]
[null,"Промежуточный итог",{"$f":"SUBTOTAL(109,ОфисПлан[Янв])","v":{"v":11370,"d":"11,370.00 ₽"}},{"$f":"SUBTOTAL(109,ОфисПлан[Фев])","v":{"v":11770,"d":"11,770.00 ₽"}},{"$f":"SUBTOTAL(109,ОфисПлан[Мар])","v":{"v":11770,"d":"11,770.00 ₽"}},{"$f":"SUBTOTAL(109,ОфисПлан[Апр])","v":{"v":11470,"d":"11,470.00 ₽"}},{"$f":"SUBTOTAL(109,ОфисПлан[Май])","v":{"v":11470,"d":"11,470.00 ₽"}},{"$f":"SUBTOTAL(109,ОфисПлан[Июн])","v":{"v":11470,"d":"11,470.00 ₽"}},{"$f":"SUBTOTAL(109,ОфисПлан[Июл])","v":{"v":11470,"d":"11,470.00 ₽"}},{"$f":"SUBTOTAL(109,ОфисПлан[Авг])","v":{"v":11470,"d":"11,470.00 ₽"}},{"$f":"SUBTOTAL(109,ОфисПлан[Сен])","v":{"v":11470,"d":"11,470.00 ₽"}},{"$f":"SUBTOTAL(109,ОфисПлан[Окт])","v":{"v":11470,"d":"11,470.00 ₽"}},{"$f":"SUBTOTAL(109,ОфисПлан[Ноя])","v":{"v":11770,"d":"11,770.00 ₽"}},{"$f":"SUBTOTAL(109,ОфисПлан[Дек])","v":{"v":11770,"d":"11,770.00 ₽"}},{"$f":"SUBTOTAL(109,ОфисПлан[ГОД])","v":{"v":138740,"d":"138,740.00 ₽"}}]
[]
[null,"Расходы на маркетинг","Янв","Фев","Мар","Апр","Май","Июн","Июл","Авг","Сен","Окт","Ноя","Дек","ГОД"]
[null,"Размещение веб-сайта",{"v":500,"d":"500.00 ₽"},{"v":500,"d":"500.00 ₽"},{"v":500,"d":"500.00 ₽"},{"v":500,"d":"500.00 ₽"},{"v":500,"d":"500.00 ₽"},{"v":500,"d":"500.00 ₽"},{"v":500,"d":"500.00 ₽"},{"v":500,"d":"500.00 ₽"},{"v":500,"d":"500.00 ₽"},{"v":500,"d":"500.00 ₽"},{"v":500,"d":"500.00 ₽"},{"v":500,"d":"500.00 ₽"},{"$f":"SUM(C22:N22)","v":{"v":6000,"d":"6,000.00 ₽"}}]
[null,"Обновление веб-сайта",{"v":200,"d":"200.00 ₽"},{"v":200,"d":"200.00 ₽"},{"v":200,"d":"200.00 ₽"},{"v":200,"d":"200.00 ₽"},{"v":200,"d":"200.00 ₽"},{"v":1000,"d":"1,000.00 ₽"},{"v":200,"d":"200.00 ₽"},{"v":200,"d":"200.00 ₽"},{"v":200,"d":"200.00 ₽"},{"v":200,"d":"200.00 ₽"},{"v":200,"d":"200.00 ₽"},{"v":1000,"d":"1,000.00 ₽"},{"v":4000,"d":"4,000.00 ₽"}]
[null,"Подготовка рекламных материалов",{"v":5000,"d":"5,000.00 ₽"},{"v":0,"d":"0.00 ₽"},{"v":0,"d":"0.00 ₽"},{"v":5000,"d":"5,000.00 ₽"},{"v":0,"d":"0.00 ₽"},{"v":0,"d":"0.00 ₽"},{"v":5000,"d":"5,000.00 ₽"},{"v":0,"d":"0.00 ₽"},{"v":0,"d":"0.00 ₽"},{"v":5000,"d":"5,000.00 ₽"},{"v":0,"d":"0.00 ₽"},{"v":0,"d":"0.00 ₽"},{"v":20000,"d":"20,000.00 ₽"}]
[null,"Печать рекламных материалов",{"v":200,"d":"200.00 ₽"},{"v":200,"d":"200.00 ₽"},{"v":200,"d":"200.00 ₽"},{"v":200,"d":"200.00 ₽"},{"v":200,"d":"200.00 ₽"},{"v":200,"d":"200.00 ₽"},{"v":200,"d":"200.00 ₽"},{"v":200,"d":"200.00 ₽"},{"v":200,"d":"200.00 ₽"},{"v":200,"d":"200.00 ₽"},{"v":200,"d":"200.00 ₽"},{"v":200,"d":"200.00 ₽"},{"v":2400,"d":"2,400.00 ₽"}]
[null,"Маркетинговые мероприятия",{"v":2000,"d":"2,000.00 ₽"},{"v":2000,"d":"2,000.00 ₽"},{"v":2000,"d":"2,000.00 ₽"},{"v":5000,"d":"5,000.00 ₽"},{"v":2000,"d":"2,000.00 ₽"},{"v":2000,"d":"2,000.00 ₽"},{"v":2000,"d":"2,000.00 ₽"},{"v":5000,"d":"5,000.00 ₽"},{"v":2000,"d":"2,000.00 ₽"},{"v":2000,"d":"2,000.00 ₽"},{"v":2000,"d":"2,000.00 ₽"},{"v":5000,"d":"5,000.00 ₽"},{"v":33000,"d":"33,000.00 ₽"}]
[null,"Прочие расходы",{"v":200,"d":"200.00 ₽"},{"v":200,"d":"200.00 ₽"},{"v":200,"d":"200.00 ₽"},{"v":200,"d":"200.00 ₽"},{"v":200,"d":"200.00 ₽"},{"v":200,"d":"200.00 ₽"},{"v":200,"d":"200.00 ₽"},{"v":200,"d":"200.00 ₽"},{"v":200,"d":"200.00 ₽"},{"v":200,"d":"200.00 ₽"},{"v":200,"d":"200.00 ₽"},{"v":200,"d":"200.00 ₽"},{"v":2400,"d":"2,400.00 ₽"}]
[null,"Промежуточный итог",{"$f":"SUBTOTAL(109,МаркетингПлан[Янв])","v":{"v":8100,"d":"8,100.00 ₽"}},{"$f":"SUBTOTAL(109,МаркетингПлан[Фев])","v":{"v":3100,"d":"3,100.00 ₽"}},{"$f":"SUBTOTAL(109,МаркетингПлан[Мар])","v":{"v":3100,"d":"3,100.00 ₽"}},{"$f":"SUBTOTAL(109,МаркетингПлан[Апр])","v":{"v":11100,"d":"11,100.00 ₽"}},{"$f":"SUBTOTAL(109,МаркетингПлан[Май])","v":{"v":3100,"d":"3,100.00 ₽"}},{"$f":"SUBTOTAL(109,МаркетингПлан[Июн])","v":{"v":3900,"d":"3,900.00 ₽"}},{"$f":"SUBTOTAL(109,МаркетингПлан[Июл])","v":{"v":8100,"d":"8,100.00 ₽"}},{"$f":"SUBTOTAL(109,МаркетингПлан[Авг])","v":{"v":6100,"d":"6,100.00 ₽"}},{"$f":"SUBTOTAL(109,МаркетингПлан[Сен])","v":{"v":3100,"d":"3,100.00 ₽"}},{"$f":"SUBTOTAL(109,МаркетингПлан[Окт])","v":{"v":8100,"d":"8,100.00 ₽"}},{"$f":"SUBTOTAL(109,МаркетингПлан[Ноя])","v":{"v":3100,"d":"3,100.00 ₽"}},{"$f":"SUBTOTAL(109,МаркетингПлан[Дек])","v":{"v":6900,"d":"6,900.00 ₽"}},{"$f":"SUBTOTAL(109,МаркетингПлан[ГОД])","v":{"v":67800,"d":"67,800.00 ₽"}}]
[]
[null,"Обучение/командировки","Янв","Фев","Мар","Апр","Май","Июн","Июл","Авг","Сен","Окт","Ноя","Дек","ГОД"]
[null,"Учебные занятия",{"v":2000,"d":"2,000.00 ₽"},{"v":2000,"d":"2,000.00 ₽"},{"v":2000,"d":"2,000.00 ₽"},{"v":2000,"d":"2,000.00 ₽"},{"v":2000,"d":"2,000.00 ₽"},{"v":2000,"d":"2,000.00 ₽"},{"v":2000,"d":"2,000.00 ₽"},{"v":2000,"d":"2,000.00 ₽"},{"v":2000,"d":"2,000.00 ₽"},{"v":2000,"d":"2,000.00 ₽"},{"v":2000,"d":"2,000.00 ₽"},{"v":2000,"d":"2,000.00 ₽"},{"$f":"SUM(C31:N31)","v":{"v":24000,"d":"24,000.00 ₽"}}]
[null,"Командировочные расходы, связанные с обучением",{"v":2000,"d":"2,000.00 ₽"},{"v":2000,"d":"2,000.00 ₽"},{"v":2000,"d":"2,000.00 ₽"},{"v":2000,"d":"2,000.00 ₽"},{"v":2000,"d":"2,000.00 ₽"},{"v":2000,"d":"2,000.00 ₽"},{"v":2000,"d":"2,000.00 ₽"},{"v":2000,"d":"2,000.00 ₽"},{"v":2000,"d":"2,000.00 ₽"},{"v":2000,"d":"2,000.00 ₽"},{"v":2000,"d":"2,000.00 ₽"},{"v":2000,"d":"2,000.00 ₽"},{"$f":"SUM(C32:N32)","v":{"v":24000,"d":"24,000.00 ₽"}}]
[null,"Промежуточный итог",{"$f":"SUBTOTAL(109,ОбучениеИКомандировкиПлан[Янв])","v":{"v":4000,"d":"4,000.00 ₽"}},{"$f":"SUBTOTAL(109,ОбучениеИКомандировкиПлан[Фев])","v":{"v":4000,"d":"4,000.00 ₽"}},{"$f":"SUBTOTAL(109,ОбучениеИКомандировкиПлан[Мар])","v":{"v":4000,"d":"4,000.00 ₽"}},{"$f":"SUBTOTAL(109,ОбучениеИКомандировкиПлан[Апр])","v":{"v":4000,"d":"4,000.00 ₽"}},{"$f":"SUBTOTAL(109,ОбучениеИКомандировкиПлан[Май])","v":{"v":4000,"d":"4,000.00 ₽"}},{"$f":"SUBTOTAL(109,ОбучениеИКомандировкиПлан[Июн])","v":{"v":4000,"d":"4,000.00 ₽"}},{"$f":"SUBTOTAL(109,ОбучениеИКомандировкиПлан[Июл])","v":{"v":4000,"d":"4,000.00 ₽"}},{"$f":"SUBTOTAL(109,ОбучениеИКомандировкиПлан[Авг])","v":{"v":4000,"d":"4,000.00 ₽"}},{"$f":"SUBTOTAL(109,ОбучениеИКомандировкиПлан[Сен])","v":{"v":4000,"d":"4,000.00 ₽"}},{"$f":"SUBTOTAL(109,ОбучениеИКомандировкиПлан[Окт])","v":{"v":4000,"d":"4,000.00 ₽"}},{"$f":"SUBTOTAL(109,ОбучениеИКомандировкиПлан[Ноя])","v":{"v":4000,"d":"4,000.00 ₽"}},{"$f":"SUBTOTAL(109,ОбучениеИКомандировкиПлан[Дек])","v":{"v":4000,"d":"4,000.00 ₽"}},{"$f":"SUBTOTAL(109,ОбучениеИКомандировкиПлан[ГОД])","v":{"v":48000,"d":"48,000.00 ₽"}}]
[]
[null,"ИТОГИ","Янв","Фев","Мар","Апр","Май","Июн","Июл","Авг","Сен","Окт","Ноя","Дек","Год"]
[null,"Запланированные расходы за месяц",{"$f":"ОбучениеИКомандировкиПлан[[#Totals],[Янв]]+МаркетингПлан[[#Totals],[Янв]]+ОфисПлан[[#Totals],[Янв]]+СотрудникиПлан[[#Totals],[Янв]]","v":{"v":131420,"d":"131,420.00 ₽"}},{"$f":"ОбучениеИКомандировкиПлан[[#Totals],[Фев]]+МаркетингПлан[[#Totals],[Фев]]+ОфисПлан[[#Totals],[Фев]]+СотрудникиПлан[[#Totals],[Фев]]","v":{"v":126820,"d":"126,820.00 ₽"}},{"$f":"ОбучениеИКомандировкиПлан[[#Totals],[Мар]]+МаркетингПлан[[#Totals],[Мар]]+ОфисПлан[[#Totals],[Мар]]+СотрудникиПлан[[#Totals],[Мар]]","v":{"v":126820,"d":"126,820.00 ₽"}},{"$f":"ОбучениеИКомандировкиПлан[[#Totals],[Апр]]+МаркетингПлан[[#Totals],[Апр]]+ОфисПлан[[#Totals],[Апр]]+СотрудникиПлан[[#Totals],[Апр]]","v":{"v":137695,"d":"137,695.00 ₽"}},{"$f":"ОбучениеИКомандировкиПлан[[#Totals],[Май]]+МаркетингПлан[[#Totals],[Май]]+ОфисПлан[[#Totals],[Май]]+СотрудникиПлан[[#Totals],[Май]]","v":{"v":129695,"d":"129,695.00 ₽"}},{"$f":"ОбучениеИКомандировкиПлан[[#Totals],[Июн]]+МаркетингПлан[[#Totals],[Июн]]+ОфисПлан[[#Totals],[Июн]]+СотрудникиПлан[[#Totals],[Июн]]","v":{"v":130495,"d":"130,495.00 ₽"}},{"$f":"ОбучениеИКомандировкиПлан[[#Totals],[Июл]]+МаркетингПлан[[#Totals],[Июл]]+ОфисПлан[[#Totals],[Июл]]+СотрудникиПлан[[#Totals],[Июл]]","v":{"v":134695,"d":"134,695.00 ₽"}},{"$f":"ОбучениеИКомандировкиПлан[[#Totals],[Авг]]+МаркетингПлан[[#Totals],[Авг]]+ОфисПлан[[#Totals],[Авг]]+СотрудникиПлан[[#Totals],[Авг]]","v":{"v":138918,"d":"138,918.00 ₽"}},{"$f":"ОбучениеИКомандировкиПлан[[#Totals],[Сен]]+МаркетингПлан[[#Totals],[Сен]]+ОфисПлан[[#Totals],[Сен]]+СотрудникиПлан[[#Totals],[Сен]]","v":{"v":135918,"d":"135,918.00 ₽"}},{"$f":"ОбучениеИКомандировкиПлан[[#Totals],[Окт]]+МаркетингПлан[[#Totals],[Окт]]+ОфисПлан[[#Totals],[Окт]]+СотрудникиПлан[[#Totals],[Окт]]","v":{"v":140918,"d":"140,918.00 ₽"}},{"$f":"ОбучениеИКомандировкиПлан[[#Totals],[Ноя]]+МаркетингПлан[[#Totals],[Ноя]]+ОфисПлан[[#Totals],[Ноя]]+СотрудникиПлан[[#Totals],[Ноя]]","v":{"v":136218,"d":"136,218.00 ₽"}},{"$f":"ОбучениеИКомандировкиПлан[[#Totals],[Дек]]+МаркетингПлан[[#Totals],[Дек]]+ОфисПлан[[#Totals],[Дек]]+СотрудникиПлан[[#Totals],[Дек]]","v":{"v":140018,"d":"140,018.00 ₽"}},{"$f":"ОбучениеИКомандировкиПлан[[#Totals],[ГОД]]+МаркетингПлан[[#Totals],[ГОД]]+ОфисПлан[[#Totals],[ГОД]]+СотрудникиПлан[[#Totals],[ГОД]]","v":{"v":1609630,"d":"1,609,630.00 ₽"}}]
[null,"ОБЩИЕ запланированные расходы",{"$f":"SUM($C$36:C36)","v":{"v":131420,"d":"131,420.00 ₽"}},{"$f":"SUM($C$36:D36)","v":{"v":258240,"d":"258,240.00 ₽"}},{"$f":"SUM($C$36:E36)","v":{"v":385060,"d":"385,060.00 ₽"}},{"$f":"SUM($C$36:F36)","v":{"v":522755,"d":"522,755.00 ₽"}},{"$f":"SUM($C$36:G36)","v":{"v":652450,"d":"652,450.00 ₽"}},{"$f":"SUM($C$36:H36)","v":{"v":782945,"d":"782,945.00 ₽"}},{"$f":"SUM($C$36:I36)","v":{"v":917640,"d":"917,640.00 ₽"}},{"$f":"SUM($C$36:J36)","v":{"v":1056558,"d":"1,056,558.00 ₽"}},{"$f":"SUM($C$36:K36)","v":{"v":1192476,"d":"1,192,476.00 ₽"}},{"$f":"SUM($C$36:L36)","v":{"v":1333394,"d":"1,333,394.00 ₽"}},{"$f":"SUM($C$36:M36)","v":{"v":1469612,"d":"1,469,612.00 ₽"}},{"$f":"SUM($C$36:N36)","v":{"v":1609630,"d":"1,609,630.00 ₽"}}]

{"sheet":"ФАКТИЧЕСКИЕ РАСХОДЫ","index":2,"n_rows":37,"n_cols":16,"rows_kept":37,"merged":[[1,10,1,12],[2,10,2,12]]}
[{"$nulls":15}," "]
[null,{"$f":"'ЗАПЛАНИРОВАННЫЕ РАСХОДЫ'!B2:D3","v":"Название компании"},{"$nulls":8},{"$f":"заголовок_листа","v":"Подробные оценочные показатели расходов"}]
[{"$nulls":10},"Затененные ячейки содержат вычисления."]
[null,"ФАКТИЧЕСКИЕ РАСХОДЫ","ЯНВ","ФЕВ","МАР","АПР","МАЙ","ИЮН","ИЮЛ","АВГ","СЕН","ОКТ","НОЯ","ДЕК","ГОД"]
[null,"Расходы на сотрудников","Янв","Фев","Мар","Апр","Май","Июн","Июл","Авг","Сен","Окт","Ноя","Дек","ГОД"]
[null,"Зарплата",{"v":85000,"d":"85,000.00 ₽"},{"v":85000,"d":"85,000.00 ₽"},{"v":85000,"d":"85,000.00 ₽"},{"v":88000,"d":"88,000.00 ₽"},{"v":88000,"d":"88,000.00 ₽"},{"v":88000,"d":"88,000.00 ₽"},{"$nulls":6},{"$f":"SUM(C6:N6)","v":{"v":519000,"d":"519,000.00 ₽"}}]
[null,"Премия",{"$f":"C6*0.27","v":{"v":22950,"d":"22,950.00 ₽"}},{"v":22950,"d":"22,950.00 ₽"},{"v":22950,"d":"22,950.00 ₽"},{"v":23760,"d":"23,760.00 ₽"},{"v":23760,"d":"23,760.00 ₽"},{"v":23760,"d":"23,760.00 ₽"},{"v":0,"d":"0.00 ₽"},{"v":0,"d":"0.00 ₽"},{"v":0,"d":"0.00 ₽"},{"v":0,"d":"0.00 ₽"},{"v":0,"d":"0.00 ₽"},{"v":0,"d":"0.00 ₽"},{"$f":"SUM(C7:N7)","v":{"v":140130,"d":"140,130.00 ₽"}}]
[null,"Промежуточный итог",{"$f":"SUBTOTAL(109,СотрудникиФактические[Янв])","v":{"v":107950,"d":"107,950.00 ₽"}},{"$f":"SUBTOTAL(109,СотрудникиФактические[Фев])","v":{"v":107950,"d":"107,950.00 ₽"}},{"$f":"SUBTOTAL(109,СотрудникиФактические[Мар])","v":{"v":107950,"d":"107,950.00 ₽"}},{"$f":"SUBTOTAL(109,СотрудникиФактические[Апр])","v":{"v":111760,"d":"111,760.00 ₽"}},{"$f":"SUBTOTAL(109,СотрудникиФактические[Май])","v":{"v":111760,"d":"111,760.00 ₽"}},{"$f":"SUBTOTAL(109,СотрудникиФактические[Июн])","v":{"v":111760,"d":"111,760.00 ₽"}},{"$f":"SUBTOTAL(109,СотрудникиФактические[Июл])","v":{"v":0,"d":"0.00 ₽"}},{"$f":"SUBTOTAL(109,СотрудникиФактические[Авг])","v":{"v":0,"d":"0.00 ₽"}},{"$f":"SUBTOTAL(109,СотрудникиФактические[Сен])","v":{"v":0,"d":"0.00 ₽"}},{"$f":"SUBTOTAL(109,СотрудникиФактические[Окт])","v":{"v":0,"d":"0.00 ₽"}},{"$f":"SUBTOTAL(109,СотрудникиФактические[Ноя])","v":{"v":0,"d":"0.00 ₽"}},{"$f":"SUBTOTAL(109,СотрудникиФактические[Дек])","v":{"v":0,"d":"0.00 ₽"}},{"$f":"SUBTOTAL(109,СотрудникиФактические[ГОД])","v":{"v":659130,"d":"659,130.00 ₽"}}]
[]
[null,"Расходы на содержание офиса","Янв","Фев","Мар","Апр","Май","Июн","Июл","Авг","Сен","Окт","Ноя","Дек","ГОД"]
[null,"Аренда офисных помещений",{"v":9800,"d":"9,800.00 ₽"},{"v":9800,"d":"9,800.00 ₽"},{"v":9800,"d":"9,800.00 ₽"},{"v":9800,"d":"9,800.00 ₽"},{"v":9800,"d":"9,800.00 ₽"},{"v":9800,"d":"9,800.00 ₽"},{"$nulls":6},{"$f":"SUM(C11:N11)","v":{"v":58800,"d":"58,800.00 ₽"}}]
[null,"Газ",{"v":4,"d":"4.00 ₽"},{"v":430,"d":"430.00 ₽"},{"v":385,"d":"385.00 ₽"},{"v":230,"d":"230.00 ₽"},{"v":87,"d":"87.00 ₽"},{"v":88,"d":"88.00 ₽"},{"$nulls":6},{"v":1224,"d":"1,224.00 ₽"}]
[null,"Электричество",{"v":288,"d":"288.00 ₽"},{"v":278,"d":"278.00 ₽"},{"v":268,"d":"268.00 ₽"},{"v":299,"d":"299.00 ₽"},{"v":306,"d":"306.00 ₽"},{"v":290,"d":"290.00 ₽"},{"$nulls":6},{"v":1729,"d":"1,729.00 ₽"}]
[null,"Вода",{"v":35,"d":"35.00 ₽"},{"v":33,"d":"33.00 ₽"},{"v":34,"d":"34.00 ₽"},{"v":36,"d":"36.00 ₽"},{"v":34,"d":"34.00 ₽"},{"v":36,"d":"36.00 ₽"},{"$nulls":6},{"v":208,"d":"208.00 ₽"}]
[null,"Телефон",{"v":224,"d":"224.00 ₽"},{"v":235,"d":"235.00 ₽"},{"v":265,"d":"265.00 ₽"},{"v":245,"d":"245.00 ₽"},{"v":245,"d":"245.00 ₽"},{"v":220,"d":"220.00 ₽"},{"$nulls":6},{"v":1434,"d":"1,434.00 ₽"}]
[null,"Доступ в Интернет",{"v":180,"d":"180.00 ₽"},{"v":180,"d":"180.00 ₽"},{"v":180,"d":"180.00 ₽"},{"v":180,"d":"180.00 ₽"},{"v":180,"d":"180.00 ₽"},{"v":180,"d":"180.00 ₽"},{"$nulls":6},{"v":1080,"d":"1,080.00 ₽"}]
[null,"Канцтовары",{"v":256,"d":"256.00 ₽"},{"v":142,"d":"142.00 ₽"},{"v":160,"d":"160.00 ₽"},{"v":221,"d":"221.00 ₽"},{"v":256,"d":"256.00 ₽"},{"v":240,"d":"240.00 ₽"},{"$nulls":6},{"v":1275,"d":"1,275.00 ₽"}]
[null,"Безопасность",{"v":600,"d":"600.00 ₽"},{"v":600,"d":"600.00 ₽"},{"v":600,"d":"600.00 ₽"},{"v":600,"d":"600.00 ₽"},{"v":600,"d":"600.00 ₽"},{"v":600,"d":"600.00 ₽"},{"$nulls":6},{"v":3600,"d":"3,600.00 ₽"}]
[null,"Промежуточный итог",{"$f":"SUBTOTAL(109,ОфисФактические[Янв])","v":{"v":11387,"d":"11,387.00 ₽"}},{"$f":"SUBTOTAL(109,ОфисФактические[Фев])","v":{"v":11698,"d":"11,698.00 ₽"}},{"$f":"SUBTOTAL(109,ОфисФактические[Мар])","v":{"v":11692,"d":"11,692.00 ₽"}},{"$f":"SUBTOTAL(109,ОфисФактические[Апр])","v":{"v":11611,"d":"11,611.00 ₽"}},{"$f":"SUBTOTAL(109,ОфисФактические[Май])","v":{"v":11508,"d":"11,508.00 ₽"}},{"$f":"SUBTOTAL(109,ОфисФактические[Июн])","v":{"v":11454,"d":"11,454.00 ₽"}},{"$f":"SUBTOTAL(109,ОфисФактические[Июл])","v":{"v":0,"d":"0.00 ₽"}},{"$f":"SUBTOTAL(109,ОфисФактические[Авг])","v":{"v":0,"d":"0.00 ₽"}},{"$f":"SUBTOTAL(109,ОфисФактические[Сен])","v":{"v":0,"d":"0.00 ₽"}},{"$f":"SUBTOTAL(109,ОфисФактические[Окт])","v":{"v":0,"d":"0.00 ₽"}},{"$f":"SUBTOTAL(109,ОфисФактические[Ноя])","v":{"v":0,"d":"0.00 ₽"}},{"$f":"SUBTOTAL(109,ОфисФактические[Дек])","v":{"v":0,"d":"0.00 ₽"}},{"$f":"SUBTOTAL(109,ОфисФактические[ГОД])","v":{"v":69350,"d":"69,350.00 ₽"}}]
[]
[null,"Расходы на маркетинг","Янв","Фев","Мар","Апр","Май","Июн","Июл","Авг","Сен","Окт","Ноя","Дек","ГОД"]
[null,"Размещение веб-сайта",{"v":500,"d":"500.00 ₽"},{"v":500,"d":"500.00 ₽"},{"v":500,"d":"500.00 ₽"},{"v":500,"d":"500.00 ₽"},{"v":500,"d":"500.00 ₽"},{"v":500,"d":"500.00 ₽"},{"$nulls":6},{"$f":"SUM(C22:N22)","v":{"v":3000,"d":"3,000.00 ₽"}}]
[null,"Обновление веб-сайта",{"v":200,"d":"200.00 ₽"},{"v":200,"d":"200.00 ₽"},{"v":200,"d":"200.00 ₽"},{"v":200,"d":"200.00 ₽"},{"v":200,"d":"200.00 ₽"},{"v":1500,"d":"1,500.00 ₽"},{"$nulls":6},{"v":2500,"d":"2,500.00 ₽"}]
[null,"Подготовка рекламных материалов",{"v":4800,"d":"4,800.00 ₽"},{"v":0,"d":"0.00 ₽"},{"v":0,"d":"0.00 ₽"},{"v":5500,"d":"5,500.00 ₽"},{"v":0,"d":"0.00 ₽"},{"v":0,"d":"0.00 ₽"},{"$nulls":6},{"v":10300,"d":"10,300.00 ₽"}]
[null,"Печать рекламных материалов",{"v":100,"d":"100.00 ₽"},{"v":500,"d":"500.00 ₽"},{"v":100,"d":"100.00 ₽"},{"v":100,"d":"100.00 ₽"},{"v":600,"d":"600.00 ₽"},{"v":180,"d":"180.00 ₽"},{"$nulls":6},{"v":1580,"d":"1,580.00 ₽"}]
[null,"Маркетинговые мероприятия",{"v":1800,"d":"1,800.00 ₽"},{"v":2200,"d":"2,200.00 ₽"},{"v":2200,"d":"2,200.00 ₽"},{"v":4700,"d":"4,700.00 ₽"},{"v":1500,"d":"1,500.00 ₽"},{"v":2300,"d":"2,300.00 ₽"},{"$nulls":6},{"v":14700,"d":"14,700.00 ₽"}]
[null,"Прочие расходы",{"v":145,"d":"145.00 ₽"},{"v":156,"d":"156.00 ₽"},{"v":123,"d":"123.00 ₽"},{"v":223,"d":"223.00 ₽"},{"v":187,"d":"187.00 ₽"},{"v":245,"d":"245.00 ₽"},{"$nulls":6},{"v":1079,"d":"1,079.00 ₽"}]
[null,"Промежуточный итог",{"$f":"SUBTOTAL(109,МаркетингФактические[Янв])","v":{"v":7545,"d":"7,545.00 ₽"}},{"$f":"SUBTOTAL(109,МаркетингФактические[Фев])","v":{"v":3556,"d":"3,556.00 ₽"}},{"$f":"SUBTOTAL(109,МаркетингФактические[Мар])","v":{"v":3123,"d":"3,123.00 ₽"}},{"$f":"SUBTOTAL(109,МаркетингФактические[Апр])","v":{"v":11223,"d":"11,223.00 ₽"}},{"$f":"SUBTOTAL(109,МаркетингФактические[Май])","v":{"v":2987,"d":"2,987.00 ₽"}},{"$f":"SUBTOTAL(109,МаркетингФактические[Июн])","v":{"v":4725,"d":"4,725.00 ₽"}},{"$f":"SUBTOTAL(109,МаркетингФактические[Июл])","v":{"v":0,"d":"0.00 ₽"}},{"$f":"SUBTOTAL(109,МаркетингФактические[Авг])","v":{"v":0,"d":"0.00 ₽"}},{"$f":"SUBTOTAL(109,МаркетингФактические[Сен])","v":{"v":0,"d":"0.00 ₽"}},{"$f":"SUBTOTAL(109,МаркетингФактические[Окт])","v":{"v":0,"d":"0.00 ₽"}},{"$f":"SUBTOTAL(109,МаркетингФактические[Ноя])","v":{"v":0,"d":"0.00 ₽"}},{"$f":"SUBTOTAL(109,МаркетингФактические[Дек])","v":{"v":0,"d":"0.00 ₽"}},{"$f":"SUBTOTAL(109,МаркетингФактические[ГОД])","v":{"v":33159,"d":"33,159.00 ₽"}}]
[]
[null,"Обучение/командировки","Янв","Фев","Мар","Апр","Май","Июн","Июл","Авг","Сен","Окт","Ноя","Дек","ГОД"]
[null,"Учебные занятия",{"v":1600,"d":"1,600.00 ₽"},{"v":2400,"d":"2,400.00 ₽"},{"v":1400,"d":"1,400.00 ₽"},{"v":1600,"d":"1,600.00 ₽"},{"v":1200,"d":"1,200.00 ₽"},{"v":2800,"d":"2,800.00 ₽"},{"$nulls":6},{"$f":"SUM(C31:N31)","v":{"v":11000,"d":"11,000.00 ₽"}}]
[null,"Командировочные расходы, связанные с обучением",{"v":1200,"d":"1,200.00 ₽"},{"v":2200,"d":"2,200.00 ₽"},{"v":1400,"d":"1,400.00 ₽"},{"v":1200,"d":"1,200.00 ₽"},{"v":800,"d":"800.00 ₽"},{"v":3500,"d":"3,500.00 ₽"},{"$nulls":6},{"$f":"SUM(C32:N32)","v":{"v":10300,"d":"10,300.00 ₽"}}]
[null,"Промежуточный итог",{"$f":"SUBTOTAL(109,ОбучениеИКомандировкиФактические[Янв])","v":{"v":2800,"d":"2,800.00 ₽"}},{"$f":"SUBTOTAL(109,ОбучениеИКомандировкиФактические[Фев])","v":{"v":4600,"d":"4,600.00 ₽"}},{"$f":"SUBTOTAL(109,ОбучениеИКомандировкиФактические[Мар])","v":{"v":2800,"d":"2,800.00 ₽"}},{"$f":"SUBTOTAL(109,ОбучениеИКомандировкиФактические[Апр])","v":{"v":2800,"d":"2,800.00 ₽"}},{"$f":"SUBTOTAL(109,ОбучениеИКомандировкиФактические[Май])","v":{"v":2000,"d":"2,000.00 ₽"}},{"$f":"SUBTOTAL(109,ОбучениеИКомандировкиФактические[Июн])","v":{"v":6300,"d":"6,300.00 ₽"}},{"$f":"SUBTOTAL(109,ОбучениеИКомандировкиФактические[Июл])","v":{"v":0,"d":"0.00 ₽"}},{"$f":"SUBTOTAL(109,ОбучениеИКомандировкиФактические[Авг])","v":{"v":0,"d":"0.00 ₽"}},{"$f":"SUBTOTAL(109,ОбучениеИКомандировкиФактические[Сен])","v":{"v":0,"d":"0.00 ₽"}},{"$f":"SUBTOTAL(109,ОбучениеИКомандировкиФактические[Окт])","v":{"v":0,"d":"0.00 ₽"}},{"$f":"SUBTOTAL(109,ОбучениеИКомандировкиФактические[Ноя])","v":{"v":0,"d":"0.00 ₽"}},{"$f":"SUBTOTAL(109,ОбучениеИКомандировкиФактические[Дек])","v":{"v":0,"d":"0.00 ₽"}},{"$f":"SUBTOTAL(109,ОбучениеИКомандировкиФактические[ГОД])","v":{"v":21300,"d":"21,300.00 ₽"}}]
[]
[null,"ОБЩИЕ запланированные расходы","Янв","Фев","Мар","Апр","Май","Июн","Июл","Авг","Сен","Окт","Ноя","Дек","Год"]
[null,"Фактические расходы за месяц",{"$f":"ОбучениеИКомандировкиФактические[[#Totals],[Янв]]+МаркетингФактические[[#Totals],[Янв]]+ОфисФактические[[#Totals],[Янв]]+СотрудникиФактические[[#Totals],[Янв]]","v":{"v":129682,"d":"129,682.00 ₽"}},{"$f":"ОбучениеИКомандировкиФактические[[#Totals],[Фев]]+МаркетингФактические[[#Totals],[Фев]]+ОфисФактические[[#Totals],[Фев]]+СотрудникиФактические[[#Totals],[Фев]]","v":{"v":127804,"d":"127,804.00 ₽"}},{"$f":"ОбучениеИКомандировкиФактические[[#Totals],[Мар]]+МаркетингФактические[[#Totals],[Мар]]+ОфисФактические[[#Totals],[Мар]]+СотрудникиФактические[[#Totals],[Мар]]","v":{"v":125565,"d":"125,565.00 ₽"}},{"$f":"ОбучениеИКомандировкиФактические[[#Totals],[Апр]]+МаркетингФактические[[#Totals],[Апр]]+ОфисФактические[[#Totals],[Апр]]+СотрудникиФактические[[#Totals],[Апр]]","v":{"v":137394,"d":"137,394.00 ₽"}},{"$f":"ОбучениеИКомандировкиФактические[[#Totals],[Май]]+МаркетингФактические[[#Totals],[Май]]+ОфисФактические[[#Totals],[Май]]+СотрудникиФактические[[#Totals],[Май]]","v":{"v":128255,"d":"128,255.00 ₽"}},{"$f":"ОбучениеИКомандировкиФактические[[#Totals],[Июн]]+МаркетингФактические[[#Totals],[Июн]]+ОфисФактические[[#Totals],[Июн]]+СотрудникиФактические[[#Totals],[Июн]]","v":{"v":134239,"d":"134,239.00 ₽"}},{"$f":"ОбучениеИКомандировкиФактические[[#Totals],[Июл]]+МаркетингФактические[[#Totals],[Июл]]+ОфисФактические[[#Totals],[Июл]]+СотрудникиФактические[[#Totals],[Июл]]","v":{"v":0,"d":"0.00 ₽"}},{"$f":"ОбучениеИКомандировкиФактические[[#Totals],[Авг]]+МаркетингФактические[[#Totals],[Авг]]+ОфисФактические[[#Totals],[Авг]]+СотрудникиФактические[[#Totals],[Авг]]","v":{"v":0,"d":"0.00 ₽"}},{"$f":"ОбучениеИКомандировкиФактические[[#Totals],[Сен]]+МаркетингФактические[[#Totals],[Сен]]+ОфисФактические[[#Totals],[Сен]]+СотрудникиФактические[[#Totals],[Сен]]","v":{"v":0,"d":"0.00 ₽"}},{"$f":"ОбучениеИКомандировкиФактические[[#Totals],[Окт]]+МаркетингФактические[[#Totals],[Окт]]+ОфисФактические[[#Totals],[Окт]]+СотрудникиФактические[[#Totals],[Окт]]","v":{"v":0,"d":"0.00 ₽"}},{"$f":"ОбучениеИКомандировкиФактические[[#Totals],[Ноя]]+МаркетингФактические[[#Totals],[Ноя]]+ОфисФактические[[#Totals],[Ноя]]+СотрудникиФактические[[#Totals],[Ноя]]","v":{"v":0,"d":"0.00 ₽"}},{"$f":"ОбучениеИКомандировкиФактические[[#Totals],[Дек]]+МаркетингФактические[[#Totals],[Дек]]+ОфисФактические[[#Totals],[Дек]]+СотрудникиФактические[[#Totals],[Дек]]","v":{"v":0,"d":"0.00 ₽"}},{"$f":"ОбучениеИКомандировкиФактические[[#Totals],[ГОД]]+МаркетингФактические[[#Totals],[ГОД]]+ОфисФактические[[#Totals],[ГОД]]+СотрудникиФактические[[#Totals],[ГОД]]","v":{"v":782939,"d":"782,939.00 ₽"}}]
[null,"ОБЩИЕ фактические расходы",{"$f":"SUM($C$36:C36)","v":{"v":129682,"d":"129,682.00 ₽"}},{"$f":"SUM($C$36:D36)","v":{"v":257486,"d":"257,486.00 ₽"}},{"$f":"SUM($C$36:E36)","v":{"v":383051,"d":"383,051.00 ₽"}},{"$f":"SUM($C$36:F36)","v":{"v":520445,"d":"520,445.00 ₽"}},{"$f":"SUM($C$36:G36)","v":{"v":648700,"d":"648,700.00 ₽"}},{"$f":"SUM($C$36:H36)","v":{"v":782939,"d":"782,939.00 ₽"}},{"$f":"SUM($C$36:I36)","v":{"v":782939,"d":"782,939.00 ₽"}},{"$f":"SUM($C$36:J36)","v":{"v":782939,"d":"782,939.00 ₽"}},{"$f":"SUM($C$36:K36)","v":{"v":782939,"d":"782,939.00 ₽"}},{"$f":"SUM($C$36:L36)","v":{"v":782939,"d":"782,939.00 ₽"}},{"$f":"SUM($C$36:M36)","v":{"v":782939,"d":"782,939.00 ₽"}},{"$f":"SUM($C$36:N36)","v":{"v":782939,"d":"782,939.00 ₽"}}]

{"sheet":"ОТКЛОНЕНИЯ ПО РАСХОДАМ","index":3,"n_rows":37,"n_cols":16,"rows_kept":37,"merged":[[1,10,1,12],[2,10,2,12]]}
[{"$nulls":15}," "]
[null,{"$f":"'ЗАПЛАНИРОВАННЫЕ РАСХОДЫ'!B2:D3","v":"Название компании"},{"$nulls":8},{"$f":"заголовок_листа","v":"Подробные оценочные показатели расходов"}]
[{"$nulls":10},"Затененные ячейки содержат вычисления."]
[null,"ОТКЛОНЕНИЯ ПО РАСХОДАМ","ЯНВ","ФЕВ","МАР","АПР","МАЙ","ИЮН","ИЮЛ","АВГ","СЕН","ОКТ","НОЯ","ДЕК","ГОД"]
[null,"Расходы на сотрудников","Янв","Фев","Мар","Апр","Май","Июн","Июл","Авг","Сен","Окт","Ноя","Дек","ГОД"]
[null,"Зарплата",{"$f":"INDEX(СотрудникиПлан[],MATCH(INDEX(СотрудникиОтклонение[],ROW()-ROW(СотрудникиОтклонение[[#Headers],[Янв]]),1),INDEX(СотрудникиПлан[],,1),0),MATCH(СотрудникиОтклонение[[#Headers],[Янв]],СотрудникиПлан[#Headers],0))-INDEX(СотрудникиФактические[],MATCH(INDEX(СотрудникиОтклонение[],ROW()-ROW(СотрудникиОтклонение[[#Headers],[Янв]]),1),INDEX(СотрудникиПлан[],,1),0),MATCH(СотрудникиОтклонение[[#Headers],[Янв]],СотрудникиФактические[#Headers],0))","v":{"v":0,"d":"0.00 ₽"}},{"$f":"INDEX(СотрудникиПлан[],MATCH(INDEX(СотрудникиОтклонение[],ROW()-ROW(СотрудникиОтклонение[[#Headers],[Фев]]),1),INDEX(СотрудникиПлан[],,1),0),MATCH(СотрудникиОтклонение[[#Headers],[Фев]],СотрудникиПлан[#Headers],0))-INDEX(СотрудникиФактические[],MATCH(INDEX(СотрудникиОтклонение[],ROW()-ROW(СотрудникиОтклонение[[#Headers],[Фев]]),1),INDEX(СотрудникиПлан[],,1),0),MATCH(СотрудникиОтклонение[[#Headers],[Фев]],СотрудникиФактические[#Headers],0))","v":{"v":0,"d":"0.00 ₽"}},{"$f":"INDEX(СотрудникиПлан[],MATCH(INDEX(СотрудникиОтклонение[],ROW()-ROW(СотрудникиОтклонение[[#Headers],[Мар]]),1),INDEX(СотрудникиПлан[],,1),0),MATCH(СотрудникиОтклонение[[#Headers],[Мар]],СотрудникиПлан[#Headers],0))-INDEX(СотрудникиФактические[],MATCH(INDEX(СотрудникиОтклонение[],ROW()-ROW(СотрудникиОтклонение[[#Headers],[Мар]]),1),INDEX(СотрудникиПлан[],,1),0),MATCH(СотрудникиОтклонение[[#Headers],[Мар]],СотрудникиФактические[#Headers],0))","v":{"v":0,"d":"0.00 ₽"}},{"$f":"INDEX(СотрудникиПлан[],MATCH(INDEX(СотрудникиОтклонение[],ROW()-ROW(СотрудникиОтклонение[[#Headers],[Апр]]),1),INDEX(СотрудникиПлан[],,1),0),MATCH(СотрудникиОтклонение[[#Headers],[Апр]],СотрудникиПлан[#Headers],0))-INDEX(СотрудникиФактические[],MATCH(INDEX(СотрудникиОтклонение[],ROW()-ROW(СотрудникиОтклонение[[#Headers],[Апр]]),1),INDEX(СотрудникиПлан[],,1),0),MATCH(СотрудникиОтклонение[[#Headers],[Апр]],СотрудникиФактические[#Headers],0))","v":{"v":-500,"d":"-500.00 ₽"}},{"$f":"INDEX(СотрудникиПлан[],MATCH(INDEX(СотрудникиОтклонение[],ROW()-ROW(СотрудникиОтклонение[[#Headers],[Май]]),1),INDEX(СотрудникиПлан[],,1),0),MATCH(СотрудникиОтклонение[[#Headers],[Май]],СотрудникиПлан[#Headers],0))-INDEX(СотрудникиФактические[],MATCH(INDEX(СотрудникиОтклонение[],ROW()-ROW(СотрудникиОтклонение[[#Headers],[Май]]),1),INDEX(СотрудникиПлан[],,1),0),MATCH(СотрудникиОтклонение[[#Headers],[Май]],СотрудникиФактические[#Headers],0))","v":{"v":-500,"d":"-500.00 ₽"}},{"$f":"INDEX(СотрудникиПлан[],MATCH(INDEX(СотрудникиОтклонение[],ROW()-ROW(СотрудникиОтклонение[[#Headers],[Июн]]),1),INDEX(СотрудникиПлан[],,1),0),MATCH(СотрудникиОтклонение[[#Headers],[Июн]],СотрудникиПлан[#Headers],0))-INDEX(СотрудникиФактические[],MATCH(INDEX(СотрудникиОтклонение[],ROW()-ROW(СотрудникиОтклонение[[#Headers],[Июн]]),1),INDEX(СотрудникиПлан[],,1),0),MATCH(СотрудникиОтклонение[[#Headers],[Июн]],СотрудникиФактические[#Headers],0))","v":{"v":-500,"d":"-500.00 ₽"}},{"$f":"INDEX(СотрудникиПлан[],MATCH(INDEX(СотрудникиОтклонение[],ROW()-ROW(СотрудникиОтклонение[[#Headers],[Июл]]),1),INDEX(СотрудникиПлан[],,1),0),MATCH(СотрудникиОтклонение[[#Headers],[Июл]],СотрудникиПлан[#Headers],0))-INDEX(СотрудникиФактические[],MATCH(INDEX(СотрудникиОтклонение[],ROW()-ROW(СотрудникиОтклонение[[#Headers],[Июл]]),1),INDEX(СотрудникиПлан[],,1),0),MATCH(СотрудникиОтклонение[[#Headers],[Июл]],СотрудникиФактические[#Headers],0))","v":{"v":87500,"d":"87,500.00 ₽"}},{"$f":"INDEX(СотрудникиПлан[],MATCH(INDEX(СотрудникиОтклонение[],ROW()-ROW(СотрудникиОтклонение[[#Headers],[Авг]]),1),INDEX(СотрудникиПлан[],,1),0),MATCH(СотрудникиОтклонение[[#Headers],[Авг]],СотрудникиПлан[#Headers],0))-INDEX(СотрудникиФактические[],MATCH(INDEX(СотрудникиОтклонение[],ROW()-ROW(СотрудникиОтклонение[[#Headers],[Авг]]),1),INDEX(СотрудникиПлан[],,1),0),MATCH(СотрудникиОтклонение[[#Headers],[Авг]],СотрудникиФактические[#Headers],0))","v":{"v":92400,"d":"92,400.00 ₽"}},{"$f":"INDEX(СотрудникиПлан[],MATCH(INDEX(СотрудникиОтклонение[],ROW()-ROW(СотрудникиОтклонение[[#Headers],[Сен]]),1),INDEX(СотрудникиПлан[],,1),0),MATCH(СотрудникиОтклонение[[#Headers],[Сен]],СотрудникиПлан[#Headers],0))-INDEX(СотрудникиФактические[],MATCH(INDEX(СотрудникиОтклонение[],ROW()-ROW(СотрудникиОтклонение[[#Headers],[Сен]]),1),INDEX(СотрудникиПлан[],,1),0),MATCH(СотрудникиОтклонение[[#Headers],[Сен]],СотрудникиФактические[#Headers],0))","v":{"v":92400,"d":"92,400.00 ₽"}},{"$f":"INDEX(СотрудникиПлан[],MATCH(INDEX(СотрудникиОтклонение[],ROW()-ROW(СотрудникиОтклонение[[#Headers],[Окт]]),1),INDEX(СотрудникиПлан[],,1),0),MATCH(СотрудникиОтклонение[[#Headers],[Окт]],СотрудникиПлан[#Headers],0))-INDEX(СотрудникиФактические[],MATCH(INDEX(СотрудникиОтклонение[],ROW()-ROW(СотрудникиОтклонение[[#Headers],[Окт]]),1),INDEX(СотрудникиПлан[],,1),0),MATCH(СотрудникиОтклонение[[#Headers],[Окт]],СотрудникиФактические[#Headers],0))","v":{"v":92400,"d":"92,400.00 ₽"}},{"$f":"INDEX(СотрудникиПлан[],MATCH(INDEX(СотрудникиОтклонение[],ROW()-ROW(СотрудникиОтклонение[[#Headers],[Ноя]]),1),INDEX(СотрудникиПлан[],,1),0),MATCH(СотрудникиОтклонение[[#Headers],[Ноя]],СотрудникиПлан[#Headers],0))-INDEX(СотрудникиФактические[],MATCH(INDEX(СотрудникиОтклонение[],ROW()-ROW(СотрудникиОтклонение[[#Headers],[Ноя]]),1),INDEX(СотрудникиПлан[],,1),0),MATCH(СотрудникиОтклонение[[#Headers],[Ноя]],СотрудникиФактические[#Headers],0))","v":{"v":92400,"d":"92,400.00 ₽"}},{"$f":"INDEX(СотрудникиПлан[],MATCH(INDEX(СотрудникиОтклонение[],ROW()-ROW(СотрудникиОтклонение[[#Headers],[Дек]]),1),INDEX(СотрудникиПлан[],,1),0),MATCH(СотрудникиОтклонение[[#Headers],[Дек]],СотрудникиПлан[#Headers],0))-INDEX(СотрудникиФактические[],MATCH(INDEX(СотрудникиОтклонение[],ROW()-ROW(СотрудникиОтклонение[[#Headers],[Дек]]),1),INDEX(СотрудникиПлан[],,1),0),MATCH(СотрудникиОтклонение[[#Headers],[Дек]],СотрудникиФактические[#Headers],0))","v":{"v":92400,"d":"92,400.00 ₽"}},{"$f":"SUM(СотрудникиОтклонение[[#This Row],[Янв]:[Дек]])","v":{"v":548000,"d":"548,000.00 ₽"}}]
[null,"Премия",{"$f":"INDEX(СотрудникиПлан[],MATCH(INDEX(СотрудникиОтклонение[],ROW()-ROW(СотрудникиОтклонение[[#Headers],[Янв]]),1),INDEX(СотрудникиПлан[],,1),0),MATCH(СотрудникиОтклонение[[#Headers],[Янв]],СотрудникиПлан[#Headers],0))-INDEX(СотрудникиФактические[],MATCH(INDEX(СотрудникиОтклонение[],ROW()-ROW(СотрудникиОтклонение[[#Headers],[Янв]]),1),INDEX(СотрудникиПлан[],,1),0),MATCH(СотрудникиОтклонение[[#Headers],[Янв]],СотрудникиФактические[#Headers],0))","v":{"v":0,"d":"0.00 ₽"}},{"$f":"INDEX(СотрудникиПлан[],MATCH(INDEX(СотрудникиОтклонение[],ROW()-ROW(СотрудникиОтклонение[[#Headers],[Фев]]),1),INDEX(СотрудникиПлан[],,1),0),MATCH(СотрудникиОтклонение[[#Headers],[Фев]],СотрудникиПлан[#Headers],0))-INDEX(СотрудникиФактические[],MATCH(INDEX(СотрудникиОтклонение[],ROW()-ROW(СотрудникиОтклонение[[#Headers],[Фев]]),1),INDEX(СотрудникиПлан[],,1),0),MATCH(СотрудникиОтклонение[[#Headers],[Фев]],СотрудникиФактические[#Headers],0))","v":{"v":0,"d":"0.00 ₽"}},{"$f":"INDEX(СотрудникиПлан[],MATCH(INDEX(СотрудникиОтклонение[],ROW()-ROW(СотрудникиОтклонение[[#Headers],[Мар]]),1),INDEX(СотрудникиПлан[],,1),0),MATCH(СотрудникиОтклонение[[#Headers],[Мар]],СотрудникиПлан[#Headers],0))-INDEX(СотрудникиФактические[],MATCH(INDEX(СотрудникиОтклонение[],ROW()-ROW(СотрудникиОтклонение[[#Headers],[Мар]]),1),INDEX(СотрудникиПлан[],,1),0),MATCH(СотрудникиОтклонение[[#Headers],[Мар]],СотрудникиФактические[#Headers],0))","v":{"v":0,"d":"0.00 ₽"}},{"$f":"INDEX(СотрудникиПлан[],MATCH(INDEX(СотрудникиОтклонение[],ROW()-ROW(СотрудникиОтклонение[[#Headers],[Апр]]),1),INDEX(СотрудникиПлан[],,1),0),MATCH(СотрудникиОтклонение[[#Headers],[Апр]],СотрудникиПлан[#Headers],0))-INDEX(СотрудникиФактические[],MATCH(INDEX(СотрудникиОтклонение[],ROW()-ROW(СотрудникиОтклонение[[#Headers],[Апр]]),1),INDEX(СотрудникиПлан[],,1),0),MATCH(СотрудникиОтклонение[[#Headers],[Апр]],СотрудникиФактические[#Headers],0))","v":{"v":-135,"d":"-135.00 ₽"}},{"$f":"INDEX(СотрудникиПлан[],MATCH(INDEX(СотрудникиОтклонение[],ROW()-ROW(СотрудникиОтклонение[[#Headers],[Май]]),1),INDEX(СотрудникиПлан[],,1),0),MATCH(СотрудникиОтклонение[[#Headers],[Май]],СотрудникиПлан[#Headers],0))-INDEX(СотрудникиФактические[],MATCH(INDEX(СотрудникиОтклонение[],ROW()-ROW(СотрудникиОтклонение[[#Headers],[Май]]),1),INDEX(СотрудникиПлан[],,1),0),MATCH(СотрудникиОтклонение[[#Headers],[Май]],СотрудникиФактические[#Headers],0))","v":{"v":-135,"d":"-135.00 ₽"}},{"$f":"INDEX(СотрудникиПлан[],MATCH(INDEX(СотрудникиОтклонение[],ROW()-ROW(СотрудникиОтклонение[[#Headers],[Июн]]),1),INDEX(СотрудникиПлан[],,1),0),MATCH(СотрудникиОтклонение[[#Headers],[Июн]],СотрудникиПлан[#Headers],0))-INDEX(СотрудникиФактические[],MATCH(INDEX(СотрудникиОтклонение[],ROW()-ROW(СотрудникиОтклонение[[#Headers],[Июн]]),1),INDEX(СотрудникиПлан[],,1),0),MATCH(СотрудникиОтклонение[[#Headers],[Июн]],СотрудникиФактические[#Headers],0))","v":{"v":-135,"d":"-135.00 ₽"}},{"$f":"INDEX(СотрудникиПлан[],MATCH(INDEX(СотрудникиОтклонение[],ROW()-ROW(СотрудникиОтклонение[[#Headers],[Июл]]),1),INDEX(СотрудникиПлан[],,1),0),MATCH(СотрудникиОтклонение[[#Headers],[Июл]],СотрудникиПлан[#Headers],0))-INDEX(СотрудникиФактические[],MATCH(INDEX(СотрудникиОтклонение[],ROW()-ROW(СотрудникиОтклонение[[#Headers],[Июл]]),1),INDEX(СотрудникиПлан[],,1),0),MATCH(СотрудникиОтклонение[[#Headers],[Июл]],СотрудникиФактические[#Headers],0))","v":{"v":23625,"d":"23,625.00 ₽"}},{"$f":"INDEX(СотрудникиПлан[],MATCH(INDEX(СотрудникиОтклонение[],ROW()-ROW(СотрудникиОтклонение[[#Headers],[Авг]]),1),INDEX(СотрудникиПлан[],,1),0),MATCH(СотрудникиОтклонение[[#Headers],[Авг]],СотрудникиПлан[#Headers],0))-INDEX(СотрудникиФактические[],MATCH(INDEX(СотрудникиОтклонение[],ROW()-ROW(СотрудникиОтклонение[[#Headers],[Авг]]),1),INDEX(СотрудникиПлан[],,1),0),MATCH(СотрудникиОтклонение[[#Headers],[Авг]],СотрудникиФактические[#Headers],0))","v":{"v":24948,"d":"24,948.00 ₽"}},{"$f":"INDEX(СотрудникиПлан[],MATCH(INDEX(СотрудникиОтклонение[],ROW()-ROW(СотрудникиОтклонение[[#Headers],[Сен]]),1),INDEX(СотрудникиПлан[],,1),0),MATCH(СотрудникиОтклонение[[#Headers],[Сен]],СотрудникиПлан[#Headers],0))-INDEX(СотрудникиФактические[],MATCH(INDEX(СотрудникиОтклонение[],ROW()-ROW(СотрудникиОтклонение[[#Headers],[Сен]]),1),INDEX(СотрудникиПлан[],,1),0),MATCH(СотрудникиОтклонение[[#Headers],[Сен]],СотрудникиФактические[#Headers],0))","v":{"v":24948,"d":"24,948.00 ₽"}},{"$f":"INDEX(СотрудникиПлан[],MATCH(INDEX(СотрудникиОтклонение[],ROW()-ROW(СотрудникиОтклонение[[#Headers],[Окт]]),1),INDEX(СотрудникиПлан[],,1),0),MATCH(СотрудникиОтклонение[[#Headers],[Окт]],СотрудникиПлан[#Headers],0))-INDEX(СотрудникиФактические[],MATCH(INDEX(СотрудникиОтклонение[],ROW()-ROW(СотрудникиОтклонение[[#Headers],[Окт]]),1),INDEX(СотрудникиПлан[],,1),0),MATCH(СотрудникиОтклонение[[#Headers],[Окт]],СотрудникиФактические[#Headers],0))","v":{"v":24948,"d":"24,948.00 ₽"}},{"$f":"INDEX(СотрудникиПлан[],MATCH(INDEX(СотрудникиОтклонение[],ROW()-ROW(СотрудникиОтклонение[[#Headers],[Ноя]]),1),INDEX(СотрудникиПлан[],,1),0),MATCH(СотрудникиОтклонение[[#Headers],[Ноя]],СотрудникиПлан[#Headers],0))-INDEX(СотрудникиФактические[],MATCH(INDEX(СотрудникиОтклонение[],ROW()-ROW(СотрудникиОтклонение[[#Headers],[Ноя]]),1),INDEX(СотрудникиПлан[],,1),0),MATCH(СотрудникиОтклонение[[#Headers],[Ноя]],СотрудникиФактические[#Headers],0))","v":{"v":24948,"d":"24,948.00 ₽"}},{"$f":"INDEX(СотрудникиПлан[],MATCH(INDEX(СотрудникиОтклонение[],ROW()-ROW(СотрудникиОтклонение[[#Headers],[Дек]]),1),INDEX(СотрудникиПлан[],,1),0),MATCH(СотрудникиОтклонение[[#Headers],[Дек]],СотрудникиПлан[#Headers],0))-INDEX(СотрудникиФактические[],MATCH(INDEX(СотрудникиОтклонение[],ROW()-ROW(СотрудникиОтклонение[[#Headers],[Дек]]),1),INDEX(СотрудникиПлан[],,1),0),MATCH(СотрудникиОтклонение[[#Headers],[Дек]],СотрудникиФактические[#Headers],0))","v":{"v":24948,"d":"24,948.00 ₽"}},{"$f":"SUM(СотрудникиОтклонение[[#This Row],[Янв]:[Дек]])","v":{"v":147960,"d":"147,960.00 ₽"}}]
[null,"Промежуточный итог",{"$f":"SUBTOTAL(109,СотрудникиОтклонение[Янв])","v":{"v":0,"d":"0.00 ₽"}},{"$f":"SUBTOTAL(109,СотрудникиОтклонение[Фев])","v":{"v":0,"d":"0.00 ₽"}},{"$f":"SUBTOTAL(109,СотрудникиОтклонение[Мар])","v":{"v":0,"d":"0.00 ₽"}},{"$f":"SUBTOTAL(109,СотрудникиОтклонение[Апр])","v":{"v":-635,"d":"-635.00 ₽"}},{"$f":"SUBTOTAL(109,СотрудникиОтклонение[Май])","v":{"v":-635,"d":"-635.00 ₽"}},{"$f":"SUBTOTAL(109,СотрудникиОтклонение[Июн])","v":{"v":-635,"d":"-635.00 ₽"}},{"$f":"SUBTOTAL(109,СотрудникиОтклонение[Июл])","v":{"v":111125,"d":"111,125.00 ₽"}},{"$f":"SUBTOTAL(109,СотрудникиОтклонение[Авг])","v":{"v":117348,"d":"117,348.00 ₽"}},{"$f":"SUBTOTAL(109,СотрудникиОтклонение[Сен])","v":{"v":117348,"d":"117,348.00 ₽"}},{"$f":"SUBTOTAL(109,СотрудникиОтклонение[Окт])","v":{"v":117348,"d":"117,348.00 ₽"}},{"$f":"SUBTOTAL(109,СотрудникиОтклонение[Ноя])","v":{"v":117348,"d":"117,348.00 ₽"}},{"$f":"SUBTOTAL(109,СотрудникиОтклонение[Дек])","v":{"v":117348,"d":"117,348.00 ₽"}},{"$f":"SUBTOTAL(109,СотрудникиОтклонение[ГОД])","v":{"v":695960,"d":"695,960.00 ₽"}}]
[]
[null,"Расходы на содержание офиса","Янв","Фев","Мар","Апр","Май","Июн","Июл","Авг","Сен","Окт","Ноя","Дек","ГОД"]
[null,"Аренда офисных помещений",{"$f":"INDEX(ОфисПлан[],MATCH(INDEX(ОфисОтклонение[],ROW()-ROW(ОфисОтклонение[[#Headers],[Янв]]),1),INDEX(ОфисПлан[],,1),0),MATCH(ОфисОтклонение[[#Headers],[Янв]],ОфисПлан[#Headers],0))-INDEX(ОфисФактические[],MATCH(INDEX(ОфисОтклонение[],ROW()-ROW(ОфисОтклонение[[#Headers],[Янв]]),1),INDEX(ОфисПлан[],,1),0),MATCH(ОфисОтклонение[[#Headers],[Янв]],ОфисФактические[#Headers],0))","v":{"v":0,"d":"0.00 ₽"}},{"$f":"INDEX(ОфисПлан[],MATCH(INDEX(ОфисОтклонение[],ROW()-ROW(ОфисОтклонение[[#Headers],[Фев]]),1),INDEX(ОфисПлан[],,1),0),MATCH(ОфисОтклонение[[#Headers],[Фев]],ОфисПлан[#Headers],0))-INDEX(ОфисФактические[],MATCH(INDEX(ОфисОтклонение[],ROW()-ROW(ОфисОтклонение[[#Headers],[Фев]]),1),INDEX(ОфисПлан[],,1),0),MATCH(ОфисОтклонение[[#Headers],[Фев]],ОфисФактические[#Headers],0))","v":{"v":0,"d":"0.00 ₽"}},{"$f":"INDEX(ОфисПлан[],MATCH(INDEX(ОфисОтклонение[],ROW()-ROW(ОфисОтклонение[[#Headers],[Мар]]),1),INDEX(ОфисПлан[],,1),0),MATCH(ОфисОтклонение[[#Headers],[Мар]],ОфисПлан[#Headers],0))-INDEX(ОфисФактические[],MATCH(INDEX(ОфисОтклонение[],ROW()-ROW(ОфисОтклонение[[#Headers],[Мар]]),1),INDEX(ОфисПлан[],,1),0),MATCH(ОфисОтклонение[[#Headers],[Мар]],ОфисФактические[#Headers],0))","v":{"v":0,"d":"0.00 ₽"}},{"$f":"INDEX(ОфисПлан[],MATCH(INDEX(ОфисОтклонение[],ROW()-ROW(ОфисОтклонение[[#Headers],[Апр]]),1),INDEX(ОфисПлан[],,1),0),MATCH(ОфисОтклонение[[#Headers],[Апр]],ОфисПлан[#Headers],0))-INDEX(ОфисФактические[],MATCH(INDEX(ОфисОтклонение[],ROW()-ROW(ОфисОтклонение[[#Headers],[Апр]]),1),INDEX(ОфисПлан[],,1),0),MATCH(ОфисОтклонение[[#Headers],[Апр]],ОфисФактические[#Headers],0))","v":{"v":0,"d":"0.00 ₽"}},{"$f":"INDEX(ОфисПлан[],MATCH(INDEX(ОфисОтклонение[],ROW()-ROW(ОфисОтклонение[[#Headers],[Май]]),1),INDEX(ОфисПлан[],,1),0),MATCH(ОфисОтклонение[[#Headers],[Май]],ОфисПлан[#Headers],0))-INDEX(ОфисФактические[],MATCH(INDEX(ОфисОтклонение[],ROW()-ROW(ОфисОтклонение[[#Headers],[Май]]),1),INDEX(ОфисПлан[],,1),0),MATCH(ОфисОтклонение[[#Headers],[Май]],ОфисФактические[#Headers],0))","v":{"v":0,"d":"0.00 ₽"}},{"$f":"INDEX(ОфисПлан[],MATCH(INDEX(ОфисОтклонение[],ROW()-ROW(ОфисОтклонение[[#Headers],[Июн]]),1),INDEX(ОфисПлан[],,1),0),MATCH(ОфисОтклонение[[#Headers],[Июн]],ОфисПлан[#Headers],0))-INDEX(ОфисФактические[],MATCH(INDEX(ОфисОтклонение[],ROW()-ROW(ОфисОтклонение[[#Headers],[Июн]]),1),INDEX(ОфисПлан[],,1),0),MATCH(ОфисОтклонение[[#Headers],[Июн]],ОфисФактические[#Headers],0))","v":{"v":0,"d":"0.00 ₽"}},{"$f":"INDEX(ОфисПлан[],MATCH(INDEX(ОфисОтклонение[],ROW()-ROW(ОфисОтклонение[[#Headers],[Июл]]),1),INDEX(ОфисПлан[],,1),0),MATCH(ОфисОтклонение[[#Headers],[Июл]],ОфисПлан[#Headers],0))-INDEX(ОфисФактические[],MATCH(INDEX(ОфисОтклонение[],ROW()-ROW(ОфисОтклонение[[#Headers],[Июл]]),1),INDEX(ОфисПлан[],,1),0),MATCH(ОфисОтклонение[[#Headers],[Июл]],ОфисФактические[#Headers],0))","v":{"v":9800,"d":"9,800.00 ₽"}},{"$f":"INDEX(ОфисПлан[],MATCH(INDEX(ОфисОтклонение[],ROW()-ROW(ОфисОтклонение[[#Headers],[Авг]]),1),INDEX(ОфисПлан[],,1),0),MATCH(ОфисОтклонение[[#Headers],[Авг]],ОфисПлан[#Headers],0))-INDEX(ОфисФактические[],MATCH(INDEX(ОфисОтклонение[],ROW()-ROW(ОфисОтклонение[[#Headers],[Авг]]),1),INDEX(ОфисПлан[],,1),0),MATCH(ОфисОтклонение[[#Headers],[Авг]],ОфисФактические[#Headers],0))","v":{"v":9800,"d":"9,800.00 ₽"}},{"$f":"INDEX(ОфисПлан[],MATCH(INDEX(ОфисОтклонение[],ROW()-ROW(ОфисОтклонение[[#Headers],[Сен]]),1),INDEX(ОфисПлан[],,1),0),MATCH(ОфисОтклонение[[#Headers],[Сен]],ОфисПлан[#Headers],0))-INDEX(ОфисФактические[],MATCH(INDEX(ОфисОтклонение[],ROW()-ROW(ОфисОтклонение[[#Headers],[Сен]]),1),INDEX(ОфисПлан[],,1),0),MATCH(ОфисОтклонение[[#Headers],[Сен]],ОфисФактические[#Headers],0))","v":{"v":9800,"d":"9,800.00 ₽"}},{"$f":"INDEX(ОфисПлан[],MATCH(INDEX(ОфисОтклонение[],ROW()-ROW(ОфисОтклонение[[#Headers],[Окт]]),1),INDEX(ОфисПлан[],,1),0),MATCH(ОфисОтклонение[[#Headers],[Окт]],ОфисПлан[#Headers],0))-INDEX(ОфисФактические[],MATCH(INDEX(ОфисОтклонение[],ROW()-ROW(ОфисОтклонение[[#Headers],[Окт]]),1),INDEX(ОфисПлан[],,1),0),MATCH(ОфисОтклонение[[#Headers],[Окт]],ОфисФактические[#Headers],0))","v":{"v":9800,"d":"9,800.00 ₽"}},{"$f":"INDEX(ОфисПлан[],MATCH(INDEX(ОфисОтклонение[],ROW()-ROW(ОфисОтклонение[[#Headers],[Ноя]]),1),INDEX(ОфисПлан[],,1),0),MATCH(ОфисОтклонение[[#Headers],[Ноя]],ОфисПлан[#Headers],0))-INDEX(ОфисФактические[],MATCH(INDEX(ОфисОтклонение[],ROW()-ROW(ОфисОтклонение[[#Headers],[Ноя]]),1),INDEX(ОфисПлан[],,1),0),MATCH(ОфисОтклонение[[#Headers],[Ноя]],ОфисФактические[#Headers],0))","v":{"v":9800,"d":"9,800.00 ₽"}},{"$f":"INDEX(ОфисПлан[],MATCH(INDEX(ОфисОтклонение[],ROW()-ROW(ОфисОтклонение[[#Headers],[Дек]]),1),INDEX(ОфисПлан[],,1),0),MATCH(ОфисОтклонение[[#Headers],[Дек]],ОфисПлан[#Headers],0))-INDEX(ОфисФактические[],MATCH(INDEX(ОфисОтклонение[],ROW()-ROW(ОфисОтклонение[[#Headers],[Дек]]),1),INDEX(ОфисПлан[],,1),0),MATCH(ОфисОтклонение[[#Headers],[Дек]],ОфисФактические[#Headers],0))","v":{"v":9800,"d":"9,800.00 ₽"}},{"$f":"SUM(ОфисОтклонение[[#This Row],[Янв]:[Дек]])","v":{"v":58800,"d":"58,800.00 ₽"}}]
[null,"Газ",{"$f":"INDEX(ОфисПлан[],MATCH(INDEX(ОфисОтклонение[],ROW()-ROW(ОфисОтклонение[[#Headers],[Янв]]),1),INDEX(ОфисПлан[],,1),0),MATCH(ОфисОтклонение[[#Headers],[Янв]],ОфисПлан[#Headers],0))-INDEX(ОфисФактические[],MATCH(INDEX(ОфисОтклонение[],ROW()-ROW(ОфисОтклонение[[#Headers],[Янв]]),1),INDEX(ОфисПлан[],,1),0),MATCH(ОфисОтклонение[[#Headers],[Янв]],ОфисФактические[#Headers],0))","v":{"v":-4,"d":"-4.00 ₽"}},{"$f":"INDEX(ОфисПлан[],MATCH(INDEX(ОфисОтклонение[],ROW()-ROW(ОфисОтклонение[[#Headers],[Фев]]),1),INDEX(ОфисПлан[],,1),0),MATCH(ОфисОтклонение[[#Headers],[Фев]],ОфисПлан[#Headers],0))-INDEX(ОфисФактические[],MATCH(INDEX(ОфисОтклонение[],ROW()-ROW(ОфисОтклонение[[#Headers],[Фев]]),1),INDEX(ОфисПлан[],,1),0),MATCH(ОфисОтклонение[[#Headers],[Фев]],ОфисФактические[#Headers],0))","v":{"v":-30,"d":"-30.00 ₽"}},{"$f":"INDEX(ОфисПлан[],MATCH(INDEX(ОфисОтклонение[],ROW()-ROW(ОфисОтклонение[[#Headers],[Мар]]),1),INDEX(ОфисПлан[],,1),0),MATCH(ОфисОтклонение[[#Headers],[Мар]],ОфисПлан[#Headers],0))-INDEX(ОфисФактические[],MATCH(INDEX(ОфисОтклонение[],ROW()-ROW(ОфисОтклонение[[#Headers],[Мар]]),1),INDEX(ОфисПлан[],,1),0),MATCH(ОфисОтклонение[[#Headers],[Мар]],ОфисФактические[#Headers],0))","v":{"v":15,"d":"15.00 ₽"}},{"$f":"INDEX(ОфисПлан[],MATCH(INDEX(ОфисОтклонение[],ROW()-ROW(ОфисОтклонение[[#Headers],[Апр]]),1),INDEX(ОфисПлан[],,1),0),MATCH(ОфисОтклонение[[#Headers],[Апр]],ОфисПлан[#Headers],0))-INDEX(ОфисФактические[],MATCH(INDEX(ОфисОтклонение[],ROW()-ROW(ОфисОтклонение[[#Headers],[Апр]]),1),INDEX(ОфисПлан[],,1),0),MATCH(ОфисОтклонение[[#Headers],[Апр]],ОфисФактические[#Headers],0))","v":{"v":-130,"d":"-130.00 ₽"}},{"$f":"INDEX(ОфисПлан[],MATCH(INDEX(ОфисОтклонение[],ROW()-ROW(ОфисОтклонение[[#Headers],[Май]]),1),INDEX(ОфисПлан[],,1),0),MATCH(ОфисОтклонение[[#Headers],[Май]],ОфисПлан[#Headers],0))-INDEX(ОфисФактические[],MATCH(INDEX(ОфисОтклонение[],ROW()-ROW(ОфисОтклонение[[#Headers],[Май]]),1),INDEX(ОфисПлан[],,1),0),MATCH(ОфисОтклонение[[#Headers],[Май]],ОфисФактические[#Headers],0))","v":{"v":13,"d":"13.00 ₽"}},{"$f":"INDEX(ОфисПлан[],MATCH(INDEX(ОфисОтклонение[],ROW()-ROW(ОфисОтклонение[[#Headers],[Июн]]),1),INDEX(ОфисПлан[],,1),0),MATCH(ОфисОтклонение[[#Headers],[Июн]],ОфисПлан[#Headers],0))-INDEX(ОфисФактические[],MATCH(INDEX(ОфисОтклонение[],ROW()-ROW(ОфисОтклонение[[#Headers],[Июн]]),1),INDEX(ОфисПлан[],,1),0),MATCH(ОфисОтклонение[[#Headers],[Июн]],ОфисФактические[#Headers],0))","v":{"v":12,"d":"12.00 ₽"}},{"$f":"INDEX(ОфисПлан[],MATCH(INDEX(ОфисОтклонение[],ROW()-ROW(ОфисОтклонение[[#Headers],[Июл]]),1),INDEX(ОфисПлан[],,1),0),MATCH(ОфисОтклонение[[#Headers],[Июл]],ОфисПлан[#Headers],0))-INDEX(ОфисФактические[],MATCH(INDEX(ОфисОтклонение[],ROW()-ROW(ОфисОтклонение[[#Headers],[Июл]]),1),INDEX(ОфисПлан[],,1),0),MATCH(ОфисОтклонение[[#Headers],[Июл]],ОфисФактические[#Headers],0))","v":{"v":100,"d":"100.00 ₽"}},{"$f":"INDEX(ОфисПлан[],MATCH(INDEX(ОфисОтклонение[],ROW()-ROW(ОфисОтклонение[[#Headers],[Авг]]),1),INDEX(ОфисПлан[],,1),0),MATCH(ОфисОтклонение[[#Headers],[Авг]],ОфисПлан[#Headers],0))-INDEX(ОфисФактические[],MATCH(INDEX(ОфисОтклонение[],ROW()-ROW(ОфисОтклонение[[#Headers],[Авг]]),1),INDEX(ОфисПлан[],,1),0),MATCH(ОфисОтклонение[[#Headers],[Авг]],ОфисФактические[#Headers],0))","v":{"v":100,"d":"100.00 ₽"}},{"$f":"INDEX(ОфисПлан[],MATCH(INDEX(ОфисОтклонение[],ROW()-ROW(ОфисОтклонение[[#Headers],[Сен]]),1),INDEX(ОфисПлан[],,1),0),MATCH(ОфисОтклонение[[#Headers],[Сен]],ОфисПлан[#Headers],0))-INDEX(ОфисФактические[],MATCH(INDEX(ОфисОтклонение[],ROW()-ROW(ОфисОтклонение[[#Headers],[Сен]]),1),INDEX(ОфисПлан[],,1),0),MATCH(ОфисОтклонение[[#Headers],[Сен]],ОфисФактические[#Headers],0))","v":{"v":100,"d":"100.00 ₽"}},{"$f":"INDEX(ОфисПлан[],MATCH(INDEX(ОфисОтклонение[],ROW()-ROW(ОфисОтклонение[[#Headers],[Окт]]),1),INDEX(ОфисПлан[],,1),0),MATCH(ОфисОтклонение[[#Headers],[Окт]],ОфисПлан[#Headers],0))-INDEX(ОфисФактические[],MATCH(INDEX(ОфисОтклонение[],ROW()-ROW(ОфисОтклонение[[#Headers],[Окт]]),1),INDEX(ОфисПлан[],,1),0),MATCH(ОфисОтклонение[[#Headers],[Окт]],ОфисФактические[#Headers],0))","v":{"v":100,"d":"100.00 ₽"}},{"$f":"INDEX(ОфисПлан[],MATCH(INDEX(ОфисОтклонение[],ROW()-ROW(ОфисОтклонение[[#Headers],[Ноя]]),1),INDEX(ОфисПлан[],,1),0),MATCH(ОфисОтклонение[[#Headers],[Ноя]],ОфисПлан[#Headers],0))-INDEX(ОфисФактические[],MATCH(INDEX(ОфисОтклонение[],ROW()-ROW(ОфисОтклонение[[#Headers],[Ноя]]),1),INDEX(ОфисПлан[],,1),0),MATCH(ОфисОтклонение[[#Headers],[Ноя]],ОфисФактические[#Headers],0))","v":{"v":400,"d":"400.00 ₽"}},{"$f":"INDEX(ОфисПлан[],MATCH(INDEX(ОфисОтклонение[],ROW()-ROW(ОфисОтклонение[[#Headers],[Дек]]),1),INDEX(ОфисПлан[],,1),0),MATCH(ОфисОтклонение[[#Headers],[Дек]],ОфисПлан[#Headers],0))-INDEX(ОфисФактические[],MATCH(INDEX(ОфисОтклонение[],ROW()-ROW(ОфисОтклонение[[#Headers],[Дек]]),1),INDEX(ОфисПлан[],,1),0),MATCH(ОфисОтклонение[[#Headers],[Дек]],ОфисФактические[#Headers],0))","v":{"v":400,"d":"400.00 ₽"}},{"$f":"SUM(ОфисОтклонение[[#This Row],[Янв]:[Дек]])","v":{"v":1076,"d":"1,076.00 ₽"}}]
[null,"Электричество",{"$f":"INDEX(ОфисПлан[],MATCH(INDEX(ОфисОтклонение[],ROW()-ROW(ОфисОтклонение[[#Headers],[Янв]]),1),INDEX(ОфисПлан[],,1),0),MATCH(ОфисОтклонение[[#Headers],[Янв]],ОфисПлан[#Headers],0))-INDEX(ОфисФактические[],MATCH(INDEX(ОфисОтклонение[],ROW()-ROW(ОфисОтклонение[[#Headers],[Янв]]),1),INDEX(ОфисПлан[],,1),0),MATCH(ОфисОтклонение[[#Headers],[Янв]],ОфисФактические[#Headers],0))","v":{"v":12,"d":"12.00 ₽"}},{"$f":"INDEX(ОфисПлан[],MATCH(INDEX(ОфисОтклонение[],ROW()-ROW(ОфисОтклонение[[#Headers],[Фев]]),1),INDEX(ОфисПлан[],,1),0),MATCH(ОфисОтклонение[[#Headers],[Фев]],ОфисПлан[#Headers],0))-INDEX(ОфисФактические[],MATCH(INDEX(ОфисОтклонение[],ROW()-ROW(ОфисОтклонение[[#Headers],[Фев]]),1),INDEX(ОфисПлан[],,1),0),MATCH(ОфисОтклонение[[#Headers],[Фев]],ОфисФактические[#Headers],0))","v":{"v":22,"d":"22.00 ₽"}},{"$f":"INDEX(ОфисПлан[],MATCH(INDEX(ОфисОтклонение[],ROW()-ROW(ОфисОтклонение[[#Headers],[Мар]]),1),INDEX(ОфисПлан[],,1),0),MATCH(ОфисОтклонение[[#Headers],[Мар]],ОфисПлан[#Headers],0))-INDEX(ОфисФактические[],MATCH(INDEX(ОфисОтклонение[],ROW()-ROW(ОфисОтклонение[[#Headers],[Мар]]),1),INDEX(ОфисПлан[],,1),0),MATCH(ОфисОтклонение[[#Headers],[Мар]],ОфисФактические[#Headers],0))","v":{"v":32,"d":"32.00 ₽"}},{"$f":"INDEX(ОфисПлан[],MATCH(INDEX(ОфисОтклонение[],ROW()-ROW(ОфисОтклонение[[#Headers],[Апр]]),1),INDEX(ОфисПлан[],,1),0),MATCH(ОфисОтклонение[[#Headers],[Апр]],ОфисПлан[#Headers],0))-INDEX(ОфисФактические[],MATCH(INDEX(ОфисОтклонение[],ROW()-ROW(ОфисОтклонение[[#Headers],[Апр]]),1),INDEX(ОфисПлан[],,1),0),MATCH(ОфисОтклонение[[#Headers],[Апр]],ОфисФактические[#Headers],0))","v":{"v":1,"d":"1.00 ₽"}},{"$f":"INDEX(ОфисПлан[],MATCH(INDEX(ОфисОтклонение[],ROW()-ROW(ОфисОтклонение[[#Headers],[Май]]),1),INDEX(ОфисПлан[],,1),0),MATCH(ОфисОтклонение[[#Headers],[Май]],ОфисПлан[#Headers],0))-INDEX(ОфисФактические[],MATCH(INDEX(ОфисОтклонение[],ROW()-ROW(ОфисОтклонение[[#Headers],[Май]]),1),INDEX(ОфисПлан[],,1),0),MATCH(ОфисОтклонение[[#Headers],[Май]],ОфисФактические[#Headers],0))","v":{"v":-6,"d":"-6.00 ₽"}},{"$f":"INDEX(ОфисПлан[],MATCH(INDEX(ОфисОтклонение[],ROW()-ROW(ОфисОтклонение[[#Headers],[Июн]]),1),INDEX(ОфисПлан[],,1),0),MATCH(ОфисОтклонение[[#Headers],[Июн]],ОфисПлан[#Headers],0))-INDEX(ОфисФактические[],MATCH(INDEX(ОфисОтклонение[],ROW()-ROW(ОфисОтклонение[[#Headers],[Июн]]),1),INDEX(ОфисПлан[],,1),0),MATCH(ОфисОтклонение[[#Headers],[Июн]],ОфисФактические[#Headers],0))","v":{"v":10,"d":"10.00 ₽"}},{"$f":"INDEX(ОфисПлан[],MATCH(INDEX(ОфисОтклонение[],ROW()-ROW(ОфисОтклонение[[#Headers],[Июл]]),1),INDEX(ОфисПлан[],,1),0),MATCH(ОфисОтклонение[[#Headers],[Июл]],ОфисПлан[#Headers],0))-INDEX(ОфисФактические[],MATCH(INDEX(ОфисОтклонение[],ROW()-ROW(ОфисОтклонение[[#Headers],[Июл]]),1),INDEX(ОфисПлан[],,1),0),MATCH(ОфисОтклонение[[#Headers],[Июл]],ОфисФактические[#Headers],0))","v":{"v":300,"d":"300.00 ₽"}},{"$f":"INDEX(ОфисПлан[],MATCH(INDEX(ОфисОтклонение[],ROW()-ROW(ОфисОтклонение[[#Headers],[Авг]]),1),INDEX(ОфисПлан[],,1),0),MATCH(ОфисОтклонение[[#Headers],[Авг]],ОфисПлан[#Headers],0))-INDEX(ОфисФактические[],MATCH(INDEX(ОфисОтклонение[],ROW()-ROW(ОфисОтклонение[[#Headers],[Авг]]),1),INDEX(ОфисПлан[],,1),0),MATCH(ОфисОтклонение[[#Headers],[Авг]],ОфисФактические[#Headers],0))","v":{"v":300,"d":"300.00 ₽"}},{"$f":"INDEX(ОфисПлан[],MATCH(INDEX(ОфисОтклонение[],ROW()-ROW(ОфисОтклонение[[#Headers],[Сен]]),1),INDEX(ОфисПлан[],,1),0),MATCH(ОфисОтклонение[[#Headers],[Сен]],ОфисПлан[#Headers],0))-INDEX(ОфисФактические[],MATCH(INDEX(ОфисОтклонение[],ROW()-ROW(ОфисОтклонение[[#Headers],[Сен]]),1),INDEX(ОфисПлан[],,1),0),MATCH(ОфисОтклонение[[#Headers],[Сен]],ОфисФактические[#Headers],0))","v":{"v":300,"d":"300.00 ₽"}},{"$f":"INDEX(ОфисПлан[],MATCH(INDEX(ОфисОтклонение[],ROW()-ROW(ОфисОтклонение[[#Headers],[Окт]]),1),INDEX(ОфисПлан[],,1),0),MATCH(ОфисОтклонение[[#Headers],[Окт]],ОфисПлан[#Headers],0))-INDEX(ОфисФактические[],MATCH(INDEX(ОфисОтклонение[],ROW()-ROW(ОфисОтклонение[[#Headers],[Окт]]),1),INDEX(ОфисПлан[],,1),0),MATCH(ОфисОтклонение[[#Headers],[Окт]],ОфисФактические[#Headers],0))","v":{"v":300,"d":"300.00 ₽"}},{"$f":"INDEX(ОфисПлан[],MATCH(INDEX(ОфисОтклонение[],ROW()-ROW(ОфисОтклонение[[#Headers],[Ноя]]),1),INDEX(ОфисПлан[],,1),0),MATCH(ОфисОтклонение[[#Headers],[Ноя]],ОфисПлан[#Headers],0))-INDEX(ОфисФактические[],MATCH(INDEX(ОфисОтклонение[],ROW()-ROW(ОфисОтклонение[[#Headers],[Ноя]]),1),INDEX(ОфисПлан[],,1),0),MATCH(ОфисОтклонение[[#Headers],[Ноя]],ОфисФактические[#Headers],0))","v":{"v":300,"d":"300.00 ₽"}},{"$f":"INDEX(ОфисПлан[],MATCH(INDEX(ОфисОтклонение[],ROW()-ROW(ОфисОтклонение[[#Headers],[Дек]]),1),INDEX(ОфисПлан[],,1),0),MATCH(ОфисОтклонение[[#Headers],[Дек]],ОфисПлан[#Headers],0))-INDEX(ОфисФактические[],MATCH(INDEX(ОфисОтклонение[],ROW()-ROW(ОфисОтклонение[[#Headers],[Дек]]),1),INDEX(ОфисПлан[],,1),0),MATCH(ОфисОтклонение[[#Headers],[Дек]],ОфисФактические[#Headers],0))","v":{"v":300,"d":"300.00 ₽"}},{"$f":"SUM(ОфисОтклонение[[#This Row],[Янв]:[Дек]])","v":{"v":1871,"d":"1,871.00 ₽"}}]
[null,"Вода",{"$f":"INDEX(ОфисПлан[],MATCH(INDEX(ОфисОтклонение[],ROW()-ROW(ОфисОтклонение[[#Headers],[Янв]]),1),INDEX(ОфисПлан[],,1),0),MATCH(ОфисОтклонение[[#Headers],[Янв]],ОфисПлан[#Headers],0))-INDEX(ОфисФактические[],MATCH(INDEX(ОфисОтклонение[],ROW()-ROW(ОфисОтклонение[[#Headers],[Янв]]),1),INDEX(ОфисПлан[],,1),0),MATCH(ОфисОтклонение[[#Headers],[Янв]],ОфисФактические[#Headers],0))","v":{"v":5,"d":"5.00 ₽"}},{"$f":"INDEX(ОфисПлан[],MATCH(INDEX(ОфисОтклонение[],ROW()-ROW(ОфисОтклонение[[#Headers],[Фев]]),1),INDEX(ОфисПлан[],,1),0),MATCH(ОфисОтклонение[[#Headers],[Фев]],ОфисПлан[#Headers],0))-INDEX(ОфисФактические[],MATCH(INDEX(ОфисОтклонение[],ROW()-ROW(ОфисОтклонение[[#Headers],[Фев]]),1),INDEX(ОфисПлан[],,1),0),MATCH(ОфисОтклонение[[#Headers],[Фев]],ОфисФактические[#Headers],0))","v":{"v":7,"d":"7.00 ₽"}},{"$f":"INDEX(ОфисПлан[],MATCH(INDEX(ОфисОтклонение[],ROW()-ROW(ОфисОтклонение[[#Headers],[Мар]]),1),INDEX(ОфисПлан[],,1),0),MATCH(ОфисОтклонение[[#Headers],[Мар]],ОфисПлан[#Headers],0))-INDEX(ОфисФактические[],MATCH(INDEX(ОфисОтклонение[],ROW()-ROW(ОфисОтклонение[[#Headers],[Мар]]),1),INDEX(ОфисПлан[],,1),0),MATCH(ОфисОтклонение[[#Headers],[Мар]],ОфисФактические[#Headers],0))","v":{"v":6,"d":"6.00 ₽"}},{"$f":"INDEX(ОфисПлан[],MATCH(INDEX(ОфисОтклонение[],ROW()-ROW(ОфисОтклонение[[#Headers],[Апр]]),1),INDEX(ОфисПлан[],,1),0),MATCH(ОфисОтклонение[[#Headers],[Апр]],ОфисПлан[#Headers],0))-INDEX(ОфисФактические[],MATCH(INDEX(ОфисОтклонение[],ROW()-ROW(ОфисОтклонение[[#Headers],[Апр]]),1),INDEX(ОфисПлан[],,1),0),MATCH(ОфисОтклонение[[#Headers],[Апр]],ОфисФактические[#Headers],0))","v":{"v":4,"d":"4.00 ₽"}},{"$f":"INDEX(ОфисПлан[],MATCH(INDEX(ОфисОтклонение[],ROW()-ROW(ОфисОтклонение[[#Headers],[Май]]),1),INDEX(ОфисПлан[],,1),0),MATCH(ОфисОтклонение[[#Headers],[Май]],ОфисПлан[#Headers],0))-INDEX(ОфисФактические[],MATCH(INDEX(ОфисОтклонение[],ROW()-ROW(ОфисОтклонение[[#Headers],[Май]]),1),INDEX(ОфисПлан[],,1),0),MATCH(ОфисОтклонение[[#Headers],[Май]],ОфисФактические[#Headers],0))","v":{"v":6,"d":"6.00 ₽"}},{"$f":"INDEX(ОфисПлан[],MATCH(INDEX(ОфисОтклонение[],ROW()-ROW(ОфисОтклонение[[#Headers],[Июн]]),1),INDEX(ОфисПлан[],,1),0),MATCH(ОфисОтклонение[[#Headers],[Июн]],ОфисПлан[#Headers],0))-INDEX(ОфисФактические[],MATCH(INDEX(ОфисОтклонение[],ROW()-ROW(ОфисОтклонение[[#Headers],[Июн]]),1),INDEX(ОфисПлан[],,1),0),MATCH(ОфисОтклонение[[#Headers],[Июн]],ОфисФактические[#Headers],0))","v":{"v":4,"d":"4.00 ₽"}},{"$f":"INDEX(ОфисПлан[],MATCH(INDEX(ОфисОтклонение[],ROW()-ROW(ОфисОтклонение[[#Headers],[Июл]]),1),INDEX(ОфисПлан[],,1),0),MATCH(ОфисОтклонение[[#Headers],[Июл]],ОфисПлан[#Headers],0))-INDEX(ОфисФактические[],MATCH(INDEX(ОфисОтклонение[],ROW()-ROW(ОфисОтклонение[[#Headers],[Июл]]),1),INDEX(ОфисПлан[],,1),0),MATCH(ОфисОтклонение[[#Headers],[Июл]],ОфисФактические[#Headers],0))","v":{"v":40,"d":"40.00 ₽"}},{"$f":"INDEX(ОфисПлан[],MATCH(INDEX(ОфисОтклонение[],ROW()-ROW(ОфисОтклонение[[#Headers],[Авг]]),1),INDEX(ОфисПлан[],,1),0),MATCH(ОфисОтклонение[[#Headers],[Авг]],ОфисПлан[#Headers],0))-INDEX(ОфисФактические[],MATCH(INDEX(ОфисОтклонение[],ROW()-ROW(ОфисОтклонение[[#Headers],[Авг]]),1),INDEX(ОфисПлан[],,1),0),MATCH(ОфисОтклонение[[#Headers],[Авг]],ОфисФактические[#Headers],0))","v":{"v":40,"d":"40.00 ₽"}},{"$f":"INDEX(ОфисПлан[],MATCH(INDEX(ОфисОтклонение[],ROW()-ROW(ОфисОтклонение[[#Headers],[Сен]]),1),INDEX(ОфисПлан[],,1),0),MATCH(ОфисОтклонение[[#Headers],[Сен]],ОфисПлан[#Headers],0))-INDEX(ОфисФактические[],MATCH(INDEX(ОфисОтклонение[],ROW()-ROW(ОфисОтклонение[[#Headers],[Сен]]),1),INDEX(ОфисПлан[],,1),0),MATCH(ОфисОтклонение[[#Headers],[Сен]],ОфисФактические[#Headers],0))","v":{"v":40,"d":"40.00 ₽"}},{"$f":"INDEX(ОфисПлан[],MATCH(INDEX(ОфисОтклонение[],ROW()-ROW(ОфисОтклонение[[#Headers],[Окт]]),1),INDEX(ОфисПлан[],,1),0),MATCH(ОфисОтклонение[[#Headers],[Окт]],ОфисПлан[#Headers],0))-INDEX(ОфисФактические[],MATCH(INDEX(ОфисОтклонение[],ROW()-ROW(ОфисОтклонение[[#Headers],[Окт]]),1),INDEX(ОфисПлан[],,1),0),MATCH(ОфисОтклонение[[#Headers],[Окт]],ОфисФактические[#Headers],0))","v":{"v":40,"d":"40.00 ₽"}},{"$f":"INDEX(ОфисПлан[],MATCH(INDEX(ОфисОтклонение[],ROW()-ROW(ОфисОтклонение[[#Headers],[Ноя]]),1),INDEX(ОфисПлан[],,1),0),MATCH(ОфисОтклонение[[#Headers],[Ноя]],ОфисПлан[#Headers],0))-INDEX(ОфисФактические[],MATCH(INDEX(ОфисОтклонение[],ROW()-ROW(ОфисОтклонение[[#Headers],[Ноя]]),1),INDEX(ОфисПлан[],,1),0),MATCH(ОфисОтклонение[[#Headers],[Ноя]],ОфисФактические[#Headers],0))","v":{"v":40,"d":"40.00 ₽"}},{"$f":"INDEX(ОфисПлан[],MATCH(INDEX(ОфисОтклонение[],ROW()-ROW(ОфисОтклонение[[#Headers],[Дек]]),1),INDEX(ОфисПлан[],,1),0),MATCH(ОфисОтклонение[[#Headers],[Дек]],ОфисПлан[#Headers],0))-INDEX(ОфисФактические[],MATCH(INDEX(ОфисОтклонение[],ROW()-ROW(ОфисОтклонение[[#Headers],[Дек]]),1),INDEX(ОфисПлан[],,1),0),MATCH(ОфисОтклонение[[#Headers],[Дек]],ОфисФактические[#Headers],0))","v":{"v":40,"d":"40.00 ₽"}},{"$f":"SUM(ОфисОтклонение[[#This Row],[Янв]:[Дек]])","v":{"v":272,"d":"272.00 ₽"}}]
[null,"Телефон",{"$f":"INDEX(ОфисПлан[],MATCH(INDEX(ОфисОтклонение[],ROW()-ROW(ОфисОтклонение[[#Headers],[Янв]]),1),INDEX(ОфисПлан[],,1),0),MATCH(ОфисОтклонение[[#Headers],[Янв]],ОфисПлан[#Headers],0))-INDEX(ОфисФактические[],MATCH(INDEX(ОфисОтклонение[],ROW()-ROW(ОфисОтклонение[[#Headers],[Янв]]),1),INDEX(ОфисПлан[],,1),0),MATCH(ОфисОтклонение[[#Headers],[Янв]],ОфисФактические[#Headers],0))","v":{"v":26,"d":"26.00 ₽"}},{"$f":"INDEX(ОфисПлан[],MATCH(INDEX(ОфисОтклонение[],ROW()-ROW(ОфисОтклонение[[#Headers],[Фев]]),1),INDEX(ОфисПлан[],,1),0),MATCH(ОфисОтклонение[[#Headers],[Фев]],ОфисПлан[#Headers],0))-INDEX(ОфисФактические[],MATCH(INDEX(ОфисОтклонение[],ROW()-ROW(ОфисОтклонение[[#Headers],[Фев]]),1),INDEX(ОфисПлан[],,1),0),MATCH(ОфисОтклонение[[#Headers],[Фев]],ОфисФактические[#Headers],0))","v":{"v":15,"d":"15.00 ₽"}},{"$f":"INDEX(ОфисПлан[],MATCH(INDEX(ОфисОтклонение[],ROW()-ROW(ОфисОтклонение[[#Headers],[Мар]]),1),INDEX(ОфисПлан[],,1),0),MATCH(ОфисОтклонение[[#Headers],[Мар]],ОфисПлан[#Headers],0))-INDEX(ОфисФактические[],MATCH(INDEX(ОфисОтклонение[],ROW()-ROW(ОфисОтклонение[[#Headers],[Мар]]),1),INDEX(ОфисПлан[],,1),0),MATCH(ОфисОтклонение[[#Headers],[Мар]],ОфисФактические[#Headers],0))","v":{"v":-15,"d":"-15.00 ₽"}},{"$f":"INDEX(ОфисПлан[],MATCH(INDEX(ОфисОтклонение[],ROW()-ROW(ОфисОтклонение[[#Headers],[Апр]]),1),INDEX(ОфисПлан[],,1),0),MATCH(ОфисОтклонение[[#Headers],[Апр]],ОфисПлан[#Headers],0))-INDEX(ОфисФактические[],MATCH(INDEX(ОфисОтклонение[],ROW()-ROW(ОфисОтклонение[[#Headers],[Апр]]),1),INDEX(ОфисПлан[],,1),0),MATCH(ОфисОтклонение[[#Headers],[Апр]],ОфисФактические[#Headers],0))","v":{"v":5,"d":"5.00 ₽"}},{"$f":"INDEX(ОфисПлан[],MATCH(INDEX(ОфисОтклонение[],ROW()-ROW(ОфисОтклонение[[#Headers],[Май]]),1),INDEX(ОфисПлан[],,1),0),MATCH(ОфисОтклонение[[#Headers],[Май]],ОфисПлан[#Headers],0))-INDEX(ОфисФактические[],MATCH(INDEX(ОфисОтклонение[],ROW()-ROW(ОфисОтклонение[[#Headers],[Май]]),1),INDEX(ОфисПлан[],,1),0),MATCH(ОфисОтклонение[[#Headers],[Май]],ОфисФактические[#Headers],0))","v":{"v":5,"d":"5.00 ₽"}},{"$f":"INDEX(ОфисПлан[],MATCH(INDEX(ОфисОтклонение[],ROW()-ROW(ОфисОтклонение[[#Headers],[Июн]]),1),INDEX(ОфисПлан[],,1),0),MATCH(ОфисОтклонение[[#Headers],[Июн]],ОфисПлан[#Headers],0))-INDEX(ОфисФактические[],MATCH(INDEX(ОфисОтклонение[],ROW()-ROW(ОфисОтклонение[[#Headers],[Июн]]),1),INDEX(ОфисПлан[],,1),0),MATCH(ОфисОтклонение[[#Headers],[Июн]],ОфисФактические[#Headers],0))","v":{"v":30,"d":"30.00 ₽"}},{"$f":"INDEX(ОфисПлан[],MATCH(INDEX(ОфисОтклонение[],ROW()-ROW(ОфисОтклонение[[#Headers],[Июл]]),1),INDEX(ОфисПлан[],,1),0),MATCH(ОфисОтклонение[[#Headers],[Июл]],ОфисПлан[#Headers],0))-INDEX(ОфисФактические[],MATCH(INDEX(ОфисОтклонение[],ROW()-ROW(ОфисОтклонение[[#Headers],[Июл]]),1),INDEX(ОфисПлан[],,1),0),MATCH(ОфисОтклонение[[#Headers],[Июл]],ОфисФактические[#Headers],0))","v":{"v":250,"d":"250.00 ₽"}},{"$f":"INDEX(ОфисПлан[],MATCH(INDEX(ОфисОтклонение[],ROW()-ROW(ОфисОтклонение[[#Headers],[Авг]]),1),INDEX(ОфисПлан[],,1),0),MATCH(ОфисОтклонение[[#Headers],[Авг]],ОфисПлан[#Headers],0))-INDEX(ОфисФактические[],MATCH(INDEX(ОфисОтклонение[],ROW()-ROW(ОфисОтклонение[[#Headers],[Авг]]),1),INDEX(ОфисПлан[],,1),0),MATCH(ОфисОтклонение[[#Headers],[Авг]],ОфисФактические[#Headers],0))","v":{"v":250,"d":"250.00 ₽"}},{"$f":"INDEX(ОфисПлан[],MATCH(INDEX(ОфисОтклонение[],ROW()-ROW(ОфисОтклонение[[#Headers],[Сен]]),1),INDEX(ОфисПлан[],,1),0),MATCH(ОфисОтклонение[[#Headers],[Сен]],ОфисПлан[#Headers],0))-INDEX(ОфисФактические[],MATCH(INDEX(ОфисОтклонение[],ROW()-ROW(ОфисОтклонение[[#Headers],[Сен]]),1),INDEX(ОфисПлан[],,1),0),MATCH(ОфисОтклонение[[#Headers],[Сен]],ОфисФактические[#Headers],0))","v":{"v":250,"d":"250.00 ₽"}},{"$f":"INDEX(ОфисПлан[],MATCH(INDEX(ОфисОтклонение[],ROW()-ROW(ОфисОтклонение[[#Headers],[Окт]]),1),INDEX(ОфисПлан[],,1),0),MATCH(ОфисОтклонение[[#Headers],[Окт]],ОфисПлан[#Headers],0))-INDEX(ОфисФактические[],MATCH(INDEX(ОфисОтклонение[],ROW()-ROW(ОфисОтклонение[[#Headers],[Окт]]),1),INDEX(ОфисПлан[],,1),0),MATCH(ОфисОтклонение[[#Headers],[Окт]],ОфисФактические[#Headers],0))","v":{"v":250,"d":"250.00 ₽"}},{"$f":"INDEX(ОфисПлан[],MATCH(INDEX(ОфисОтклонение[],ROW()-ROW(ОфисОтклонение[[#Headers],[Ноя]]),1),INDEX(ОфисПлан[],,1),0),MATCH(ОфисОтклонение[[#Headers],[Ноя]],ОфисПлан[#Headers],0))-INDEX(ОфисФактические[],MATCH(INDEX(ОфисОтклонение[],ROW()-ROW(ОфисОтклонение[[#Headers],[Ноя]]),1),INDEX(ОфисПлан[],,1),0),MATCH(ОфисОтклонение[[#Headers],[Ноя]],ОфисФактические[#Headers],0))","v":{"v":250,"d":"250.00 ₽"}},{"$f":"INDEX(ОфисПлан[],MATCH(INDEX(ОфисОтклонение[],ROW()-ROW(ОфисОтклонение[[#Headers],[Дек]]),1),INDEX(ОфисПлан[],,1),0),MATCH(ОфисОтклонение[[#Headers],[Дек]],ОфисПлан[#Headers],0))-INDEX(ОфисФактические[],MATCH(INDEX(ОфисОтклонение[],ROW()-ROW(ОфисОтклонение[[#Headers],[Дек]]),1),INDEX(ОфисПлан[],,1),0),MATCH(ОфисОтклонение[[#Headers],[Дек]],ОфисФактические[#Headers],0))","v":{"v":250,"d":"250.00 ₽"}},{"$f":"SUM(ОфисОтклонение[[#This Row],[Янв]:[Дек]])","v":{"v":1566,"d":"1,566.00 ₽"}}]
[null,"Доступ в Интернет",{"$f":"INDEX(ОфисПлан[],MATCH(INDEX(ОфисОтклонение[],ROW()-ROW(ОфисОтклонение[[#Headers],[Янв]]),1),INDEX(ОфисПлан[],,1),0),MATCH(ОфисОтклонение[[#Headers],[Янв]],ОфисПлан[#Headers],0))-INDEX(ОфисФактические[],MATCH(INDEX(ОфисОтклонение[],ROW()-ROW(ОфисОтклонение[[#Headers],[Янв]]),1),INDEX(ОфисПлан[],,1),0),MATCH(ОфисОтклонение[[#Headers],[Янв]],ОфисФактические[#Headers],0))","v":{"v":0,"d":"0.00 ₽"}},{"$f":"INDEX(ОфисПлан[],MATCH(INDEX(ОфисОтклонение[],ROW()-ROW(ОфисОтклонение[[#Headers],[Фев]]),1),INDEX(ОфисПлан[],,1),0),MATCH(ОфисОтклонение[[#Headers],[Фев]],ОфисПлан[#Headers],0))-INDEX(ОфисФактические[],MATCH(INDEX(ОфисОтклонение[],ROW()-ROW(ОфисОтклонение[[#Headers],[Фев]]),1),INDEX(ОфисПлан[],,1),0),MATCH(ОфисОтклонение[[#Headers],[Фев]],ОфисФактические[#Headers],0))","v":{"v":0,"d":"0.00 ₽"}},{"$f":"INDEX(ОфисПлан[],MATCH(INDEX(ОфисОтклонение[],ROW()-ROW(ОфисОтклонение[[#Headers],[Мар]]),1),INDEX(ОфисПлан[],,1),0),MATCH(ОфисОтклонение[[#Headers],[Мар]],ОфисПлан[#Headers],0))-INDEX(ОфисФактические[],MATCH(INDEX(ОфисОтклонение[],ROW()-ROW(ОфисОтклонение[[#Headers],[Мар]]),1),INDEX(ОфисПлан[],,1),0),MATCH(ОфисОтклонение[[#Headers],[Мар]],ОфисФактические[#Headers],0))","v":{"v":0,"d":"0.00 ₽"}},{"$f":"INDEX(ОфисПлан[],MATCH(INDEX(ОфисОтклонение[],ROW()-ROW(ОфисОтклонение[[#Headers],[Апр]]),1),INDEX(ОфисПлан[],,1),0),MATCH(ОфисОтклонение[[#Headers],[Апр]],ОфисПлан[#Headers],0))-INDEX(ОфисФактические[],MATCH(INDEX(ОфисОтклонение[],ROW()-ROW(ОфисОтклонение[[#Headers],[Апр]]),1),INDEX(ОфисПлан[],,1),0),MATCH(ОфисОтклонение[[#Headers],[Апр]],ОфисФактические[#Headers],0))","v":{"v":0,"d":"0.00 ₽"}},{"$f":"INDEX(ОфисПлан[],MATCH(INDEX(ОфисОтклонение[],ROW()-ROW(ОфисОтклонение[[#Headers],[Май]]),1),INDEX(ОфисПлан[],,1),0),MATCH(ОфисОтклонение[[#Headers],[Май]],ОфисПлан[#Headers],0))-INDEX(ОфисФактические[],MATCH(INDEX(ОфисОтклонение[],ROW()-ROW(ОфисОтклонение[[#Headers],[Май]]),1),INDEX(ОфисПлан[],,1),0),MATCH(ОфисОтклонение[[#Headers],[Май]],ОфисФактические[#Headers],0))","v":{"v":0,"d":"0.00 ₽"}},{"$f":"INDEX(ОфисПлан[],MATCH(INDEX(ОфисОтклонение[],ROW()-ROW(ОфисОтклонение[[#Headers],[Июн]]),1),INDEX(ОфисПлан[],,1),0),MATCH(ОфисОтклонение[[#Headers],[Июн]],ОфисПлан[#Headers],0))-INDEX(ОфисФактические[],MATCH(INDEX(ОфисОтклонение[],ROW()-ROW(ОфисОтклонение[[#Headers],[Июн]]),1),INDEX(ОфисПлан[],,1),0),MATCH(ОфисОтклонение[[#Headers],[Июн]],ОфисФактические[#Headers],0))","v":{"v":0,"d":"0.00 ₽"}},{"$f":"INDEX(ОфисПлан[],MATCH(INDEX(ОфисОтклонение[],ROW()-ROW(ОфисОтклонение[[#Headers],[Июл]]),1),INDEX(ОфисПлан[],,1),0),MATCH(ОфисОтклонение[[#Headers],[Июл]],ОфисПлан[#Headers],0))-INDEX(ОфисФактические[],MATCH(INDEX(ОфисОтклонение[],ROW()-ROW(ОфисОтклонение[[#Headers],[Июл]]),1),INDEX(ОфисПлан[],,1),0),MATCH(ОфисОтклонение[[#Headers],[Июл]],ОфисФактические[#Headers],0))","v":{"v":180,"d":"180.00 ₽"}},{"$f":"INDEX(ОфисПлан[],MATCH(INDEX(ОфисОтклонение[],ROW()-ROW(ОфисОтклонение[[#Headers],[Авг]]),1),INDEX(ОфисПлан[],,1),0),MATCH(ОфисОтклонение[[#Headers],[Авг]],ОфисПлан[#Headers],0))-INDEX(ОфисФактические[],MATCH(INDEX(ОфисОтклонение[],ROW()-ROW(ОфисОтклонение[[#Headers],[Авг]]),1),INDEX(ОфисПлан[],,1),0),MATCH(ОфисОтклонение[[#Headers],[Авг]],ОфисФактические[#Headers],0))","v":{"v":180,"d":"180.00 ₽"}},{"$f":"INDEX(ОфисПлан[],MATCH(INDEX(ОфисОтклонение[],ROW()-ROW(ОфисОтклонение[[#Headers],[Сен]]),1),INDEX(ОфисПлан[],,1),0),MATCH(ОфисОтклонение[[#Headers],[Сен]],ОфисПлан[#Headers],0))-INDEX(ОфисФактические[],MATCH(INDEX(ОфисОтклонение[],ROW()-ROW(ОфисОтклонение[[#Headers],[Сен]]),1),INDEX(ОфисПлан[],,1),0),MATCH(ОфисОтклонение[[#Headers],[Сен]],ОфисФактические[#Headers],0))","v":{"v":180,"d":"180.00 ₽"}},{"$f":"INDEX(ОфисПлан[],MATCH(INDEX(ОфисОтклонение[],ROW()-ROW(ОфисОтклонение[[#Headers],[Окт]]),1),INDEX(ОфисПлан[],,1),0),MATCH(ОфисОтклонение[[#Headers],[Окт]],ОфисПлан[#Headers],0))-INDEX(ОфисФактические[],MATCH(INDEX(ОфисОтклонение[],ROW()-ROW(ОфисОтклонение[[#Headers],[Окт]]),1),INDEX(ОфисПлан[],,1),0),MATCH(ОфисОтклонение[[#Headers],[Окт]],ОфисФактические[#Headers],0))","v":{"v":180,"d":"180.00 ₽"}},{"$f":"INDEX(ОфисПлан[],MATCH(INDEX(ОфисОтклонение[],ROW()-ROW(ОфисОтклонение[[#Headers],[Ноя]]),1),INDEX(ОфисПлан[],,1),0),MATCH(ОфисОтклонение[[#Headers],[Ноя]],ОфисПлан[#Headers],0))-INDEX(ОфисФактические[],MATCH(INDEX(ОфисОтклонение[],ROW()-ROW(ОфисОтклонение[[#Headers],[Ноя]]),1),INDEX(ОфисПлан[],,1),0),MATCH(ОфисОтклонение[[#Headers],[Ноя]],ОфисФактические[#Headers],0))","v":{"v":180,"d":"180.00 ₽"}},{"$f":"INDEX(ОфисПлан[],MATCH(INDEX(ОфисОтклонение[],ROW()-ROW(ОфисОтклонение[[#Headers],[Дек]]),1),INDEX(ОфисПлан[],,1),0),MATCH(ОфисОтклонение[[#Headers],[Дек]],ОфисПлан[#Headers],0))-INDEX(ОфисФактические[],MATCH(INDEX(ОфисОтклонение[],ROW()-ROW(ОфисОтклонение[[#Headers],[Дек]]),1),INDEX(ОфисПлан[],,1),0),MATCH(ОфисОтклонение[[#Headers],[Дек]],ОфисФактические[#Headers],0))","v":{"v":180,"d":"180.00 ₽"}},{"$f":"SUM(ОфисОтклонение[[#This Row],[Янв]:[Дек]])","v":{"v":1080,"d":"1,080.00 ₽"}}]
[null,"Канцтовары",{"$f":"INDEX(ОфисПлан[],MATCH(INDEX(ОфисОтклонение[],ROW()-ROW(ОфисОтклонение[[#Headers],[Янв]]),1),INDEX(ОфисПлан[],,1),0),MATCH(ОфисОтклонение[[#Headers],[Янв]],ОфисПлан[#Headers],0))-INDEX(ОфисФактические[],MATCH(INDEX(ОфисОтклонение[],ROW()-ROW(ОфисОтклонение[[#Headers],[Янв]]),1),INDEX(ОфисПлан[],,1),0),MATCH(ОфисОтклонение[[#Headers],[Янв]],ОфисФактические[#Headers],0))","v":{"v":-56,"d":"-56.00 ₽"}},{"$f":"INDEX(ОфисПлан[],MATCH(INDEX(ОфисОтклонение[],ROW()-ROW(ОфисОтклонение[[#Headers],[Фев]]),1),INDEX(ОфисПлан[],,1),0),MATCH(ОфисОтклонение[[#Headers],[Фев]],ОфисПлан[#Headers],0))-INDEX(ОфисФактические[],MATCH(INDEX(ОфисОтклонение[],ROW()-ROW(ОфисОтклонение[[#Headers],[Фев]]),1),INDEX(ОфисПлан[],,1),0),MATCH(ОфисОтклонение[[#Headers],[Фев]],ОфисФактические[#Headers],0))","v":{"v":58,"d":"58.00 ₽"}},{"$f":"INDEX(ОфисПлан[],MATCH(INDEX(ОфисОтклонение[],ROW()-ROW(ОфисОтклонение[[#Headers],[Мар]]),1),INDEX(ОфисПлан[],,1),0),MATCH(ОфисОтклонение[[#Headers],[Мар]],ОфисПлан[#Headers],0))-INDEX(ОфисФактические[],MATCH(INDEX(ОфисОтклонение[],ROW()-ROW(ОфисОтклонение[[#Headers],[Мар]]),1),INDEX(ОфисПлан[],,1),0),MATCH(ОфисОтклонение[[#Headers],[Мар]],ОфисФактические[#Headers],0))","v":{"v":40,"d":"40.00 ₽"}},{"$f":"INDEX(ОфисПлан[],MATCH(INDEX(ОфисОтклонение[],ROW()-ROW(ОфисОтклонение[[#Headers],[Апр]]),1),INDEX(ОфисПлан[],,1),0),MATCH(ОфисОтклонение[[#Headers],[Апр]],ОфисПлан[#Headers],0))-INDEX(ОфисФактические[],MATCH(INDEX(ОфисОтклонение[],ROW()-ROW(ОфисОтклонение[[#Headers],[Апр]]),1),INDEX(ОфисПлан[],,1),0),MATCH(ОфисОтклонение[[#Headers],[Апр]],ОфисФактические[#Headers],0))","v":{"v":-21,"d":"-21.00 ₽"}},{"$f":"INDEX(ОфисПлан[],MATCH(INDEX(ОфисОтклонение[],ROW()-ROW(ОфисОтклонение[[#Headers],[Май]]),1),INDEX(ОфисПлан[],,1),0),MATCH(ОфисОтклонение[[#Headers],[Май]],ОфисПлан[#Headers],0))-INDEX(ОфисФактические[],MATCH(INDEX(ОфисОтклонение[],ROW()-ROW(ОфисОтклонение[[#Headers],[Май]]),1),INDEX(ОфисПлан[],,1),0),MATCH(ОфисОтклонение[[#Headers],[Май]],ОфисФактические[#Headers],0))","v":{"v":-56,"d":"-56.00 ₽"}},{"$f":"INDEX(ОфисПлан[],MATCH(INDEX(ОфисОтклонение[],ROW()-ROW(ОфисОтклонение[[#Headers],[Июн]]),1),INDEX(ОфисПлан[],,1),0),MATCH(ОфисОтклонение[[#Headers],[Июн]],ОфисПлан[#Headers],0))-INDEX(ОфисФактические[],MATCH(INDEX(ОфисОтклонение[],ROW()-ROW(ОфисОтклонение[[#Headers],[Июн]]),1),INDEX(ОфисПлан[],,1),0),MATCH(ОфисОтклонение[[#Headers],[Июн]],ОфисФактические[#Headers],0))","v":{"v":-40,"d":"-40.00 ₽"}},{"$f":"INDEX(ОфисПлан[],MATCH(INDEX(ОфисОтклонение[],ROW()-ROW(ОфисОтклонение[[#Headers],[Июл]]),1),INDEX(ОфисПлан[],,1),0),MATCH(ОфисОтклонение[[#Headers],[Июл]],ОфисПлан[#Headers],0))-INDEX(ОфисФактические[],MATCH(INDEX(ОфисОтклонение[],ROW()-ROW(ОфисОтклонение[[#Headers],[Июл]]),1),INDEX(ОфисПлан[],,1),0),MATCH(ОфисОтклонение[[#Headers],[Июл]],ОфисФактические[#Headers],0))","v":{"v":200,"d":"200.00 ₽"}},{"$f":"INDEX(ОфисПлан[],MATCH(INDEX(ОфисОтклонение[],ROW()-ROW(ОфисОтклонение[[#Headers],[Авг]]),1),INDEX(ОфисПлан[],,1),0),MATCH(ОфисОтклонение[[#Headers],[Авг]],ОфисПлан[#Headers],0))-INDEX(ОфисФактические[],MATCH(INDEX(ОфисОтклонение[],ROW()-ROW(ОфисОтклонение[[#Headers],[Авг]]),1),INDEX(ОфисПлан[],,1),0),MATCH(ОфисОтклонение[[#Headers],[Авг]],ОфисФактические[#Headers],0))","v":{"v":200,"d":"200.00 ₽"}},{"$f":"INDEX(ОфисПлан[],MATCH(INDEX(ОфисОтклонение[],ROW()-ROW(ОфисОтклонение[[#Headers],[Сен]]),1),INDEX(ОфисПлан[],,1),0),MATCH(ОфисОтклонение[[#Headers],[Сен]],ОфисПлан[#Headers],0))-INDEX(ОфисФактические[],MATCH(INDEX(ОфисОтклонение[],ROW()-ROW(ОфисОтклонение[[#Headers],[Сен]]),1),INDEX(ОфисПлан[],,1),0),MATCH(ОфисОтклонение[[#Headers],[Сен]],ОфисФактические[#Headers],0))","v":{"v":200,"d":"200.00 ₽"}},{"$f":"INDEX(ОфисПлан[],MATCH(INDEX(ОфисОтклонение[],ROW()-ROW(ОфисОтклонение[[#Headers],[Окт]]),1),INDEX(ОфисПлан[],,1),0),MATCH(ОфисОтклонение[[#Headers],[Окт]],ОфисПлан[#Headers],0))-INDEX(ОфисФактические[],MATCH(INDEX(ОфисОтклонение[],ROW()-ROW(ОфисОтклонение[[#Headers],[Окт]]),1),INDEX(ОфисПлан[],,1),0),MATCH(ОфисОтклонение[[#Headers],[Окт]],ОфисФактические[#Headers],0))","v":{"v":200,"d":"200.00 ₽"}},{"$f":"INDEX(ОфисПлан[],MATCH(INDEX(ОфисОтклонение[],ROW()-ROW(ОфисОтклонение[[#Headers],[Ноя]]),1),INDEX(ОфисПлан[],,1),0),MATCH(ОфисОтклонение[[#Headers],[Ноя]],ОфисПлан[#Headers],0))-INDEX(ОфисФактические[],MATCH(INDEX(ОфисОтклонение[],ROW()-ROW(ОфисОтклонение[[#Headers],[Ноя]]),1),INDEX(ОфисПлан[],,1),0),MATCH(ОфисОтклонение[[#Headers],[Ноя]],ОфисФактические[#Headers],0))","v":{"v":200,"d":"200.00 ₽"}},{"$f":"INDEX(ОфисПлан[],MATCH(INDEX(ОфисОтклонение[],ROW()-ROW(ОфисОтклонение[[#Headers],[Дек]]),1),INDEX(ОфисПлан[],,1),0),MATCH(ОфисОтклонение[[#Headers],[Дек]],ОфисПлан[#Headers],0))-INDEX(ОфисФактические[],MATCH(INDEX(ОфисОтклонение[],ROW()-ROW(ОфисОтклонение[[#Headers],[Дек]]),1),INDEX(ОфисПлан[],,1),0),MATCH(ОфисОтклонение[[#Headers],[Дек]],ОфисФактические[#Headers],0))","v":{"v":200,"d":"200.00 ₽"}},{"$f":"SUM(ОфисОтклонение[[#This Row],[Янв]:[Дек]])","v":{"v":1125,"d":"1,125.00 ₽"}}]
[null,"Безопасность",{"$f":"INDEX(ОфисПлан[],MATCH(INDEX(ОфисОтклонение[],ROW()-ROW(ОфисОтклонение[[#Headers],[Янв]]),1),INDEX(ОфисПлан[],,1),0),MATCH(ОфисОтклонение[[#Headers],[Янв]],ОфисПлан[#Headers],0))-INDEX(ОфисФактические[],MATCH(INDEX(ОфисОтклонение[],ROW()-ROW(ОфисОтклонение[[#Headers],[Янв]]),1),INDEX(ОфисПлан[],,1),0),MATCH(ОфисОтклонение[[#Headers],[Янв]],ОфисФактические[#Headers],0))","v":{"v":0,"d":"0.00 ₽"}},{"$f":"INDEX(ОфисПлан[],MATCH(INDEX(ОфисОтклонение[],ROW()-ROW(ОфисОтклонение[[#Headers],[Фев]]),1),INDEX(ОфисПлан[],,1),0),MATCH(ОфисОтклонение[[#Headers],[Фев]],ОфисПлан[#Headers],0))-INDEX(ОфисФактические[],MATCH(INDEX(ОфисОтклонение[],ROW()-ROW(ОфисОтклонение[[#Headers],[Фев]]),1),INDEX(ОфисПлан[],,1),0),MATCH(ОфисОтклонение[[#Headers],[Фев]],ОфисФактические[#Headers],0))","v":{"v":0,"d":"0.00 ₽"}},{"$f":"INDEX(ОфисПлан[],MATCH(INDEX(ОфисОтклонение[],ROW()-ROW(ОфисОтклонение[[#Headers],[Мар]]),1),INDEX(ОфисПлан[],,1),0),MATCH(ОфисОтклонение[[#Headers],[Мар]],ОфисПлан[#Headers],0))-INDEX(ОфисФактические[],MATCH(INDEX(ОфисОтклонение[],ROW()-ROW(ОфисОтклонение[[#Headers],[Мар]]),1),INDEX(ОфисПлан[],,1),0),MATCH(ОфисОтклонение[[#Headers],[Мар]],ОфисФактические[#Headers],0))","v":{"v":0,"d":"0.00 ₽"}},{"$f":"INDEX(ОфисПлан[],MATCH(INDEX(ОфисОтклонение[],ROW()-ROW(ОфисОтклонение[[#Headers],[Апр]]),1),INDEX(ОфисПлан[],,1),0),MATCH(ОфисОтклонение[[#Headers],[Апр]],ОфисПлан[#Headers],0))-INDEX(ОфисФактические[],MATCH(INDEX(ОфисОтклонение[],ROW()-ROW(ОфисОтклонение[[#Headers],[Апр]]),1),INDEX(ОфисПлан[],,1),0),MATCH(ОфисОтклонение[[#Headers],[Апр]],ОфисФактические[#Headers],0))","v":{"v":0,"d":"0.00 ₽"}},{"$f":"INDEX(ОфисПлан[],MATCH(INDEX(ОфисОтклонение[],ROW()-ROW(ОфисОтклонение[[#Headers],[Май]]),1),INDEX(ОфисПлан[],,1),0),MATCH(ОфисОтклонение[[#Headers],[Май]],ОфисПлан[#Headers],0))-INDEX(ОфисФактические[],MATCH(INDEX(ОфисОтклонение[],ROW()-ROW(ОфисОтклонение[[#Headers],[Май]]),1),INDEX(ОфисПлан[],,1),0),MATCH(ОфисОтклонение[[#Headers],[Май]],ОфисФактические[#Headers],0))","v":{"v":0,"d":"0.00 ₽"}},{"$f":"INDEX(ОфисПлан[],MATCH(INDEX(ОфисОтклонение[],ROW()-ROW(ОфисОтклонение[[#Headers],[Июн]]),1),INDEX(ОфисПлан[],,1),0),MATCH(ОфисОтклонение[[#Headers],[Июн]],ОфисПлан[#Headers],0))-INDEX(ОфисФактические[],MATCH(INDEX(ОфисОтклонение[],ROW()-ROW(ОфисОтклонение[[#Headers],[Июн]]),1),INDEX(ОфисПлан[],,1),0),MATCH(ОфисОтклонение[[#Headers],[Июн]],ОфисФактические[#Headers],0))","v":{"v":0,"d":"0.00 ₽"}},{"$f":"INDEX(ОфисПлан[],MATCH(INDEX(ОфисОтклонение[],ROW()-ROW(ОфисОтклонение[[#Headers],[Июл]]),1),INDEX(ОфисПлан[],,1),0),MATCH(ОфисОтклонение[[#Headers],[Июл]],ОфисПлан[#Headers],0))-INDEX(ОфисФактические[],MATCH(INDEX(ОфисОтклонение[],ROW()-ROW(ОфисОтклонение[[#Headers],[Июл]]),1),INDEX(ОфисПлан[],,1),0),MATCH(ОфисОтклонение[[#Headers],[Июл]],ОфисФактические[#Headers],0))","v":{"v":600,"d":"600.00 ₽"}},{"$f":"INDEX(ОфисПлан[],MATCH(INDEX(ОфисОтклонение[],ROW()-ROW(ОфисОтклонение[[#Headers],[Авг]]),1),INDEX(ОфисПлан[],,1),0),MATCH(ОфисОтклонение[[#Headers],[Авг]],ОфисПлан[#Headers],0))-INDEX(ОфисФактические[],MATCH(INDEX(ОфисОтклонение[],ROW()-ROW(ОфисОтклонение[[#Headers],[Авг]]),1),INDEX(ОфисПлан[],,1),0),MATCH(ОфисОтклонение[[#Headers],[Авг]],ОфисФактические[#Headers],0))","v":{"v":600,"d":"600.00 ₽"}},{"$f":"INDEX(ОфисПлан[],MATCH(INDEX(ОфисОтклонение[],ROW()-ROW(ОфисОтклонение[[#Headers],[Сен]]),1),INDEX(ОфисПлан[],,1),0),MATCH(ОфисОтклонение[[#Headers],[Сен]],ОфисПлан[#Headers],0))-INDEX(ОфисФактические[],MATCH(INDEX(ОфисОтклонение[],ROW()-ROW(ОфисОтклонение[[#Headers],[Сен]]),1),INDEX(ОфисПлан[],,1),0),MATCH(ОфисОтклонение[[#Headers],[Сен]],ОфисФактические[#Headers],0))","v":{"v":600,"d":"600.00 ₽"}},{"$f":"INDEX(ОфисПлан[],MATCH(INDEX(ОфисОтклонение[],ROW()-ROW(ОфисОтклонение[[#Headers],[Окт]]),1),INDEX(ОфисПлан[],,1),0),MATCH(ОфисОтклонение[[#Headers],[Окт]],ОфисПлан[#Headers],0))-INDEX(ОфисФактические[],MATCH(INDEX(ОфисОтклонение[],ROW()-ROW(ОфисОтклонение[[#Headers],[Окт]]),1),INDEX(ОфисПлан[],,1),0),MATCH(ОфисОтклонение[[#Headers],[Окт]],ОфисФактические[#Headers],0))","v":{"v":600,"d":"600.00 ₽"}},{"$f":"INDEX(ОфисПлан[],MATCH(INDEX(ОфисОтклонение[],ROW()-ROW(ОфисОтклонение[[#Headers],[Ноя]]),1),INDEX(ОфисПлан[],,1),0),MATCH(ОфисОтклонение[[#Headers],[Ноя]],ОфисПлан[#Headers],0))-INDEX(ОфисФактические[],MATCH(INDEX(ОфисОтклонение[],ROW()-ROW(ОфисОтклонение[[#Headers],[Ноя]]),1),INDEX(ОфисПлан[],,1),0),MATCH(ОфисОтклонение[[#Headers],[Ноя]],ОфисФактические[#Headers],0))","v":{"v":600,"d":"600.00 ₽"}},{"$f":"INDEX(ОфисПлан[],MATCH(INDEX(ОфисОтклонение[],ROW()-ROW(ОфисОтклонение[[#Headers],[Дек]]),1),INDEX(ОфисПлан[],,1),0),MATCH(ОфисОтклонение[[#Headers],[Дек]],ОфисПлан[#Headers],0))-INDEX(ОфисФактические[],MATCH(INDEX(ОфисОтклонение[],ROW()-ROW(ОфисОтклонение[[#Headers],[Дек]]),1),INDEX(ОфисПлан[],,1),0),MATCH(ОфисОтклонение[[#Headers],[Дек]],ОфисФактические[#Headers],0))","v":{"v":600,"d":"600.00 ₽"}},{"$f":"SUM(ОфисОтклонение[[#This Row],[Янв]:[Дек]])","v":{"v":3600,"d":"3,600.00 ₽"}}]
[null,"Промежуточный итог",{"$f":"SUBTOTAL(109,ОфисОтклонение[Янв])","v":{"v":-17,"d":"-17.00 ₽"}},{"$f":"SUBTOTAL(109,ОфисОтклонение[Фев])","v":{"v":72,"d":"72.00 ₽"}},{"$f":"SUBTOTAL(109,ОфисОтклонение[Мар])","v":{"v":78,"d":"78.00 ₽"}},{"$f":"SUBTOTAL(109,ОфисОтклонение[Апр])","v":{"v":-141,"d":"-141.00 ₽"}},{"$f":"SUBTOTAL(109,ОфисОтклонение[Май])","v":{"v":-38,"d":"-38.00 ₽"}},{"$f":"SUBTOTAL(109,ОфисОтклонение[Июн])","v":{"v":16,"d":"16.00 ₽"}},{"$f":"SUBTOTAL(109,ОфисОтклонение[Июл])","v":{"v":11470,"d":"11,470.00 ₽"}},{"$f":"SUBTOTAL(109,ОфисОтклонение[Авг])","v":{"v":11470,"d":"11,470.00 ₽"}},{"$f":"SUBTOTAL(109,ОфисОтклонение[Сен])","v":{"v":11470,"d":"11,470.00 ₽"}},{"$f":"SUBTOTAL(109,ОфисОтклонение[Окт])","v":{"v":11470,"d":"11,470.00 ₽"}},{"$f":"SUBTOTAL(109,ОфисОтклонение[Ноя])","v":{"v":11770,"d":"11,770.00 ₽"}},{"$f":"SUBTOTAL(109,ОфисОтклонение[Дек])","v":{"v":11770,"d":"11,770.00 ₽"}},{"$f":"SUBTOTAL(109,ОфисОтклонение[ГОД])","v":{"v":69390,"d":"69,390.00 ₽"}}]
[]
[null,"Расходы на маркетинг","Янв","Фев","Мар","Апр","Май","Июн","Июл","Авг","Сен","Окт","Ноя","Дек","ГОД"]
[null,"Размещение веб-сайта",{"$f":"INDEX(МаркетингПлан[],MATCH(INDEX(МаркетингОтклонение[],ROW()-ROW(МаркетингОтклонение[[#Headers],[Янв]]),1),INDEX(МаркетингПлан[],,1),0),MATCH(МаркетингОтклонение[[#Headers],[Янв]],МаркетингПлан[#Headers],0))-INDEX(МаркетингФактические[],MATCH(INDEX(МаркетингОтклонение[],ROW()-ROW(МаркетингОтклонение[[#Headers],[Янв]]),1),INDEX(МаркетингПлан[],,1),0),MATCH(МаркетингОтклонение[[#Headers],[Янв]],МаркетингФактические[#Headers],0))","v":{"v":0,"d":"0.00 ₽"}},{"$f":"INDEX(МаркетингПлан[],MATCH(INDEX(МаркетингОтклонение[],ROW()-ROW(МаркетингОтклонение[[#Headers],[Фев]]),1),INDEX(МаркетингПлан[],,1),0),MATCH(МаркетингОтклонение[[#Headers],[Фев]],МаркетингПлан[#Headers],0))-INDEX(МаркетингФактические[],MATCH(INDEX(МаркетингОтклонение[],ROW()-ROW(МаркетингОтклонение[[#Headers],[Фев]]),1),INDEX(МаркетингПлан[],,1),0),MATCH(МаркетингОтклонение[[#Headers],[Фев]],МаркетингФактические[#Headers],0))","v":{"v":0,"d":"0.00 ₽"}},{"$f":"INDEX(МаркетингПлан[],MATCH(INDEX(МаркетингОтклонение[],ROW()-ROW(МаркетингОтклонение[[#Headers],[Мар]]),1),INDEX(МаркетингПлан[],,1),0),MATCH(МаркетингОтклонение[[#Headers],[Мар]],МаркетингПлан[#Headers],0))-INDEX(МаркетингФактические[],MATCH(INDEX(МаркетингОтклонение[],ROW()-ROW(МаркетингОтклонение[[#Headers],[Мар]]),1),INDEX(МаркетингПлан[],,1),0),MATCH(МаркетингОтклонение[[#Headers],[Мар]],МаркетингФактические[#Headers],0))","v":{"v":0,"d":"0.00 ₽"}},{"$f":"INDEX(МаркетингПлан[],MATCH(INDEX(МаркетингОтклонение[],ROW()-ROW(МаркетингОтклонение[[#Headers],[Апр]]),1),INDEX(МаркетингПлан[],,1),0),MATCH(МаркетингОтклонение[[#Headers],[Апр]],МаркетингПлан[#Headers],0))-INDEX(МаркетингФактические[],MATCH(INDEX(МаркетингОтклонение[],ROW()-ROW(МаркетингОтклонение[[#Headers],[Апр]]),1),INDEX(МаркетингПлан[],,1),0),MATCH(МаркетингОтклонение[[#Headers],[Апр]],МаркетингФактические[#Headers],0))","v":{"v":0,"d":"0.00 ₽"}},{"$f":"INDEX(МаркетингПлан[],MATCH(INDEX(МаркетингОтклонение[],ROW()-ROW(МаркетингОтклонение[[#Headers],[Май]]),1),INDEX(МаркетингПлан[],,1),0),MATCH(МаркетингОтклонение[[#Headers],[Май]],МаркетингПлан[#Headers],0))-INDEX(МаркетингФактические[],MATCH(INDEX(МаркетингОтклонение[],ROW()-ROW(МаркетингОтклонение[[#Headers],[Май]]),1),INDEX(МаркетингПлан[],,1),0),MATCH(МаркетингОтклонение[[#Headers],[Май]],МаркетингФактические[#Headers],0))","v":{"v":0,"d":"0.00 ₽"}},{"$f":"INDEX(МаркетингПлан[],MATCH(INDEX(МаркетингОтклонение[],ROW()-ROW(МаркетингОтклонение[[#Headers],[Июн]]),1),INDEX(МаркетингПлан[],,1),0),MATCH(МаркетингОтклонение[[#Headers],[Июн]],МаркетингПлан[#Headers],0))-INDEX(МаркетингФактические[],MATCH(INDEX(МаркетингОтклонение[],ROW()-ROW(МаркетингОтклонение[[#Headers],[Июн]]),1),INDEX(МаркетингПлан[],,1),0),MATCH(МаркетингОтклонение[[#Headers],[Июн]],МаркетингФактические[#Headers],0))","v":{"v":0,"d":"0.00 ₽"}},{"$f":"INDEX(МаркетингПлан[],MATCH(INDEX(МаркетингОтклонение[],ROW()-ROW(МаркетингОтклонение[[#Headers],[Июл]]),1),INDEX(МаркетингПлан[],,1),0),MATCH(МаркетингОтклонение[[#Headers],[Июл]],МаркетингПлан[#Headers],0))-INDEX(МаркетингФактические[],MATCH(INDEX(МаркетингОтклонение[],ROW()-ROW(МаркетингОтклонение[[#Headers],[Июл]]),1),INDEX(МаркетингПлан[],,1),0),MATCH(МаркетингОтклонение[[#Headers],[Июл]],МаркетингФактические[#Headers],0))","v":{"v":500,"d":"500.00 ₽"}},{"$f":"INDEX(МаркетингПлан[],MATCH(INDEX(МаркетингОтклонение[],ROW()-ROW(МаркетингОтклонение[[#Headers],[Авг]]),1),INDEX(МаркетингПлан[],,1),0),MATCH(МаркетингОтклонение[[#Headers],[Авг]],МаркетингПлан[#Headers],0))-INDEX(МаркетингФактические[],MATCH(INDEX(МаркетингОтклонение[],ROW()-ROW(МаркетингОтклонение[[#Headers],[Авг]]),1),INDEX(МаркетингПлан[],,1),0),MATCH(МаркетингОтклонение[[#Headers],[Авг]],МаркетингФактические[#Headers],0))","v":{"v":500,"d":"500.00 ₽"}},{"$f":"INDEX(МаркетингПлан[],MATCH(INDEX(МаркетингОтклонение[],ROW()-ROW(МаркетингОтклонение[[#Headers],[Сен]]),1),INDEX(МаркетингПлан[],,1),0),MATCH(МаркетингОтклонение[[#Headers],[Сен]],МаркетингПлан[#Headers],0))-INDEX(МаркетингФактические[],MATCH(INDEX(МаркетингОтклонение[],ROW()-ROW(МаркетингОтклонение[[#Headers],[Сен]]),1),INDEX(МаркетингПлан[],,1),0),MATCH(МаркетингОтклонение[[#Headers],[Сен]],МаркетингФактические[#Headers],0))","v":{"v":500,"d":"500.00 ₽"}},{"$f":"INDEX(МаркетингПлан[],MATCH(INDEX(МаркетингОтклонение[],ROW()-ROW(МаркетингОтклонение[[#Headers],[Окт]]),1),INDEX(МаркетингПлан[],,1),0),MATCH(МаркетингОтклонение[[#Headers],[Окт]],МаркетингПлан[#Headers],0))-INDEX(МаркетингФактические[],MATCH(INDEX(МаркетингОтклонение[],ROW()-ROW(МаркетингОтклонение[[#Headers],[Окт]]),1),INDEX(МаркетингПлан[],,1),0),MATCH(МаркетингОтклонение[[#Headers],[Окт]],МаркетингФактические[#Headers],0))","v":{"v":500,"d":"500.00 ₽"}},{"$f":"INDEX(МаркетингПлан[],MATCH(INDEX(МаркетингОтклонение[],ROW()-ROW(МаркетингОтклонение[[#Headers],[Ноя]]),1),INDEX(МаркетингПлан[],,1),0),MATCH(МаркетингОтклонение[[#Headers],[Ноя]],МаркетингПлан[#Headers],0))-INDEX(МаркетингФактические[],MATCH(INDEX(МаркетингОтклонение[],ROW()-ROW(МаркетингОтклонение[[#Headers],[Ноя]]),1),INDEX(МаркетингПлан[],,1),0),MATCH(МаркетингОтклонение[[#Headers],[Ноя]],МаркетингФактические[#Headers],0))","v":{"v":500,"d":"500.00 ₽"}},{"$f":"INDEX(МаркетингПлан[],MATCH(INDEX(МаркетингОтклонение[],ROW()-ROW(МаркетингОтклонение[[#Headers],[Дек]]),1),INDEX(МаркетингПлан[],,1),0),MATCH(МаркетингОтклонение[[#Headers],[Дек]],МаркетингПлан[#Headers],0))-INDEX(МаркетингФактические[],MATCH(INDEX(МаркетингОтклонение[],ROW()-ROW(МаркетингОтклонение[[#Headers],[Дек]]),1),INDEX(МаркетингПлан[],,1),0),MATCH(МаркетингОтклонение[[#Headers],[Дек]],МаркетингФактические[#Headers],0))","v":{"v":500,"d":"500.00 ₽"}},{"$f":"SUM(МаркетингОтклонение[[#This Row],[Янв]:[Дек]])","v":{"v":3000,"d":"3,000.00 ₽"}}]
[null,"Обновление веб-сайта",{"$f":"INDEX(МаркетингПлан[],MATCH(INDEX(МаркетингОтклонение[],ROW()-ROW(МаркетингОтклонение[[#Headers],[Янв]]),1),INDEX(МаркетингПлан[],,1),0),MATCH(МаркетингОтклонение[[#Headers],[Янв]],МаркетингПлан[#Headers],0))-INDEX(МаркетингФактические[],MATCH(INDEX(МаркетингОтклонение[],ROW()-ROW(МаркетингОтклонение[[#Headers],[Янв]]),1),INDEX(МаркетингПлан[],,1),0),MATCH(МаркетингОтклонение[[#Headers],[Янв]],МаркетингФактические[#Headers],0))","v":{"v":0,"d":"0.00 ₽"}},{"$f":"INDEX(МаркетингПлан[],MATCH(INDEX(МаркетингОтклонение[],ROW()-ROW(МаркетингОтклонение[[#Headers],[Фев]]),1),INDEX(МаркетингПлан[],,1),0),MATCH(МаркетингОтклонение[[#Headers],[Фев]],МаркетингПлан[#Headers],0))-INDEX(МаркетингФактические[],MATCH(INDEX(МаркетингОтклонение[],ROW()-ROW(МаркетингОтклонение[[#Headers],[Фев]]),1),INDEX(МаркетингПлан[],,1),0),MATCH(МаркетингОтклонение[[#Headers],[Фев]],МаркетингФактические[#Headers],0))","v":{"v":0,"d":"0.00 ₽"}},{"$f":"INDEX(МаркетингПлан[],MATCH(INDEX(МаркетингОтклонение[],ROW()-ROW(МаркетингОтклонение[[#Headers],[Мар]]),1),INDEX(МаркетингПлан[],,1),0),MATCH(МаркетингОтклонение[[#Headers],[Мар]],МаркетингПлан[#Headers],0))-INDEX(МаркетингФактические[],MATCH(INDEX(МаркетингОтклонение[],ROW()-ROW(МаркетингОтклонение[[#Headers],[Мар]]),1),INDEX(МаркетингПлан[],,1),0),MATCH(МаркетингОтклонение[[#Headers],[Мар]],МаркетингФактические[#Headers],0))","v":{"v":0,"d":"0.00 ₽"}},{"$f":"INDEX(МаркетингПлан[],MATCH(INDEX(МаркетингОтклонение[],ROW()-ROW(МаркетингОтклонение[[#Headers],[Апр]]),1),INDEX(МаркетингПлан[],,1),0),MATCH(МаркетингОтклонение[[#Headers],[Апр]],МаркетингПлан[#Headers],0))-INDEX(МаркетингФактические[],MATCH(INDEX(МаркетингОтклонение[],ROW()-ROW(МаркетингОтклонение[[#Headers],[Апр]]),1),INDEX(МаркетингПлан[],,1),0),MATCH(МаркетингОтклонение[[#Headers],[Апр]],МаркетингФактические[#Headers],0))","v":{"v":0,"d":"0.00 ₽"}},{"$f":"INDEX(МаркетингПлан[],MATCH(INDEX(МаркетингОтклонение[],ROW()-ROW(МаркетингОтклонение[[#Headers],[Май]]),1),INDEX(МаркетингПлан[],,1),0),MATCH(МаркетингОтклонение[[#Headers],[Май]],МаркетингПлан[#Headers],0))-INDEX(МаркетингФактические[],MATCH(INDEX(МаркетингОтклонение[],ROW()-ROW(МаркетингОтклонение[[#Headers],[Май]]),1),INDEX(МаркетингПлан[],,1),0),MATCH(МаркетингОтклонение[[#Headers],[Май]],МаркетингФактические[#Headers],0))","v":{"v":0,"d":"0.00 ₽"}},{"$f":"INDEX(МаркетингПлан[],MATCH(INDEX(МаркетингОтклонение[],ROW()-ROW(МаркетингОтклонение[[#Headers],[Июн]]),1),INDEX(МаркетингПлан[],,1),0),MATCH(МаркетингОтклонение[[#Headers],[Июн]],МаркетингПлан[#Headers],0))-INDEX(МаркетингФактические[],MATCH(INDEX(МаркетингОтклонение[],ROW()-ROW(МаркетингОтклонение[[#Headers],[Июн]]),1),INDEX(МаркетингПлан[],,1),0),MATCH(МаркетингОтклонение[[#Headers],[Июн]],МаркетингФактические[#Headers],0))","v":{"v":-500,"d":"-500.00 ₽"}},{"$f":"INDEX(МаркетингПлан[],MATCH(INDEX(МаркетингОтклонение[],ROW()-ROW(МаркетингОтклонение[[#Headers],[Июл]]),1),INDEX(МаркетингПлан[],,1),0),MATCH(МаркетингОтклонение[[#Headers],[Июл]],МаркетингПлан[#Headers],0))-INDEX(МаркетингФактические[],MATCH(INDEX(МаркетингОтклонение[],ROW()-ROW(МаркетингОтклонение[[#Headers],[Июл]]),1),INDEX(МаркетингПлан[],,1),0),MATCH(МаркетингОтклонение[[#Headers],[Июл]],МаркетингФактические[#Headers],0))","v":{"v":200,"d":"200.00 ₽"}},{"$f":"INDEX(МаркетингПлан[],MATCH(INDEX(МаркетингОтклонение[],ROW()-ROW(МаркетингОтклонение[[#Headers],[Авг]]),1),INDEX(МаркетингПлан[],,1),0),MATCH(МаркетингОтклонение[[#Headers],[Авг]],МаркетингПлан[#Headers],0))-INDEX(МаркетингФактические[],MATCH(INDEX(МаркетингОтклонение[],ROW()-ROW(МаркетингОтклонение[[#Headers],[Авг]]),1),INDEX(МаркетингПлан[],,1),0),MATCH(МаркетингОтклонение[[#Headers],[Авг]],МаркетингФактические[#Headers],0))","v":{"v":200,"d":"200.00 ₽"}},{"$f":"INDEX(МаркетингПлан[],MATCH(INDEX(МаркетингОтклонение[],ROW()-ROW(МаркетингОтклонение[[#Headers],[Сен]]),1),INDEX(МаркетингПлан[],,1),0),MATCH(МаркетингОтклонение[[#Headers],[Сен]],МаркетингПлан[#Headers],0))-INDEX(МаркетингФактические[],MATCH(INDEX(МаркетингОтклонение[],ROW()-ROW(МаркетингОтклонение[[#Headers],[Сен]]),1),INDEX(МаркетингПлан[],,1),0),MATCH(МаркетингОтклонение[[#Headers],[Сен]],МаркетингФактические[#Headers],0))","v":{"v":200,"d":"200.00 ₽"}},{"$f":"INDEX(МаркетингПлан[],MATCH(INDEX(МаркетингОтклонение[],ROW()-ROW(МаркетингОтклонение[[#Headers],[Окт]]),1),INDEX(МаркетингПлан[],,1),0),MATCH(МаркетингОтклонение[[#Headers],[Окт]],МаркетингПлан[#Headers],0))-INDEX(МаркетингФактические[],MATCH(INDEX(МаркетингОтклонение[],ROW()-ROW(МаркетингОтклонение[[#Headers],[Окт]]),1),INDEX(МаркетингПлан[],,1),0),MATCH(МаркетингОтклонение[[#Headers],[Окт]],МаркетингФактические[#Headers],0))","v":{"v":200,"d":"200.00 ₽"}},{"$f":"INDEX(МаркетингПлан[],MATCH(INDEX(МаркетингОтклонение[],ROW()-ROW(МаркетингОтклонение[[#Headers],[Ноя]]),1),INDEX(МаркетингПлан[],,1),0),MATCH(МаркетингОтклонение[[#Headers],[Ноя]],МаркетингПлан[#Headers],0))-INDEX(МаркетингФактические[],MATCH(INDEX(МаркетингОтклонение[],ROW()-ROW(МаркетингОтклонение[[#Headers],[Ноя]]),1),INDEX(МаркетингПлан[],,1),0),MATCH(МаркетингОтклонение[[#Headers],[Ноя]],МаркетингФактические[#Headers],0))","v":{"v":200,"d":"200.00 ₽"}},{"$f":"INDEX(МаркетингПлан[],MATCH(INDEX(МаркетингОтклонение[],ROW()-ROW(МаркетингОтклонение[[#Headers],[Дек]]),1),INDEX(МаркетингПлан[],,1),0),MATCH(МаркетингОтклонение[[#Headers],[Дек]],МаркетингПлан[#Headers],0))-INDEX(МаркетингФактические[],MATCH(INDEX(МаркетингОтклонение[],ROW()-ROW(МаркетингОтклонение[[#Headers],[Дек]]),1),INDEX(МаркетингПлан[],,1),0),MATCH(МаркетингОтклонение[[#Headers],[Дек]],МаркетингФактические[#Headers],0))","v":{"v":1000,"d":"1,000.00 ₽"}},{"$f":"SUM(МаркетингОтклонение[[#This Row],[Янв]:[Дек]])","v":{"v":1500,"d":"1,500.00 ₽"}}]
[null,"Подготовка рекламных материалов",{"$f":"INDEX(МаркетингПлан[],MATCH(INDEX(МаркетингОтклонение[],ROW()-ROW(МаркетингОтклонение[[#Headers],[Янв]]),1),INDEX(МаркетингПлан[],,1),0),MATCH(МаркетингОтклонение[[#Headers],[Янв]],МаркетингПлан[#Headers],0))-INDEX(МаркетингФактические[],MATCH(INDEX(МаркетингОтклонение[],ROW()-ROW(МаркетингОтклонение[[#Headers],[Янв]]),1),INDEX(МаркетингПлан[],,1),0),MATCH(МаркетингОтклонение[[#Headers],[Янв]],МаркетингФактические[#Headers],0))","v":{"v":200,"d":"200.00 ₽"}},{"$f":"INDEX(МаркетингПлан[],MATCH(INDEX(МаркетингОтклонение[],ROW()-ROW(МаркетингОтклонение[[#Headers],[Фев]]),1),INDEX(МаркетингПлан[],,1),0),MATCH(МаркетингОтклонение[[#Headers],[Фев]],МаркетингПлан[#Headers],0))-INDEX(МаркетингФактические[],MATCH(INDEX(МаркетингОтклонение[],ROW()-ROW(МаркетингОтклонение[[#Headers],[Фев]]),1),INDEX(МаркетингПлан[],,1),0),MATCH(МаркетингОтклонение[[#Headers],[Фев]],МаркетингФактические[#Headers],0))","v":{"v":0,"d":"0.00 ₽"}},{"$f":"INDEX(МаркетингПлан[],MATCH(INDEX(МаркетингОтклонение[],ROW()-ROW(МаркетингОтклонение[[#Headers],[Мар]]),1),INDEX(МаркетингПлан[],,1),0),MATCH(МаркетингОтклонение[[#Headers],[Мар]],МаркетингПлан[#Headers],0))-INDEX(МаркетингФактические[],MATCH(INDEX(МаркетингОтклонение[],ROW()-ROW(МаркетингОтклонение[[#Headers],[Мар]]),1),INDEX(МаркетингПлан[],,1),0),MATCH(МаркетингОтклонение[[#Headers],[Мар]],МаркетингФактические[#Headers],0))","v":{"v":0,"d":"0.00 ₽"}},{"$f":"INDEX(МаркетингПлан[],MATCH(INDEX(МаркетингОтклонение[],ROW()-ROW(МаркетингОтклонение[[#Headers],[Апр]]),1),INDEX(МаркетингПлан[],,1),0),MATCH(МаркетингОтклонение[[#Headers],[Апр]],МаркетингПлан[#Headers],0))-INDEX(МаркетингФактические[],MATCH(INDEX(МаркетингОтклонение[],ROW()-ROW(МаркетингОтклонение[[#Headers],[Апр]]),1),INDEX(МаркетингПлан[],,1),0),MATCH(МаркетингОтклонение[[#Headers],[Апр]],МаркетингФактические[#Headers],0))","v":{"v":-500,"d":"-500.00 ₽"}},{"$f":"INDEX(МаркетингПлан[],MATCH(INDEX(МаркетингОтклонение[],ROW()-ROW(МаркетингОтклонение[[#Headers],[Май]]),1),INDEX(МаркетингПлан[],,1),0),MATCH(МаркетингОтклонение[[#Headers],[Май]],МаркетингПлан[#Headers],0))-INDEX(МаркетингФактические[],MATCH(INDEX(МаркетингОтклонение[],ROW()-ROW(МаркетингОтклонение[[#Headers],[Май]]),1),INDEX(МаркетингПлан[],,1),0),MATCH(МаркетингОтклонение[[#Headers],[Май]],МаркетингФактические[#Headers],0))","v":{"v":0,"d":"0.00 ₽"}},{"$f":"INDEX(МаркетингПлан[],MATCH(INDEX(МаркетингОтклонение[],ROW()-ROW(МаркетингОтклонение[[#Headers],[Июн]]),1),INDEX(МаркетингПлан[],,1),0),MATCH(МаркетингОтклонение[[#Headers],[Июн]],МаркетингПлан[#Headers],0))-INDEX(МаркетингФактические[],MATCH(INDEX(МаркетингОтклонение[],ROW()-ROW(МаркетингОтклонение[[#Headers],[Июн]]),1),INDEX(МаркетингПлан[],,1),0),MATCH(МаркетингОтклонение[[#Headers],[Июн]],МаркетингФактические[#Headers],0))","v":{"v":0,"d":"0.00 ₽"}},{"$f":"INDEX(МаркетингПлан[],MATCH(INDEX(МаркетингОтклонение[],ROW()-ROW(МаркетингОтклонение[[#Headers],[Июл]]),1),INDEX(МаркетингПлан[],,1),0),MATCH(МаркетингОтклонение[[#Headers],[Июл]],МаркетингПлан[#Headers],0))-INDEX(МаркетингФактические[],MATCH(INDEX(МаркетингОтклонение[],ROW()-ROW(МаркетингОтклонение[[#Headers],[Июл]]),1),INDEX(МаркетингПлан[],,1),0),MATCH(МаркетингОтклонение[[#Headers],[Июл]],МаркетингФактические[#Headers],0))","v":{"v":5000,"d":"5,000.00 ₽"}},{"$f":"INDEX(МаркетингПлан[],MATCH(INDEX(МаркетингОтклонение[],ROW()-ROW(МаркетингОтклонение[[#Headers],[Авг]]),1),INDEX(МаркетингПлан[],,1),0),MATCH(МаркетингОтклонение[[#Headers],[Авг]],МаркетингПлан[#Headers],0))-INDEX(МаркетингФактические[],MATCH(INDEX(МаркетингОтклонение[],ROW()-ROW(МаркетингОтклонение[[#Headers],[Авг]]),1),INDEX(МаркетингПлан[],,1),0),MATCH(МаркетингОтклонение[[#Headers],[Авг]],МаркетингФактические[#Headers],0))","v":{"v":0,"d":"0.00 ₽"}},{"$f":"INDEX(МаркетингПлан[],MATCH(INDEX(МаркетингОтклонение[],ROW()-ROW(МаркетингОтклонение[[#Headers],[Сен]]),1),INDEX(МаркетингПлан[],,1),0),MATCH(МаркетингОтклонение[[#Headers],[Сен]],МаркетингПлан[#Headers],0))-INDEX(МаркетингФактические[],MATCH(INDEX(МаркетингОтклонение[],ROW()-ROW(МаркетингОтклонение[[#Headers],[Сен]]),1),INDEX(МаркетингПлан[],,1),0),MATCH(МаркетингОтклонение[[#Headers],[Сен]],МаркетингФактические[#Headers],0))","v":{"v":0,"d":"0.00 ₽"}},{"$f":"INDEX(МаркетингПлан[],MATCH(INDEX(МаркетингОтклонение[],ROW()-ROW(МаркетингОтклонение[[#Headers],[Окт]]),1),INDEX(МаркетингПлан[],,1),0),MATCH(МаркетингОтклонение[[#Headers],[Окт]],МаркетингПлан[#Headers],0))-INDEX(МаркетингФактические[],MATCH(INDEX(МаркетингОтклонение[],ROW()-ROW(МаркетингОтклонение[[#Headers],[Окт]]),1),INDEX(МаркетингПлан[],,1),0),MATCH(МаркетингОтклонение[[#Headers],[Окт]],МаркетингФактические[#Headers],0))","v":{"v":5000,"d":"5,000.00 ₽"}},{"$f":"INDEX(МаркетингПлан[],MATCH(INDEX(МаркетингОтклонение[],ROW()-ROW(МаркетингОтклонение[[#Headers],[Ноя]]),1),INDEX(МаркетингПлан[],,1),0),MATCH(МаркетингОтклонение[[#Headers],[Ноя]],МаркетингПлан[#Headers],0))-INDEX(МаркетингФактические[],MATCH(INDEX(МаркетингОтклонение[],ROW()-ROW(МаркетингОтклонение[[#Headers],[Ноя]]),1),INDEX(МаркетингПлан[],,1),0),MATCH(МаркетингОтклонение[[#Headers],[Ноя]],МаркетингФактические[#Headers],0))","v":{"v":0,"d":"0.00 ₽"}},{"$f":"INDEX(МаркетингПлан[],MATCH(INDEX(МаркетингОтклонение[],ROW()-ROW(МаркетингОтклонение[[#Headers],[Дек]]),1),INDEX(МаркетингПлан[],,1),0),MATCH(МаркетингОтклонение[[#Headers],[Дек]],МаркетингПлан[#Headers],0))-INDEX(МаркетингФактические[],MATCH(INDEX(МаркетингОтклонение[],ROW()-ROW(МаркетингОтклонение[[#Headers],[Дек]]),1),INDEX(МаркетингПлан[],,1),0),MATCH(МаркетингОтклонение[[#Headers],[Дек]],МаркетингФактические[#Headers],0))","v":{"v":0,"d":"0.00 ₽"}},{"$f":"SUM(МаркетингОтклонение[[#This Row],[Янв]:[Дек]])","v":{"v":9700,"d":"9,700.00 ₽"}}]
[null,"Печать рекламных материалов",{"$f":"INDEX(МаркетингПлан[],MATCH(INDEX(МаркетингОтклонение[],ROW()-ROW(МаркетингОтклонение[[#Headers],[Янв]]),1),INDEX(МаркетингПлан[],,1),0),MATCH(МаркетингОтклонение[[#Headers],[Янв]],МаркетингПлан[#Headers],0))-INDEX(МаркетингФактические[],MATCH(INDEX(МаркетингОтклонение[],ROW()-ROW(МаркетингОтклонение[[#Headers],[Янв]]),1),INDEX(МаркетингПлан[],,1),0),MATCH(МаркетингОтклонение[[#Headers],[Янв]],МаркетингФактические[#Headers],0))","v":{"v":100,"d":"100.00 ₽"}},{"$f":"INDEX(МаркетингПлан[],MATCH(INDEX(МаркетингОтклонение[],ROW()-ROW(МаркетингОтклонение[[#Headers],[Фев]]),1),INDEX(МаркетингПлан[],,1),0),MATCH(МаркетингОтклонение[[#Headers],[Фев]],МаркетингПлан[#Headers],0))-INDEX(МаркетингФактические[],MATCH(INDEX(МаркетингОтклонение[],ROW()-ROW(МаркетингОтклонение[[#Headers],[Фев]]),1),INDEX(МаркетингПлан[],,1),0),MATCH(МаркетингОтклонение[[#Headers],[Фев]],МаркетингФактические[#Headers],0))","v":{"v":-300,"d":"-300.00 ₽"}},{"$f":"INDEX(МаркетингПлан[],MATCH(INDEX(МаркетингОтклонение[],ROW()-ROW(МаркетингОтклонение[[#Headers],[Мар]]),1),INDEX(МаркетингПлан[],,1),0),MATCH(МаркетингОтклонение[[#Headers],[Мар]],МаркетингПлан[#Headers],0))-INDEX(МаркетингФактические[],MATCH(INDEX(МаркетингОтклонение[],ROW()-ROW(МаркетингОтклонение[[#Headers],[Мар]]),1),INDEX(МаркетингПлан[],,1),0),MATCH(МаркетингОтклонение[[#Headers],[Мар]],МаркетингФактические[#Headers],0))","v":{"v":100,"d":"100.00 ₽"}},{"$f":"INDEX(МаркетингПлан[],MATCH(INDEX(МаркетингОтклонение[],ROW()-ROW(МаркетингОтклонение[[#Headers],[Апр]]),1),INDEX(МаркетингПлан[],,1),0),MATCH(МаркетингОтклонение[[#Headers],[Апр]],МаркетингПлан[#Headers],0))-INDEX(МаркетингФактические[],MATCH(INDEX(МаркетингОтклонение[],ROW()-ROW(МаркетингОтклонение[[#Headers],[Апр]]),1),INDEX(МаркетингПлан[],,1),0),MATCH(МаркетингОтклонение[[#Headers],[Апр]],МаркетингФактические[#Headers],0))","v":{"v":100,"d":"100.00 ₽"}},{"$f":"INDEX(МаркетингПлан[],MATCH(INDEX(МаркетингОтклонение[],ROW()-ROW(МаркетингОтклонение[[#Headers],[Май]]),1),INDEX(МаркетингПлан[],,1),0),MATCH(МаркетингОтклонение[[#Headers],[Май]],МаркетингПлан[#Headers],0))-INDEX(МаркетингФактические[],MATCH(INDEX(МаркетингОтклонение[],ROW()-ROW(МаркетингОтклонение[[#Headers],[Май]]),1),INDEX(МаркетингПлан[],,1),0),MATCH(МаркетингОтклонение[[#Headers],[Май]],МаркетингФактические[#Headers],0))","v":{"v":-400,"d":"-400.00 ₽"}},{"$f":"INDEX(МаркетингПлан[],MATCH(INDEX(МаркетингОтклонение[],ROW()-ROW(МаркетингОтклонение[[#Headers],[Июн]]),1),INDEX(МаркетингПлан[],,1),0),MATCH(МаркетингОтклонение[[#Headers],[Июн]],МаркетингПлан[#Headers],0))-INDEX(МаркетингФактические[],MATCH(INDEX(МаркетингОтклонение[],ROW()-ROW(МаркетингОтклонение[[#Headers],[Июн]]),1),INDEX(МаркетингПлан[],,1),0),MATCH(МаркетингОтклонение[[#Headers],[Июн]],МаркетингФактические[#Headers],0))","v":{"v":20,"d":"20.00 ₽"}},{"$f":"INDEX(МаркетингПлан[],MATCH(INDEX(МаркетингОтклонение[],ROW()-ROW(МаркетингОтклонение[[#Headers],[Июл]]),1),INDEX(МаркетингПлан[],,1),0),MATCH(МаркетингОтклонение[[#Headers],[Июл]],МаркетингПлан[#Headers],0))-INDEX(МаркетингФактические[],MATCH(INDEX(МаркетингОтклонение[],ROW()-ROW(МаркетингОтклонение[[#Headers],[Июл]]),1),INDEX(МаркетингПлан[],,1),0),MATCH(МаркетингОтклонение[[#Headers],[Июл]],МаркетингФактические[#Headers],0))","v":{"v":200,"d":"200.00 ₽"}},{"$f":"INDEX(МаркетингПлан[],MATCH(INDEX(МаркетингОтклонение[],ROW()-ROW(МаркетингОтклонение[[#Headers],[Авг]]),1),INDEX(МаркетингПлан[],,1),0),MATCH(МаркетингОтклонение[[#Headers],[Авг]],МаркетингПлан[#Headers],0))-INDEX(МаркетингФактические[],MATCH(INDEX(МаркетингОтклонение[],ROW()-ROW(МаркетингОтклонение[[#Headers],[Авг]]),1),INDEX(МаркетингПлан[],,1),0),MATCH(МаркетингОтклонение[[#Headers],[Авг]],МаркетингФактические[#Headers],0))","v":{"v":200,"d":"200.00 ₽"}},{"$f":"INDEX(МаркетингПлан[],MATCH(INDEX(МаркетингОтклонение[],ROW()-ROW(МаркетингОтклонение[[#Headers],[Сен]]),1),INDEX(МаркетингПлан[],,1),0),MATCH(МаркетингОтклонение[[#Headers],[Сен]],МаркетингПлан[#Headers],0))-INDEX(МаркетингФактические[],MATCH(INDEX(МаркетингОтклонение[],ROW()-ROW(МаркетингОтклонение[[#Headers],[Сен]]),1),INDEX(МаркетингПлан[],,1),0),MATCH(МаркетингОтклонение[[#Headers],[Сен]],МаркетингФактические[#Headers],0))","v":{"v":200,"d":"200.00 ₽"}},{"$f":"INDEX(МаркетингПлан[],MATCH(INDEX(МаркетингОтклонение[],ROW()-ROW(МаркетингОтклонение[[#Headers],[Окт]]),1),INDEX(МаркетингПлан[],,1),0),MATCH(МаркетингОтклонение[[#Headers],[Окт]],МаркетингПлан[#Headers],0))-INDEX(МаркетингФактические[],MATCH(INDEX(МаркетингОтклонение[],ROW()-ROW(МаркетингОтклонение[[#Headers],[Окт]]),1),INDEX(МаркетингПлан[],,1),0),MATCH(МаркетингОтклонение[[#Headers],[Окт]],МаркетингФактические[#Headers],0))","v":{"v":200,"d":"200.00 ₽"}},{"$f":"INDEX(МаркетингПлан[],MATCH(INDEX(МаркетингОтклонение[],ROW()-ROW(МаркетингОтклонение[[#Headers],[Ноя]]),1),INDEX(МаркетингПлан[],,1),0),MATCH(МаркетингОтклонение[[#Headers],[Ноя]],МаркетингПлан[#Headers],0))-INDEX(МаркетингФактические[],MATCH(INDEX(МаркетингОтклонение[],ROW()-ROW(МаркетингОтклонение[[#Headers],[Ноя]]),1),INDEX(МаркетингПлан[],,1),0),MATCH(МаркетингОтклонение[[#Headers],[Ноя]],МаркетингФактические[#Headers],0))","v":{"v":200,"d":"200.00 ₽"}},{"$f":"INDEX(МаркетингПлан[],MATCH(INDEX(МаркетингОтклонение[],ROW()-ROW(МаркетингОтклонение[[#Headers],[Дек]]),1),INDEX(МаркетингПлан[],,1),0),MATCH(МаркетингОтклонение[[#Headers],[Дек]],МаркетингПлан[#Headers],0))-INDEX(МаркетингФактические[],MATCH(INDEX(МаркетингОтклонение[],ROW()-ROW(МаркетингОтклонение[[#Headers],[Дек]]),1),INDEX(МаркетингПлан[],,1),0),MATCH(МаркетингОтклонение[[#Headers],[Дек]],МаркетингФактические[#Headers],0))","v":{"v":200,"d":"200.00 ₽"}},{"$f":"SUM(МаркетингОтклонение[[#This Row],[Янв]:[Дек]])","v":{"v":820,"d":"820.00 ₽"}}]
[null,"Маркетинговые мероприятия",{"$f":"INDEX(МаркетингПлан[],MATCH(INDEX(МаркетингОтклонение[],ROW()-ROW(МаркетингОтклонение[[#Headers],[Янв]]),1),INDEX(МаркетингПлан[],,1),0),MATCH(МаркетингОтклонение[[#Headers],[Янв]],МаркетингПлан[#Headers],0))-INDEX(МаркетингФактические[],MATCH(INDEX(МаркетингОтклонение[],ROW()-ROW(МаркетингОтклонение[[#Headers],[Янв]]),1),INDEX(МаркетингПлан[],,1),0),MATCH(МаркетингОтклонение[[#Headers],[Янв]],МаркетингФактические[#Headers],0))","v":{"v":200,"d":"200.00 ₽"}},{"$f":"INDEX(МаркетингПлан[],MATCH(INDEX(МаркетингОтклонение[],ROW()-ROW(МаркетингОтклонение[[#Headers],[Фев]]),1),INDEX(МаркетингПлан[],,1),0),MATCH(МаркетингОтклонение[[#Headers],[Фев]],МаркетингПлан[#Headers],0))-INDEX(МаркетингФактические[],MATCH(INDEX(МаркетингОтклонение[],ROW()-ROW(МаркетингОтклонение[[#Headers],[Фев]]),1),INDEX(МаркетингПлан[],,1),0),MATCH(МаркетингОтклонение[[#Headers],[Фев]],МаркетингФактические[#Headers],0))","v":{"v":-200,"d":"-200.00 ₽"}},{"$f":"INDEX(МаркетингПлан[],MATCH(INDEX(МаркетингОтклонение[],ROW()-ROW(МаркетингОтклонение[[#Headers],[Мар]]),1),INDEX(МаркетингПлан[],,1),0),MATCH(МаркетингОтклонение[[#Headers],[Мар]],МаркетингПлан[#Headers],0))-INDEX(МаркетингФактические[],MATCH(INDEX(МаркетингОтклонение[],ROW()-ROW(МаркетингОтклонение[[#Headers],[Мар]]),1),INDEX(МаркетингПлан[],,1),0),MATCH(МаркетингОтклонение[[#Headers],[Мар]],МаркетингФактические[#Headers],0))","v":{"v":-200,"d":"-200.00 ₽"}},{"$f":"INDEX(МаркетингПлан[],MATCH(INDEX(МаркетингОтклонение[],ROW()-ROW(МаркетингОтклонение[[#Headers],[Апр]]),1),INDEX(МаркетингПлан[],,1),0),MATCH(МаркетингОтклонение[[#Headers],[Апр]],МаркетингПлан[#Headers],0))-INDEX(МаркетингФактические[],MATCH(INDEX(МаркетингОтклонение[],ROW()-ROW(МаркетингОтклонение[[#Headers],[Апр]]),1),INDEX(МаркетингПлан[],,1),0),MATCH(МаркетингОтклонение[[#Headers],[Апр]],МаркетингФактические[#Headers],0))","v":{"v":300,"d":"300.00 ₽"}},{"$f":"INDEX(МаркетингПлан[],MATCH(INDEX(МаркетингОтклонение[],ROW()-ROW(МаркетингОтклонение[[#Headers],[Май]]),1),INDEX(МаркетингПлан[],,1),0),MATCH(МаркетингОтклонение[[#Headers],[Май]],МаркетингПлан[#Headers],0))-INDEX(МаркетингФактические[],MATCH(INDEX(МаркетингОтклонение[],ROW()-ROW(МаркетингОтклонение[[#Headers],[Май]]),1),INDEX(МаркетингПлан[],,1),0),MATCH(МаркетингОтклонение[[#Headers],[Май]],МаркетингФактические[#Headers],0))","v":{"v":500,"d":"500.00 ₽"}},{"$f":"INDEX(МаркетингПлан[],MATCH(INDEX(МаркетингОтклонение[],ROW()-ROW(МаркетингОтклонение[[#Headers],[Июн]]),1),INDEX(МаркетингПлан[],,1),0),MATCH(МаркетингОтклонение[[#Headers],[Июн]],МаркетингПлан[#Headers],0))-INDEX(МаркетингФактические[],MATCH(INDEX(МаркетингОтклонение[],ROW()-ROW(МаркетингОтклонение[[#Headers],[Июн]]),1),INDEX(МаркетингПлан[],,1),0),MATCH(МаркетингОтклонение[[#Headers],[Июн]],МаркетингФактические[#Headers],0))","v":{"v":-300,"d":"-300.00 ₽"}},{"$f":"INDEX(МаркетингПлан[],MATCH(INDEX(МаркетингОтклонение[],ROW()-ROW(МаркетингОтклонение[[#Headers],[Июл]]),1),INDEX(МаркетингПлан[],,1),0),MATCH(МаркетингОтклонение[[#Headers],[Июл]],МаркетингПлан[#Headers],0))-INDEX(МаркетингФактические[],MATCH(INDEX(МаркетингОтклонение[],ROW()-ROW(МаркетингОтклонение[[#Headers],[Июл]]),1),INDEX(МаркетингПлан[],,1),0),MATCH(МаркетингОтклонение[[#Headers],[Июл]],МаркетингФактические[#Headers],0))","v":{"v":2000,"d":"2,000.00 ₽"}},{"$f":"INDEX(МаркетингПлан[],MATCH(INDEX(МаркетингОтклонение[],ROW()-ROW(МаркетингОтклонение[[#Headers],[Авг]]),1),INDEX(МаркетингПлан[],,1),0),MATCH(МаркетингОтклонение[[#Headers],[Авг]],МаркетингПлан[#Headers],0))-INDEX(МаркетингФактические[],MATCH(INDEX(МаркетингОтклонение[],ROW()-ROW(МаркетингОтклонение[[#Headers],[Авг]]),1),INDEX(МаркетингПлан[],,1),0),MATCH(МаркетингОтклонение[[#Headers],[Авг]],МаркетингФактические[#Headers],0))","v":{"v":5000,"d":"5,000.00 ₽"}},{"$f":"INDEX(МаркетингПлан[],MATCH(INDEX(МаркетингОтклонение[],ROW()-ROW(МаркетингОтклонение[[#Headers],[Сен]]),1),INDEX(МаркетингПлан[],,1),0),MATCH(МаркетингОтклонение[[#Headers],[Сен]],МаркетингПлан[#Headers],0))-INDEX(МаркетингФактические[],MATCH(INDEX(МаркетингОтклонение[],ROW()-ROW(МаркетингОтклонение[[#Headers],[Сен]]),1),INDEX(МаркетингПлан[],,1),0),MATCH(МаркетингОтклонение[[#Headers],[Сен]],МаркетингФактические[#Headers],0))","v":{"v":2000,"d":"2,000.00 ₽"}},{"$f":"INDEX(МаркетингПлан[],MATCH(INDEX(МаркетингОтклонение[],ROW()-ROW(МаркетингОтклонение[[#Headers],[Окт]]),1),INDEX(МаркетингПлан[],,1),0),MATCH(МаркетингОтклонение[[#Headers],[Окт]],МаркетингПлан[#Headers],0))-INDEX(МаркетингФактические[],MATCH(INDEX(МаркетингОтклонение[],ROW()-ROW(МаркетингОтклонение[[#Headers],[Окт]]),1),INDEX(МаркетингПлан[],,1),0),MATCH(МаркетингОтклонение[[#Headers],[Окт]],МаркетингФактические[#Headers],0))","v":{"v":2000,"d":"2,000.00 ₽"}},{"$f":"INDEX(МаркетингПлан[],MATCH(INDEX(МаркетингОтклонение[],ROW()-ROW(МаркетингОтклонение[[#Headers],[Ноя]]),1),INDEX(МаркетингПлан[],,1),0),MATCH(МаркетингОтклонение[[#Headers],[Ноя]],МаркетингПлан[#Headers],0))-INDEX(МаркетингФактические[],MATCH(INDEX(МаркетингОтклонение[],ROW()-ROW(МаркетингОтклонение[[#Headers],[Ноя]]),1),INDEX(МаркетингПлан[],,1),0),MATCH(МаркетингОтклонение[[#Headers],[Ноя]],МаркетингФактические[#Headers],0))","v":{"v":2000,"d":"2,000.00 ₽"}},{"$f":"INDEX(МаркетингПлан[],MATCH(INDEX(МаркетингОтклонение[],ROW()-ROW(МаркетингОтклонение[[#Headers],[Дек]]),1),INDEX(МаркетингПлан[],,1),0),MATCH(МаркетингОтклонение[[#Headers],[Дек]],МаркетингПлан[#Headers],0))-INDEX(МаркетингФактические[],MATCH(INDEX(МаркетингОтклонение[],ROW()-ROW(МаркетингОтклонение[[#Headers],[Дек]]),1),INDEX(МаркетингПлан[],,1),0),MATCH(МаркетингОтклонение[[#Headers],[Дек]],МаркетингФактические[#Headers],0))","v":{"v":5000,"d":"5,000.00 ₽"}},{"$f":"SUM(МаркетингОтклонение[[#This Row],[Янв]:[Дек]])","v":{"v":18300,"d":"18,300.00 ₽"}}]
[null,"Прочие расходы",{"$f":"INDEX(МаркетингПлан[],MATCH(INDEX(МаркетингОтклонение[],ROW()-ROW(МаркетингОтклонение[[#Headers],[Янв]]),1),INDEX(МаркетингПлан[],,1),0),MATCH(МаркетингОтклонение[[#Headers],[Янв]],МаркетингПлан[#Headers],0))-INDEX(МаркетингФактические[],MATCH(INDEX(МаркетингОтклонение[],ROW()-ROW(МаркетингОтклонение[[#Headers],[Янв]]),1),INDEX(МаркетингПлан[],,1),0),MATCH(МаркетингОтклонение[[#Headers],[Янв]],МаркетингФактические[#Headers],0))","v":{"v":55,"d":"55.00 ₽"}},{"$f":"INDEX(МаркетингПлан[],MATCH(INDEX(МаркетингОтклонение[],ROW()-ROW(МаркетингОтклонение[[#Headers],[Фев]]),1),INDEX(МаркетингПлан[],,1),0),MATCH(МаркетингОтклонение[[#Headers],[Фев]],МаркетингПлан[#Headers],0))-INDEX(МаркетингФактические[],MATCH(INDEX(МаркетингОтклонение[],ROW()-ROW(МаркетингОтклонение[[#Headers],[Фев]]),1),INDEX(МаркетингПлан[],,1),0),MATCH(МаркетингОтклонение[[#Headers],[Фев]],МаркетингФактические[#Headers],0))","v":{"v":44,"d":"44.00 ₽"}},{"$f":"INDEX(МаркетингПлан[],MATCH(INDEX(МаркетингОтклонение[],ROW()-ROW(МаркетингОтклонение[[#Headers],[Мар]]),1),INDEX(МаркетингПлан[],,1),0),MATCH(МаркетингОтклонение[[#Headers],[Мар]],МаркетингПлан[#Headers],0))-INDEX(МаркетингФактические[],MATCH(INDEX(МаркетингОтклонение[],ROW()-ROW(МаркетингОтклонение[[#Headers],[Мар]]),1),INDEX(МаркетингПлан[],,1),0),MATCH(МаркетингОтклонение[[#Headers],[Мар]],МаркетингФактические[#Headers],0))","v":{"v":77,"d":"77.00 ₽"}},{"$f":"INDEX(МаркетингПлан[],MATCH(INDEX(МаркетингОтклонение[],ROW()-ROW(МаркетингОтклонение[[#Headers],[Апр]]),1),INDEX(МаркетингПлан[],,1),0),MATCH(МаркетингОтклонение[[#Headers],[Апр]],МаркетингПлан[#Headers],0))-INDEX(МаркетингФактические[],MATCH(INDEX(МаркетингОтклонение[],ROW()-ROW(МаркетингОтклонение[[#Headers],[Апр]]),1),INDEX(МаркетингПлан[],,1),0),MATCH(МаркетингОтклонение[[#Headers],[Апр]],МаркетингФактические[#Headers],0))","v":{"v":-23,"d":"-23.00 ₽"}},{"$f":"INDEX(МаркетингПлан[],MATCH(INDEX(МаркетингОтклонение[],ROW()-ROW(МаркетингОтклонение[[#Headers],[Май]]),1),INDEX(МаркетингПлан[],,1),0),MATCH(МаркетингОтклонение[[#Headers],[Май]],МаркетингПлан[#Headers],0))-INDEX(МаркетингФактические[],MATCH(INDEX(МаркетингОтклонение[],ROW()-ROW(МаркетингОтклонение[[#Headers],[Май]]),1),INDEX(МаркетингПлан[],,1),0),MATCH(МаркетингОтклонение[[#Headers],[Май]],МаркетингФактические[#Headers],0))","v":{"v":13,"d":"13.00 ₽"}},{"$f":"INDEX(МаркетингПлан[],MATCH(INDEX(МаркетингОтклонение[],ROW()-ROW(МаркетингОтклонение[[#Headers],[Июн]]),1),INDEX(МаркетингПлан[],,1),0),MATCH(МаркетингОтклонение[[#Headers],[Июн]],МаркетингПлан[#Headers],0))-INDEX(МаркетингФактические[],MATCH(INDEX(МаркетингОтклонение[],ROW()-ROW(МаркетингОтклонение[[#Headers],[Июн]]),1),INDEX(МаркетингПлан[],,1),0),MATCH(МаркетингОтклонение[[#Headers],[Июн]],МаркетингФактические[#Headers],0))","v":{"v":-45,"d":"-45.00 ₽"}},{"$f":"INDEX(МаркетингПлан[],MATCH(INDEX(МаркетингОтклонение[],ROW()-ROW(МаркетингОтклонение[[#Headers],[Июл]]),1),INDEX(МаркетингПлан[],,1),0),MATCH(МаркетингОтклонение[[#Headers],[Июл]],МаркетингПлан[#Headers],0))-INDEX(МаркетингФактические[],MATCH(INDEX(МаркетингОтклонение[],ROW()-ROW(МаркетингОтклонение[[#Headers],[Июл]]),1),INDEX(МаркетингПлан[],,1),0),MATCH(МаркетингОтклонение[[#Headers],[Июл]],МаркетингФактические[#Headers],0))","v":{"v":200,"d":"200.00 ₽"}},{"$f":"INDEX(МаркетингПлан[],MATCH(INDEX(МаркетингОтклонение[],ROW()-ROW(МаркетингОтклонение[[#Headers],[Авг]]),1),INDEX(МаркетингПлан[],,1),0),MATCH(МаркетингОтклонение[[#Headers],[Авг]],МаркетингПлан[#Headers],0))-INDEX(МаркетингФактические[],MATCH(INDEX(МаркетингОтклонение[],ROW()-ROW(МаркетингОтклонение[[#Headers],[Авг]]),1),INDEX(МаркетингПлан[],,1),0),MATCH(МаркетингОтклонение[[#Headers],[Авг]],МаркетингФактические[#Headers],0))","v":{"v":200,"d":"200.00 ₽"}},{"$f":"INDEX(МаркетингПлан[],MATCH(INDEX(МаркетингОтклонение[],ROW()-ROW(МаркетингОтклонение[[#Headers],[Сен]]),1),INDEX(МаркетингПлан[],,1),0),MATCH(МаркетингОтклонение[[#Headers],[Сен]],МаркетингПлан[#Headers],0))-INDEX(МаркетингФактические[],MATCH(INDEX(МаркетингОтклонение[],ROW()-ROW(МаркетингОтклонение[[#Headers],[Сен]]),1),INDEX(МаркетингПлан[],,1),0),MATCH(МаркетингОтклонение[[#Headers],[Сен]],МаркетингФактические[#Headers],0))","v":{"v":200,"d":"200.00 ₽"}},{"$f":"INDEX(МаркетингПлан[],MATCH(INDEX(МаркетингОтклонение[],ROW()-ROW(МаркетингОтклонение[[#Headers],[Окт]]),1),INDEX(МаркетингПлан[],,1),0),MATCH(МаркетингОтклонение[[#Headers],[Окт]],МаркетингПлан[#Headers],0))-INDEX(МаркетингФактические[],MATCH(INDEX(МаркетингОтклонение[],ROW()-ROW(МаркетингОтклонение[[#Headers],[Окт]]),1),INDEX(МаркетингПлан[],,1),0),MATCH(МаркетингОтклонение[[#Headers],[Окт]],МаркетингФактические[#Headers],0))","v":{"v":200,"d":"200.00 ₽"}},{"$f":"INDEX(МаркетингПлан[],MATCH(INDEX(МаркетингОтклонение[],ROW()-ROW(МаркетингОтклонение[[#Headers],[Ноя]]),1),INDEX(МаркетингПлан[],,1),0),MATCH(МаркетингОтклонение[[#Headers],[Ноя]],МаркетингПлан[#Headers],0))-INDEX(МаркетингФактические[],MATCH(INDEX(МаркетингОтклонение[],ROW()-ROW(МаркетингОтклонение[[#Headers],[Ноя]]),1),INDEX(МаркетингПлан[],,1),0),MATCH(МаркетингОтклонение[[#Headers],[Ноя]],МаркетингФактические[#Headers],0))","v":{"v":200,"d":"200.00 ₽"}},{"$f":"INDEX(МаркетингПлан[],MATCH(INDEX(МаркетингОтклонение[],ROW()-ROW(МаркетингОтклонение[[#Headers],[Дек]]),1),INDEX(МаркетингПлан[],,1),0),MATCH(МаркетингОтклонение[[#Headers],[Дек]],МаркетингПлан[#Headers],0))-INDEX(МаркетингФактические[],MATCH(INDEX(МаркетингОтклонение[],ROW()-ROW(МаркетингОтклонение[[#Headers],[Дек]]),1),INDEX(МаркетингПлан[],,1),0),MATCH(МаркетингОтклонение[[#Headers],[Дек]],МаркетингФактические[#Headers],0))","v":{"v":200,"d":"200.00 ₽"}},{"$f":"SUM(МаркетингОтклонение[[#This Row],[Янв]:[Дек]])","v":{"v":1321,"d":"1,321.00 ₽"}}]
[null,"Промежуточный итог",{"$f":"SUBTOTAL(109,МаркетингОтклонение[Янв])","v":{"v":555,"d":"555.00 ₽"}},{"$f":"SUBTOTAL(109,МаркетингОтклонение[Фев])","v":{"v":-456,"d":"-456.00 ₽"}},{"$f":"SUBTOTAL(109,МаркетингОтклонение[Мар])","v":{"v":-23,"d":"-23.00 ₽"}},{"$f":"SUBTOTAL(109,МаркетингОтклонение[Апр])","v":{"v":-123,"d":"-123.00 ₽"}},{"$f":"SUBTOTAL(109,МаркетингОтклонение[Май])","v":{"v":113,"d":"113.00 ₽"}},{"$f":"SUBTOTAL(109,МаркетингОтклонение[Июн])","v":{"v":-825,"d":"-825.00 ₽"}},{"$f":"SUBTOTAL(109,МаркетингОтклонение[Июл])","v":{"v":8100,"d":"8,100.00 ₽"}},{"$f":"SUBTOTAL(109,МаркетингОтклонение[Авг])","v":{"v":6100,"d":"6,100.00 ₽"}},{"$f":"SUBTOTAL(109,МаркетингОтклонение[Сен])","v":{"v":3100,"d":"3,100.00 ₽"}},{"$f":"SUBTOTAL(109,МаркетингОтклонение[Окт])","v":{"v":8100,"d":"8,100.00 ₽"}},{"$f":"SUBTOTAL(109,МаркетингОтклонение[Ноя])","v":{"v":3100,"d":"3,100.00 ₽"}},{"$f":"SUBTOTAL(109,МаркетингОтклонение[Дек])","v":{"v":6900,"d":"6,900.00 ₽"}},{"$f":"SUBTOTAL(109,МаркетингОтклонение[ГОД])","v":{"v":34641,"d":"34,641.00 ₽"}}]
[]
[null,"Обучение/командировки","Янв","Фев","Мар","Апр","Май","Июн","Июл","Авг","Сен","Окт","Ноя","Дек","ГОД"]
[null,"Учебные занятия",{"$f":"INDEX(ОбучениеИКомандировкиПлан[],MATCH(INDEX(ОбучениеИКомандировкиОтклонение[],ROW()-ROW(ОбучениеИКомандировкиОтклонение[[#Headers],[Янв]]),1),INDEX(ОбучениеИКомандировкиПлан[],,1),0),MATCH(ОбучениеИКомандировкиОтклонение[[#Headers],[Янв]],ОбучениеИКомандировкиПлан[#Headers],0))-INDEX(ОбучениеИКомандировкиФактические[],MATCH(INDEX(ОбучениеИКомандировкиОтклонение[],ROW()-ROW(ОбучениеИКомандировкиОтклонение[[#Headers],[Янв]]),1),INDEX(ОбучениеИКомандировкиПлан[],,1),0),MATCH(ОбучениеИКомандировкиОтклонение[[#Headers],[Янв]],ОбучениеИКомандировкиФактические[#Headers],0))","v":{"v":400,"d":"400.00 ₽"}},{"$f":"INDEX(ОбучениеИКомандировкиПлан[],MATCH(INDEX(ОбучениеИКомандировкиОтклонение[],ROW()-ROW(ОбучениеИКомандировкиОтклонение[[#Headers],[Фев]]),1),INDEX(ОбучениеИКомандировкиПлан[],,1),0),MATCH(ОбучениеИКомандировкиОтклонение[[#Headers],[Фев]],ОбучениеИКомандировкиПлан[#Headers],0))-INDEX(ОбучениеИКомандировкиФактические[],MATCH(INDEX(ОбучениеИКомандировкиОтклонение[],ROW()-ROW(ОбучениеИКомандировкиОтклонение[[#Headers],[Фев]]),1),INDEX(ОбучениеИКомандировкиПлан[],,1),0),MATCH(ОбучениеИКомандировкиОтклонение[[#Headers],[Фев]],ОбучениеИКомандировкиФактические[#Headers],0))","v":{"v":-400,"d":"-400.00 ₽"}},{"$f":"INDEX(ОбучениеИКомандировкиПлан[],MATCH(INDEX(ОбучениеИКомандировкиОтклонение[],ROW()-ROW(ОбучениеИКомандировкиОтклонение[[#Headers],[Мар]]),1),INDEX(ОбучениеИКомандировкиПлан[],,1),0),MATCH(ОбучениеИКомандировкиОтклонение[[#Headers],[Мар]],ОбучениеИКомандировкиПлан[#Headers],0))-INDEX(ОбучениеИКомандировкиФактические[],MATCH(INDEX(ОбучениеИКомандировкиОтклонение[],ROW()-ROW(ОбучениеИКомандировкиОтклонение[[#Headers],[Мар]]),1),INDEX(ОбучениеИКомандировкиПлан[],,1),0),MATCH(ОбучениеИКомандировкиОтклонение[[#Headers],[Мар]],ОбучениеИКомандировкиФактические[#Headers],0))","v":{"v":600,"d":"600.00 ₽"}},{"$f":"INDEX(ОбучениеИКомандировкиПлан[],MATCH(INDEX(ОбучениеИКомандировкиОтклонение[],ROW()-ROW(ОбучениеИКомандировкиОтклонение[[#Headers],[Апр]]),1),INDEX(ОбучениеИКомандировкиПлан[],,1),0),MATCH(ОбучениеИКомандировкиОтклонение[[#Headers],[Апр]],ОбучениеИКомандировкиПлан[#Headers],0))-INDEX(ОбучениеИКомандировкиФактические[],MATCH(INDEX(ОбучениеИКомандировкиОтклонение[],ROW()-ROW(ОбучениеИКомандировкиОтклонение[[#Headers],[Апр]]),1),INDEX(ОбучениеИКомандировкиПлан[],,1),0),MATCH(ОбучениеИКомандировкиОтклонение[[#Headers],[Апр]],ОбучениеИКомандировкиФактические[#Headers],0))","v":{"v":400,"d":"400.00 ₽"}},{"$f":"INDEX(ОбучениеИКомандировкиПлан[],MATCH(INDEX(ОбучениеИКомандировкиОтклонение[],ROW()-ROW(ОбучениеИКомандировкиОтклонение[[#Headers],[Май]]),1),INDEX(ОбучениеИКомандировкиПлан[],,1),0),MATCH(ОбучениеИКомандировкиОтклонение[[#Headers],[Май]],ОбучениеИКомандировкиПлан[#Headers],0))-INDEX(ОбучениеИКомандировкиФактические[],MATCH(INDEX(ОбучениеИКомандировкиОтклонение[],ROW()-ROW(ОбучениеИКомандировкиОтклонение[[#Headers],[Май]]),1),INDEX(ОбучениеИКомандировкиПлан[],,1),0),MATCH(ОбучениеИКомандировкиОтклонение[[#Headers],[Май]],ОбучениеИКомандировкиФактические[#Headers],0))","v":{"v":800,"d":"800.00 ₽"}},{"$f":"INDEX(ОбучениеИКомандировкиПлан[],MATCH(INDEX(ОбучениеИКомандировкиОтклонение[],ROW()-ROW(ОбучениеИКомандировкиОтклонение[[#Headers],[Июн]]),1),INDEX(ОбучениеИКомандировкиПлан[],,1),0),MATCH(ОбучениеИКомандировкиОтклонение[[#Headers],[Июн]],ОбучениеИКомандировкиПлан[#Headers],0))-INDEX(ОбучениеИКомандировкиФактические[],MATCH(INDEX(ОбучениеИКомандировкиОтклонение[],ROW()-ROW(ОбучениеИКомандировкиОтклонение[[#Headers],[Июн]]),1),INDEX(ОбучениеИКомандировкиПлан[],,1),0),MATCH(ОбучениеИКомандировкиОтклонение[[#Headers],[Июн]],ОбучениеИКомандировкиФактические[#Headers],0))","v":{"v":-800,"d":"-800.00 ₽"}},{"$f":"INDEX(ОбучениеИКомандировкиПлан[],MATCH(INDEX(ОбучениеИКомандировкиОтклонение[],ROW()-ROW(ОбучениеИКомандировкиОтклонение[[#Headers],[Июл]]),1),INDEX(ОбучениеИКомандировкиПлан[],,1),0),MATCH(ОбучениеИКомандировкиОтклонение[[#Headers],[Июл]],ОбучениеИКомандировкиПлан[#Headers],0))-INDEX(ОбучениеИКомандировкиФактические[],MATCH(INDEX(ОбучениеИКомандировкиОтклонение[],ROW()-ROW(ОбучениеИКомандировкиОтклонение[[#Headers],[Июл]]),1),INDEX(ОбучениеИКомандировкиПлан[],,1),0),MATCH(ОбучениеИКомандировкиОтклонение[[#Headers],[Июл]],ОбучениеИКомандировкиФактические[#Headers],0))","v":{"v":2000,"d":"2,000.00 ₽"}},{"$f":"INDEX(ОбучениеИКомандировкиПлан[],MATCH(INDEX(ОбучениеИКомандировкиОтклонение[],ROW()-ROW(ОбучениеИКомандировкиОтклонение[[#Headers],[Авг]]),1),INDEX(ОбучениеИКомандировкиПлан[],,1),0),MATCH(ОбучениеИКомандировкиОтклонение[[#Headers],[Авг]],ОбучениеИКомандировкиПлан[#Headers],0))-INDEX(ОбучениеИКомандировкиФактические[],MATCH(INDEX(ОбучениеИКомандировкиОтклонение[],ROW()-ROW(ОбучениеИКомандировкиОтклонение[[#Headers],[Авг]]),1),INDEX(ОбучениеИКомандировкиПлан[],,1),0),MATCH(ОбучениеИКомандировкиОтклонение[[#Headers],[Авг]],ОбучениеИКомандировкиФактические[#Headers],0))","v":{"v":2000,"d":"2,000.00 ₽"}},{"$f":"INDEX(ОбучениеИКомандировкиПлан[],MATCH(INDEX(ОбучениеИКомандировкиОтклонение[],ROW()-ROW(ОбучениеИКомандировкиОтклонение[[#Headers],[Сен]]),1),INDEX(ОбучениеИКомандировкиПлан[],,1),0),MATCH(ОбучениеИКомандировкиОтклонение[[#Headers],[Сен]],ОбучениеИКомандировкиПлан[#Headers],0))-INDEX(ОбучениеИКомандировкиФактические[],MATCH(INDEX(ОбучениеИКомандировкиОтклонение[],ROW()-ROW(ОбучениеИКомандировкиОтклонение[[#Headers],[Сен]]),1),INDEX(ОбучениеИКомандировкиПлан[],,1),0),MATCH(ОбучениеИКомандировкиОтклонение[[#Headers],[Сен]],ОбучениеИКомандировкиФактические[#Headers],0))","v":{"v":2000,"d":"2,000.00 ₽"}},{"$f":"INDEX(ОбучениеИКомандировкиПлан[],MATCH(INDEX(ОбучениеИКомандировкиОтклонение[],ROW()-ROW(ОбучениеИКомандировкиОтклонение[[#Headers],[Окт]]),1),INDEX(ОбучениеИКомандировкиПлан[],,1),0),MATCH(ОбучениеИКомандировкиОтклонение[[#Headers],[Окт]],ОбучениеИКомандировкиПлан[#Headers],0))-INDEX(ОбучениеИКомандировкиФактические[],MATCH(INDEX(ОбучениеИКомандировкиОтклонение[],ROW()-ROW(ОбучениеИКомандировкиОтклонение[[#Headers],[Окт]]),1),INDEX(ОбучениеИКомандировкиПлан[],,1),0),MATCH(ОбучениеИКомандировкиОтклонение[[#Headers],[Окт]],ОбучениеИКомандировкиФактические[#Headers],0))","v":{"v":2000,"d":"2,000.00 ₽"}},{"$f":"INDEX(ОбучениеИКомандировкиПлан[],MATCH(INDEX(ОбучениеИКомандировкиОтклонение[],ROW()-ROW(ОбучениеИКомандировкиОтклонение[[#Headers],[Ноя]]),1),INDEX(ОбучениеИКомандировкиПлан[],,1),0),MATCH(ОбучениеИКомандировкиОтклонение[[#Headers],[Ноя]],ОбучениеИКомандировкиПлан[#Headers],0))-INDEX(ОбучениеИКомандировкиФактические[],MATCH(INDEX(ОбучениеИКомандировкиОтклонение[],ROW()-ROW(ОбучениеИКомандировкиОтклонение[[#Headers],[Ноя]]),1),INDEX(ОбучениеИКомандировкиПлан[],,1),0),MATCH(ОбучениеИКомандировкиОтклонение[[#Headers],[Ноя]],ОбучениеИКомандировкиФактические[#Headers],0))","v":{"v":2000,"d":"2,000.00 ₽"}},{"$f":"INDEX(ОбучениеИКомандировкиПлан[],MATCH(INDEX(ОбучениеИКомандировкиОтклонение[],ROW()-ROW(ОбучениеИКомандировкиОтклонение[[#Headers],[Дек]]),1),INDEX(ОбучениеИКомандировкиПлан[],,1),0),MATCH(ОбучениеИКомандировкиОтклонение[[#Headers],[Дек]],ОбучениеИКомандировкиПлан[#Headers],0))-INDEX(ОбучениеИКомандировкиФактические[],MATCH(INDEX(ОбучениеИКомандировкиОтклонение[],ROW()-ROW(ОбучениеИКомандировкиОтклонение[[#Headers],[Дек]]),1),INDEX(ОбучениеИКомандировкиПлан[],,1),0),MATCH(ОбучениеИКомандировкиОтклонение[[#Headers],[Дек]],ОбучениеИКомандировкиФактические[#Headers],0))","v":{"v":2000,"d":"2,000.00 ₽"}},{"$f":"SUM(ОбучениеИКомандировкиОтклонение[[#This Row],[Янв]:[Дек]])","v":{"v":13000,"d":"13,000.00 ₽"}}]
[null,"Командировочные расходы, связанные с обучением",{"$f":"INDEX(ОбучениеИКомандировкиПлан[],MATCH(INDEX(ОбучениеИКомандировкиОтклонение[],ROW()-ROW(ОбучениеИКомандировкиОтклонение[[#Headers],[Янв]]),1),INDEX(ОбучениеИКомандировкиПлан[],,1),0),MATCH(ОбучениеИКомандировкиОтклонение[[#Headers],[Янв]],ОбучениеИКомандировкиПлан[#Headers],0))-INDEX(ОбучениеИКомандировкиФактические[],MATCH(INDEX(ОбучениеИКомандировкиОтклонение[],ROW()-ROW(ОбучениеИКомандировкиОтклонение[[#Headers],[Янв]]),1),INDEX(ОбучениеИКомандировкиПлан[],,1),0),MATCH(ОбучениеИКомандировкиОтклонение[[#Headers],[Янв]],ОбучениеИКомандировкиФактические[#Headers],0))","v":{"v":800,"d":"800.00 ₽"}},{"$f":"INDEX(ОбучениеИКомандировкиПлан[],MATCH(INDEX(ОбучениеИКомандировкиОтклонение[],ROW()-ROW(ОбучениеИКомандировкиОтклонение[[#Headers],[Фев]]),1),INDEX(ОбучениеИКомандировкиПлан[],,1),0),MATCH(ОбучениеИКомандировкиОтклонение[[#Headers],[Фев]],ОбучениеИКомандировкиПлан[#Headers],0))-INDEX(ОбучениеИКомандировкиФактические[],MATCH(INDEX(ОбучениеИКомандировкиОтклонение[],ROW()-ROW(ОбучениеИКомандировкиОтклонение[[#Headers],[Фев]]),1),INDEX(ОбучениеИКомандировкиПлан[],,1),0),MATCH(ОбучениеИКомандировкиОтклонение[[#Headers],[Фев]],ОбучениеИКомандировкиФактические[#Headers],0))","v":{"v":-200,"d":"-200.00 ₽"}},{"$f":"INDEX(ОбучениеИКомандировкиПлан[],MATCH(INDEX(ОбучениеИКомандировкиОтклонение[],ROW()-ROW(ОбучениеИКомандировкиОтклонение[[#Headers],[Мар]]),1),INDEX(ОбучениеИКомандировкиПлан[],,1),0),MATCH(ОбучениеИКомандировкиОтклонение[[#Headers],[Мар]],ОбучениеИКомандировкиПлан[#Headers],0))-INDEX(ОбучениеИКомандировкиФактические[],MATCH(INDEX(ОбучениеИКомандировкиОтклонение[],ROW()-ROW(ОбучениеИКомандировкиОтклонение[[#Headers],[Мар]]),1),INDEX(ОбучениеИКомандировкиПлан[],,1),0),MATCH(ОбучениеИКомандировкиОтклонение[[#Headers],[Мар]],ОбучениеИКомандировкиФактические[#Headers],0))","v":{"v":600,"d":"600.00 ₽"}},{"$f":"INDEX(ОбучениеИКомандировкиПлан[],MATCH(INDEX(ОбучениеИКомандировкиОтклонение[],ROW()-ROW(ОбучениеИКомандировкиОтклонение[[#Headers],[Апр]]),1),INDEX(ОбучениеИКомандировкиПлан[],,1),0),MATCH(ОбучениеИКомандировкиОтклонение[[#Headers],[Апр]],ОбучениеИКомандировкиПлан[#Headers],0))-INDEX(ОбучениеИКомандировкиФактические[],MATCH(INDEX(ОбучениеИКомандировкиОтклонение[],ROW()-ROW(ОбучениеИКомандировкиОтклонение[[#Headers],[Апр]]),1),INDEX(ОбучениеИКомандировкиПлан[],,1),0),MATCH(ОбучениеИКомандировкиОтклонение[[#Headers],[Апр]],ОбучениеИКомандировкиФактические[#Headers],0))","v":{"v":800,"d":"800.00 ₽"}},{"$f":"INDEX(ОбучениеИКомандировкиПлан[],MATCH(INDEX(ОбучениеИКомандировкиОтклонение[],ROW()-ROW(ОбучениеИКомандировкиОтклонение[[#Headers],[Май]]),1),INDEX(ОбучениеИКомандировкиПлан[],,1),0),MATCH(ОбучениеИКомандировкиОтклонение[[#Headers],[Май]],ОбучениеИКомандировкиПлан[#Headers],0))-INDEX(ОбучениеИКомандировкиФактические[],MATCH(INDEX(ОбучениеИКомандировкиОтклонение[],ROW()-ROW(ОбучениеИКомандировкиОтклонение[[#Headers],[Май]]),1),INDEX(ОбучениеИКомандировкиПлан[],,1),0),MATCH(ОбучениеИКомандировкиОтклонение[[#Headers],[Май]],ОбучениеИКомандировкиФактические[#Headers],0))","v":{"v":1200,"d":"1,200.00 ₽"}},{"$f":"INDEX(ОбучениеИКомандировкиПлан[],MATCH(INDEX(ОбучениеИКомандировкиОтклонение[],ROW()-ROW(ОбучениеИКомандировкиОтклонение[[#Headers],[Июн]]),1),INDEX(ОбучениеИКомандировкиПлан[],,1),0),MATCH(ОбучениеИКомандировкиОтклонение[[#Headers],[Июн]],ОбучениеИКомандировкиПлан[#Headers],0))-INDEX(ОбучениеИКомандировкиФактические[],MATCH(INDEX(ОбучениеИКомандировкиОтклонение[],ROW()-ROW(ОбучениеИКомандировкиОтклонение[[#Headers],[Июн]]),1),INDEX(ОбучениеИКомандировкиПлан[],,1),0),MATCH(ОбучениеИКомандировкиОтклонение[[#Headers],[Июн]],ОбучениеИКомандировкиФактические[#Headers],0))","v":{"v":-1500,"d":"-1,500.00 ₽"}},{"$f":"INDEX(ОбучениеИКомандировкиПлан[],MATCH(INDEX(ОбучениеИКомандировкиОтклонение[],ROW()-ROW(ОбучениеИКомандировкиОтклонение[[#Headers],[Июл]]),1),INDEX(ОбучениеИКомандировкиПлан[],,1),0),MATCH(ОбучениеИКомандировкиОтклонение[[#Headers],[Июл]],ОбучениеИКомандировкиПлан[#Headers],0))-INDEX(ОбучениеИКомандировкиФактические[],MATCH(INDEX(ОбучениеИКомандировкиОтклонение[],ROW()-ROW(ОбучениеИКомандировкиОтклонение[[#Headers],[Июл]]),1),INDEX(ОбучениеИКомандировкиПлан[],,1),0),MATCH(ОбучениеИКомандировкиОтклонение[[#Headers],[Июл]],ОбучениеИКомандировкиФактические[#Headers],0))","v":{"v":2000,"d":"2,000.00 ₽"}},{"$f":"INDEX(ОбучениеИКомандировкиПлан[],MATCH(INDEX(ОбучениеИКомандировкиОтклонение[],ROW()-ROW(ОбучениеИКомандировкиОтклонение[[#Headers],[Авг]]),1),INDEX(ОбучениеИКомандировкиПлан[],,1),0),MATCH(ОбучениеИКомандировкиОтклонение[[#Headers],[Авг]],ОбучениеИКомандировкиПлан[#Headers],0))-INDEX(ОбучениеИКомандировкиФактические[],MATCH(INDEX(ОбучениеИКомандировкиОтклонение[],ROW()-ROW(ОбучениеИКомандировкиОтклонение[[#Headers],[Авг]]),1),INDEX(ОбучениеИКомандировкиПлан[],,1),0),MATCH(ОбучениеИКомандировкиОтклонение[[#Headers],[Авг]],ОбучениеИКомандировкиФактические[#Headers],0))","v":{"v":2000,"d":"2,000.00 ₽"}},{"$f":"INDEX(ОбучениеИКомандировкиПлан[],MATCH(INDEX(ОбучениеИКомандировкиОтклонение[],ROW()-ROW(ОбучениеИКомандировкиОтклонение[[#Headers],[Сен]]),1),INDEX(ОбучениеИКомандировкиПлан[],,1),0),MATCH(ОбучениеИКомандировкиОтклонение[[#Headers],[Сен]],ОбучениеИКомандировкиПлан[#Headers],0))-INDEX(ОбучениеИКомандировкиФактические[],MATCH(INDEX(ОбучениеИКомандировкиОтклонение[],ROW()-ROW(ОбучениеИКомандировкиОтклонение[[#Headers],[Сен]]),1),INDEX(ОбучениеИКомандировкиПлан[],,1),0),MATCH(ОбучениеИКомандировкиОтклонение[[#Headers],[Сен]],ОбучениеИКомандировкиФактические[#Headers],0))","v":{"v":2000,"d":"2,000.00 ₽"}},{"$f":"INDEX(ОбучениеИКомандировкиПлан[],MATCH(INDEX(ОбучениеИКомандировкиОтклонение[],ROW()-ROW(ОбучениеИКомандировкиОтклонение[[#Headers],[Окт]]),1),INDEX(ОбучениеИКомандировкиПлан[],,1),0),MATCH(ОбучениеИКомандировкиОтклонение[[#Headers],[Окт]],ОбучениеИКомандировкиПлан[#Headers],0))-INDEX(ОбучениеИКомандировкиФактические[],MATCH(INDEX(ОбучениеИКомандировкиОтклонение[],ROW()-ROW(ОбучениеИКомандировкиОтклонение[[#Headers],[Окт]]),1),INDEX(ОбучениеИКомандировкиПлан[],,1),0),MATCH(ОбучениеИКомандировкиОтклонение[[#Headers],[Окт]],ОбучениеИКомандировкиФактические[#Headers],0))","v":{"v":2000,"d":"2,000.00 ₽"}},{"$f":"INDEX(ОбучениеИКомандировкиПлан[],MATCH(INDEX(ОбучениеИКомандировкиОтклонение[],ROW()-ROW(ОбучениеИКомандировкиОтклонение[[#Headers],[Ноя]]),1),INDEX(ОбучениеИКомандировкиПлан[],,1),0),MATCH(ОбучениеИКомандировкиОтклонение[[#Headers],[Ноя]],ОбучениеИКомандировкиПлан[#Headers],0))-INDEX(ОбучениеИКомандировкиФактические[],MATCH(INDEX(ОбучениеИКомандировкиОтклонение[],ROW()-ROW(ОбучениеИКомандировкиОтклонение[[#Headers],[Ноя]]),1),INDEX(ОбучениеИКомандировкиПлан[],,1),0),MATCH(ОбучениеИКомандировкиОтклонение[[#Headers],[Ноя]],ОбучениеИКомандировкиФактические[#Headers],0))","v":{"v":2000,"d":"2,000.00 ₽"}},{"$f":"INDEX(ОбучениеИКомандировкиПлан[],MATCH(INDEX(ОбучениеИКомандировкиОтклонение[],ROW()-ROW(ОбучениеИКомандировкиОтклонение[[#Headers],[Дек]]),1),INDEX(ОбучениеИКомандировкиПлан[],,1),0),MATCH(ОбучениеИКомандировкиОтклонение[[#Headers],[Дек]],ОбучениеИКомандировкиПлан[#Headers],0))-INDEX(ОбучениеИКомандировкиФактические[],MATCH(INDEX(ОбучениеИКомандировкиОтклонение[],ROW()-ROW(ОбучениеИКомандировкиОтклонение[[#Headers],[Дек]]),1),INDEX(ОбучениеИКомандировкиПлан[],,1),0),MATCH(ОбучениеИКомандировкиОтклонение[[#Headers],[Дек]],ОбучениеИКомандировкиФактические[#Headers],0))","v":{"v":2000,"d":"2,000.00 ₽"}},{"$f":"SUM(ОбучениеИКомандировкиОтклонение[[#This Row],[Янв]:[Дек]])","v":{"v":13700,"d":"13,700.00 ₽"}}]
[null,"Промежуточный итог",{"$f":"SUBTOTAL(109,ОбучениеИКомандировкиОтклонение[Янв])","v":{"v":1200,"d":"1,200.00 ₽"}},{"$f":"SUBTOTAL(109,ОбучениеИКомандировкиОтклонение[Фев])","v":{"v":-600,"d":"-600.00 ₽"}},{"$f":"SUBTOTAL(109,ОбучениеИКомандировкиОтклонение[Мар])","v":{"v":1200,"d":"1,200.00 ₽"}},{"$f":"SUBTOTAL(109,ОбучениеИКомандировкиОтклонение[Апр])","v":{"v":1200,"d":"1,200.00 ₽"}},{"$f":"SUBTOTAL(109,ОбучениеИКомандировкиОтклонение[Май])","v":{"v":2000,"d":"2,000.00 ₽"}},{"$f":"SUBTOTAL(109,ОбучениеИКомандировкиОтклонение[Июн])","v":{"v":-2300,"d":"-2,300.00 ₽"}},{"$f":"SUBTOTAL(109,ОбучениеИКомандировкиОтклонение[Июл])","v":{"v":4000,"d":"4,000.00 ₽"}},{"$f":"SUBTOTAL(109,ОбучениеИКомандировкиОтклонение[Авг])","v":{"v":4000,"d":"4,000.00 ₽"}},{"$f":"SUBTOTAL(109,ОбучениеИКомандировкиОтклонение[Сен])","v":{"v":4000,"d":"4,000.00 ₽"}},{"$f":"SUBTOTAL(109,ОбучениеИКомандировкиОтклонение[Окт])","v":{"v":4000,"d":"4,000.00 ₽"}},{"$f":"SUBTOTAL(109,ОбучениеИКомандировкиОтклонение[Ноя])","v":{"v":4000,"d":"4,000.00 ₽"}},{"$f":"SUBTOTAL(109,ОбучениеИКомандировкиОтклонение[Дек])","v":{"v":4000,"d":"4,000.00 ₽"}},{"$f":"SUBTOTAL(109,ОбучениеИКомандировкиОтклонение[ГОД])","v":{"v":26700,"d":"26,700.00 ₽"}}]
[]
[null,"ИТОГИ","Янв","Фев","Мар","Апр","Май","Июн","Июл","Авг","Сен","Окт","Ноя","Дек","Год"]
[null,"Фактические расходы за месяц",{"$f":"ОбучениеИКомандировкиОтклонение[[#Totals],[Янв]]+МаркетингОтклонение[[#Totals],[Янв]]+ОфисОтклонение[[#Totals],[Янв]]+СотрудникиОтклонение[[#Totals],[Янв]]","v":{"v":1738,"d":"1,738.00 ₽"}},{"$f":"ОбучениеИКомандировкиОтклонение[[#Totals],[Фев]]+МаркетингОтклонение[[#Totals],[Фев]]+ОфисОтклонение[[#Totals],[Фев]]+СотрудникиОтклонение[[#Totals],[Фев]]","v":{"v":-984,"d":"-984.00 ₽"}},{"$f":"ОбучениеИКомандировкиОтклонение[[#Totals],[Мар]]+МаркетингОтклонение[[#Totals],[Мар]]+ОфисОтклонение[[#Totals],[Мар]]+СотрудникиОтклонение[[#Totals],[Мар]]","v":{"v":1255,"d":"1,255.00 ₽"}},{"$f":"ОбучениеИКомандировкиОтклонение[[#Totals],[Апр]]+МаркетингОтклонение[[#Totals],[Апр]]+ОфисОтклонение[[#Totals],[Апр]]+СотрудникиОтклонение[[#Totals],[Апр]]","v":{"v":301,"d":"301.00 ₽"}},{"$f":"ОбучениеИКомандировкиОтклонение[[#Totals],[Май]]+МаркетингОтклонение[[#Totals],[Май]]+ОфисОтклонение[[#Totals],[Май]]+СотрудникиОтклонение[[#Totals],[Май]]","v":{"v":1440,"d":"1,440.00 ₽"}},{"$f":"ОбучениеИКомандировкиОтклонение[[#Totals],[Июн]]+МаркетингОтклонение[[#Totals],[Июн]]+ОфисОтклонение[[#Totals],[Июн]]+СотрудникиОтклонение[[#Totals],[Июн]]","v":{"v":-3744,"d":"-3,744.00 ₽"}},{"$f":"ОбучениеИКомандировкиОтклонение[[#Totals],[Июл]]+МаркетингОтклонение[[#Totals],[Июл]]+ОфисОтклонение[[#Totals],[Июл]]+СотрудникиОтклонение[[#Totals],[Июл]]","v":{"v":134695,"d":"134,695.00 ₽"}},{"$f":"ОбучениеИКомандировкиОтклонение[[#Totals],[Авг]]+МаркетингОтклонение[[#Totals],[Авг]]+ОфисОтклонение[[#Totals],[Авг]]+СотрудникиОтклонение[[#Totals],[Авг]]","v":{"v":138918,"d":"138,918.00 ₽"}},{"$f":"ОбучениеИКомандировкиОтклонение[[#Totals],[Сен]]+МаркетингОтклонение[[#Totals],[Сен]]+ОфисОтклонение[[#Totals],[Сен]]+СотрудникиОтклонение[[#Totals],[Сен]]","v":{"v":135918,"d":"135,918.00 ₽"}},{"$f":"ОбучениеИКомандировкиОтклонение[[#Totals],[Окт]]+МаркетингОтклонение[[#Totals],[Окт]]+ОфисОтклонение[[#Totals],[Окт]]+СотрудникиОтклонение[[#Totals],[Окт]]","v":{"v":140918,"d":"140,918.00 ₽"}},{"$f":"ОбучениеИКомандировкиОтклонение[[#Totals],[Ноя]]+МаркетингОтклонение[[#Totals],[Ноя]]+ОфисОтклонение[[#Totals],[Ноя]]+СотрудникиОтклонение[[#Totals],[Ноя]]","v":{"v":136218,"d":"136,218.00 ₽"}},{"$f":"ОбучениеИКомандировкиОтклонение[[#Totals],[Дек]]+МаркетингОтклонение[[#Totals],[Дек]]+ОфисОтклонение[[#Totals],[Дек]]+СотрудникиОтклонение[[#Totals],[Дек]]","v":{"v":140018,"d":"140,018.00 ₽"}},{"$f":"ОбучениеИКомандировкиОтклонение[[#Totals],[ГОД]]+МаркетингОтклонение[[#Totals],[ГОД]]+ОфисОтклонение[[#Totals],[ГОД]]+СотрудникиОтклонение[[#Totals],[ГОД]]","v":{"v":826691,"d":"826,691.00 ₽"}}]
[null,"ОБЩИЕ фактические расходы",{"$f":"SUM($C$36:C36)","v":{"v":1738,"d":"1,738.00 ₽"}},{"$f":"SUM($C$36:D36)","v":{"v":754,"d":"754.00 ₽"}},{"$f":"SUM($C$36:E36)","v":{"v":2009,"d":"2,009.00 ₽"}},{"$f":"SUM($C$36:F36)","v":{"v":2310,"d":"2,310.00 ₽"}},{"$f":"SUM($C$36:G36)","v":{"v":3750,"d":"3,750.00 ₽"}},{"$f":"SUM($C$36:H36)","v":{"v":6,"d":"6.00 ₽"}},{"$f":"SUM($C$36:I36)","v":{"v":134701,"d":"134,701.00 ₽"}},{"$f":"SUM($C$36:J36)","v":{"v":273619,"d":"273,619.00 ₽"}},{"$f":"SUM($C$36:K36)","v":{"v":409537,"d":"409,537.00 ₽"}},{"$f":"SUM($C$36:L36)","v":{"v":550455,"d":"550,455.00 ₽"}},{"$f":"SUM($C$36:M36)","v":{"v":686673,"d":"686,673.00 ₽"}},{"$f":"SUM($C$36:N36)","v":{"v":826691,"d":"826,691.00 ₽"}}]

{"sheet":"АНАЛИЗ РАСХОДОВ","index":4,"n_rows":10,"n_cols":16,"rows_kept":10,"merged":[[2,4,2,6],[11,1,11,5]]}
[{"$nulls":6}," ",{"$nulls":8}," "]
[null,{"$f":"'ЗАПЛАНИРОВАННЫЕ РАСХОДЫ'!B2:D3","v":"Название компании"}]
[{"$nulls":4},{"$f":"заголовок_листа","v":"Подробные оценочные показатели расходов"}]
[]
[null,"Категория расходов","Запланированные расходы","Фактические расходы","Отклонения по расходам","Процент отклонения"]
[null,"Расходы на сотрудников",{"$f":"СотрудникиПлан[[#Totals],[ГОД]]","v":{"v":1355090,"d":"1,355,090.00 ₽"}},{"$f":"СотрудникиФактические[[#Totals],[ГОД]]","v":{"v":659130,"d":"659,130.00 ₽"}},{"$f":"C6-D6","v":{"v":695960,"d":"695,960.00 ₽"}},{"$f":"E6/C6","v":{"v":0.5135895032802249,"d":"51%"}}]
[null,{"$f":"'ЗАПЛАНИРОВАННЫЕ РАСХОДЫ'!B10","v":"Расходы на содержание офиса"},{"$f":"ОфисПлан[[#Totals],[ГОД]]","v":{"v":138740,"d":"138,740.00 ₽"}},{"$f":"ОфисФактические[[#Totals],[ГОД]]","v":{"v":69350,"d":"69,350.00 ₽"}},{"$f":"C7-D7","v":{"v":69390,"d":"69,390.00 ₽"}},{"$f":"E7/C7","v":{"v":0.5001441545336601,"d":"50%"}}]
[null,{"$f":"'ЗАПЛАНИРОВАННЫЕ РАСХОДЫ'!B21","v":"Расходы на маркетинг"},{"$f":"МаркетингПлан[[#Totals],[ГОД]]","v":{"v":67800,"d":"67,800.00 ₽"}},{"$f":"МаркетингФактические[[#Totals],[ГОД]]","v":{"v":33159,"d":"33,159.00 ₽"}},{"$f":"C8-D8","v":{"v":34641,"d":"34,641.00 ₽"}},{"$f":"E8/C8","v":{"v":0.510929203539823,"d":"51%"}}]
[null,{"$f":"'ЗАПЛАНИРОВАННЫЕ РАСХОДЫ'!B30","v":"Обучение/командировки"},{"$f":"ОбучениеИКомандировкиПлан[[#Totals],[ГОД]]","v":{"v":48000,"d":"48,000.00 ₽"}},{"$f":"ОбучениеИКомандировкиФактические[[#Totals],[ГОД]]","v":{"v":21300,"d":"21,300.00 ₽"}},{"$f":"C9-D9","v":{"v":26700,"d":"26,700.00 ₽"}},{"$f":"E9/C9","v":{"v":0.55625,"d":"56%"}}]
[null,{"$f":"'ЗАПЛАНИРОВАННЫЕ РАСХОДЫ'!B35","v":"ИТОГИ"},{"$f":"'ЗАПЛАНИРОВАННЫЕ РАСХОДЫ'!O36","v":{"v":1609630,"d":"1,609,630.00 ₽"}},{"$f":"'ФАКТИЧЕСКИЕ РАСХОДЫ'!O36","v":{"v":782939,"d":"782,939.00 ₽"}},{"$f":"C10-D10","v":{"v":826691,"d":"826,691.00 ₽"}},{"$f":"E10/C10","v":{"v":0.5135907009685455,"d":"51%"}}]